﻿Authority,URI,Payment date,Service/Directorate,Purpose of Spend,Supplier,Transaction Ref,Amount
Borough Council of Kings Lynn and West Norfolk,E07000146,06/01/2022,Comm Infrastructure Levy,Small Projects,Holme Next Sea Parish Council,22007223,"7,800.00"
Borough Council of Kings Lynn and West Norfolk,E07000146,06/01/2022,Mintlyn Crematorium,Repairs & Maintenance,Facultatieve Technologies Ltd,21011553,"4,226.79"
Borough Council of Kings Lynn and West Norfolk,E07000146,06/01/2022,Mintlyn Crematorium,Repairs & Maintenance,Facultatieve Technologies Ltd,21011554,663.90
Borough Council of Kings Lynn and West Norfolk,E07000146,06/01/2022,Mintlyn Crematorium,Repairs & Maintenance,Facultatieve Technologies Ltd,21011555,"3,822.18"
Borough Council of Kings Lynn and West Norfolk,E07000146,06/01/2022,ICT,Computer Software Maint,Oracle Corporation UK Ltd,21011764,"3,329.73"
Borough Council of Kings Lynn and West Norfolk,E07000146,06/01/2022,CCTV,Repairs & Maintenance,Amey LG Ltd,21011548,460.64
Borough Council of Kings Lynn and West Norfolk,E07000146,06/01/2022,Building Control Non Fee,Agency,CNC Buiding Control,21011928,"15,600.50"
Borough Council of Kings Lynn and West Norfolk,E07000146,06/01/2022,Financial Services,Agency Staff,Hays Specialist Recruitment,21011934,"1,770.00"
Borough Council of Kings Lynn and West Norfolk,E07000146,06/01/2022,Resort Seafront,Tools And Equipment,ASSA ABLOY Ltd,21011563,749.00
Borough Council of Kings Lynn and West Norfolk,E07000146,06/01/2022,Head of Legal Services,Recruitment,TMP (UK) Ltd,22007194,"1,450.40"
Borough Council of Kings Lynn and West Norfolk,E07000146,06/01/2022,Printing&Copying-Floor Copiers,Other Machine Lease,Capita Business Services Ltd,21011876,"2,005.75"
Borough Council of Kings Lynn and West Norfolk,E07000146,06/01/2022,Planning Policy - Dept,Professional Fees,Northstar Urban Design Ltd,21011516,"1,948.00"
Borough Council of Kings Lynn and West Norfolk,E07000146,06/01/2022,Home Assistance Loans,Works,Secure Stores Nationwide Ltd,21011058,"3,297.00"
Borough Council of Kings Lynn and West Norfolk,E07000146,06/01/2022,Parkway - Gaywood,Works,Hopkins Ecology Ltd,21011796,"5,375.00"
Borough Council of Kings Lynn and West Norfolk,E07000146,06/01/2022,Housing Joint Venture,Works,R G Carter Ltd,21011717,"150,158.76"
Borough Council of Kings Lynn and West Norfolk,E07000146,06/01/2022,Refuse & Recyc Mgmt,Advertising & Marketing,Your Local Paper Ltd,21011942,"1,050.00"
Borough Council of Kings Lynn and West Norfolk,E07000146,06/01/2022,Housing standards,Recruitment,TMP (UK) Ltd,22007184,"1,865.33"
Borough Council of Kings Lynn and West Norfolk,E07000146,06/01/2022,Comm Safety & Nuisance,Recruitment,TMP (UK) Ltd,22007184,201.67
Borough Council of Kings Lynn and West Norfolk,E07000146,06/01/2022,Environmental Protection,Recruitment,TMP (UK) Ltd,22007189,272.60
Borough Council of Kings Lynn and West Norfolk,E07000146,06/01/2022,Refuse & Recyc Mgmt,Recruitment,TMP (UK) Ltd,22007189,272.60
Borough Council of Kings Lynn and West Norfolk,E07000146,10/01/2022,Rough Sleeper Fund,Covid 19,BACO-Compak (Norfolk) Ltd,21011951,870.00
Borough Council of Kings Lynn and West Norfolk,E07000146,10/01/2022,General Property,Repairs & Maintenance,CGM Group (East Anglia) Ltd,21011963,800.00
Borough Council of Kings Lynn and West Norfolk,E07000146,10/01/2022,Closed Churchyards,Repairs & Maintenance,CGM Group (East Anglia) Ltd,21011964,502.25
Borough Council of Kings Lynn and West Norfolk,E07000146,10/01/2022,Parking Operations - Brgh,Royal Household Support,ESPO,21011976,472.50
Borough Council of Kings Lynn and West Norfolk,E07000146,10/01/2022,Comm Infrastructure Levy,Small Projects,Gayton Parish Council,22007229,"1,050.00"
Borough Council of Kings Lynn and West Norfolk,E07000146,10/01/2022,NNDR NNC CREDITOR,Coll Fund - NNDR - Balance,Norfolk County Council,21012001,"2,036,304.00"
Borough Council of Kings Lynn and West Norfolk,E07000146,10/01/2022,Financial Services,Postages,Royal Mail Group Ltd,22007231,264.60
Borough Council of Kings Lynn and West Norfolk,E07000146,10/01/2022,Benefit Administration,Postages,Royal Mail Group Ltd,22007231,583.04
Borough Council of Kings Lynn and West Norfolk,E07000146,10/01/2022,Cost of Collection - CTax,Postages,Royal Mail Group Ltd,22007231,589.14
Borough Council of Kings Lynn and West Norfolk,E07000146,10/01/2022,Kings Lynn Bid,Postages,Royal Mail Group Ltd,22007231,1.76
Borough Council of Kings Lynn and West Norfolk,E07000146,10/01/2022,Benefit Administration,Postages,Royal Mail Group Ltd,22007231,6.75
Borough Council of Kings Lynn and West Norfolk,E07000146,10/01/2022,Cost of Collection - CTax,Postages,Royal Mail Group Ltd,22007231,5.66
Borough Council of Kings Lynn and West Norfolk,E07000146,10/01/2022,Benefit Administration,Postages,Royal Mail Group Ltd,22007231,5.40
Borough Council of Kings Lynn and West Norfolk,E07000146,10/01/2022,Econ Partnership Working,LEP FUNDING,Norfolk Chamber Of Commerce & Industry,21012002,"1,665.00"
Borough Council of Kings Lynn and West Norfolk,E07000146,10/01/2022,ICT,Computer Software Maint,Gladstone MRM Ltd,21011892,"1,451.68"
Borough Council of Kings Lynn and West Norfolk,E07000146,10/01/2022,Kings Court Service Charges,Cleaning Material & Equip,Ken Booth & Co Ltd,21011675,"1,233.36"
Borough Council of Kings Lynn and West Norfolk,E07000146,10/01/2022,Network Hardware holding,Tools And Equipment,Quality Essential Distribution Ltd,21011750,"17,787.93"
Borough Council of Kings Lynn and West Norfolk,E07000146,10/01/2022,Crematorium Trading Account,Memorial Plates,Anglia Sign Casting Ltd,21011811,785.88
Borough Council of Kings Lynn and West Norfolk,E07000146,10/01/2022,Crematorium Trading Account,Renewal Plates - Exp,Anglia Sign Casting Ltd,21011811,30.00
Borough Council of Kings Lynn and West Norfolk,E07000146,10/01/2022,Financial Services,Membership & Subscription,LG Futures Ltd,21011678,520.00
Borough Council of Kings Lynn and West Norfolk,E07000146,10/01/2022,Cllr Allowance & Exps,Seminars/Training,Hoey Ainscough Associates Ltd,22007174,600.00
Borough Council of Kings Lynn and West Norfolk,E07000146,10/01/2022,Dog Warden and Services,Contracted Services,Dogotel Kennels & Cattery,22007228,"1,110.00"
Borough Council of Kings Lynn and West Norfolk,E07000146,10/01/2022,Dog Warden and Services,Kennel Fees,Dogotel Kennels & Cattery,22007228,344.00
Borough Council of Kings Lynn and West Norfolk,E07000146,10/01/2022,Dog Warden and Services,Kennel Fees Recd - Extl,Dogotel Kennels & Cattery,22007228,-357.00
Borough Council of Kings Lynn and West Norfolk,E07000146,10/01/2022,Comm Infrastructure Levy,Small Projects,Thornham Village Hall,22007232,"9,500.00"
Borough Council of Kings Lynn and West Norfolk,E07000146,10/01/2022,Bus Shelters,Repairs & Maintenance,Westcotec Ltd,21011609,876.18
Borough Council of Kings Lynn and West Norfolk,E07000146,10/01/2022,Street Lighting,Repairs & Maintenance,Westcotec Ltd,21011610,"1,715.15"
Borough Council of Kings Lynn and West Norfolk,E07000146,13/01/2022,Public Cleansing,Cleaning Material & Equip,V & J Knitwear Ltd,21012031,"1,075.41"
Borough Council of Kings Lynn and West Norfolk,E07000146,13/01/2022,Public Cleansing,Vehicle - repairs & Maint,Bucher Muncipal Ltd,21011769,972.40
Borough Council of Kings Lynn and West Norfolk,E07000146,13/01/2022,Public Cleansing,Contract Repairs,Bucher Muncipal Ltd,21011913,439.38
Borough Council of Kings Lynn and West Norfolk,E07000146,13/01/2022,Mintlyn Crematorium,Repairs & Maintenance,Facultatieve Technologies Ltd,21011698,"1,398.48"
Borough Council of Kings Lynn and West Norfolk,E07000146,13/01/2022,LILY 5,Lily Advisor Payments,West Norfolk Befriending,21012074,"1,000.00"
Borough Council of Kings Lynn and West Norfolk,E07000146,13/01/2022,Recycling Composting,Waste Processing Cost,Greenworld Sales Ltd t/a Greenworld,21012052,"1,052.33"
Borough Council of Kings Lynn and West Norfolk,E07000146,13/01/2022,ICT,Computer Hardware Maint,Fordway Solutions Ltd,21011932,"3,445.68"
Borough Council of Kings Lynn and West Norfolk,E07000146,13/01/2022,Mintlyn Crematorium,Professional Fees,Vida Healthcare,21012027,"1,889.40"
Borough Council of Kings Lynn and West Norfolk,E07000146,13/01/2022,Mintlyn Crematorium,Repairs & Maintenance,1-2 Call Drainage & Groundwork Ltd,21012063,"1,200.00"
Borough Council of Kings Lynn and West Norfolk,E07000146,13/01/2022,Priory Road D Market,Repairs & Maintenance,1-2 Call Drainage & Groundwork Ltd,21012069,560.00
Borough Council of Kings Lynn and West Norfolk,E07000146,13/01/2022,Sth Quay Sommerfield & Thomas BRP,Works,1-2 Call Drainage & Groundwork Ltd,21012065,450.00
Borough Council of Kings Lynn and West Norfolk,E07000146,13/01/2022,Public conveniences,Sewerage/Cesspool Empty,BACO-Compak (Norfolk) Ltd,21012099,580.00
Borough Council of Kings Lynn and West Norfolk,E07000146,13/01/2022,Public conveniences,Sewerage/Cesspool Empty,BACO-Compak (Norfolk) Ltd,21012098,"1,290.00"
Borough Council of Kings Lynn and West Norfolk,E07000146,13/01/2022,Parkway - Gaywood,Works,CGM Group (East Anglia) Ltd,21011966,"1,200.00"
Borough Council of Kings Lynn and West Norfolk,E07000146,13/01/2022,Housing standards,External Legal fees,Fenland District Council,21011737,"4,825.25"
Borough Council of Kings Lynn and West Norfolk,E07000146,13/01/2022,Cashless Pk YT(GY off St),Agency,Great Yarmouth Borough Council,22007236,"12,884.80"
Borough Council of Kings Lynn and West Norfolk,E07000146,13/01/2022,NEWS Depot,Contract Cleaning,Marathon Services Ltd,21012048,"1,540.00"
Borough Council of Kings Lynn and West Norfolk,E07000146,13/01/2022,Head of Legal Services,External Legal fees,North Norfolk District Council,22007243,300.00
Borough Council of Kings Lynn and West Norfolk,E07000146,13/01/2022,Head of Legal Services,External Legal fees,North Norfolk District Council,22007243,153.00
Borough Council of Kings Lynn and West Norfolk,E07000146,13/01/2022,Head of Legal Services,External Legal fees,North Norfolk District Council,22007244,300.00
Borough Council of Kings Lynn and West Norfolk,E07000146,13/01/2022,Head of Legal Services,External Legal fees,North Norfolk District Council,22007244,153.00
Borough Council of Kings Lynn and West Norfolk,E07000146,13/01/2022,Cashless Pk JF(NN on St),Agency,North Norfolk District Council,22007245,"20,891.00"
Borough Council of Kings Lynn and West Norfolk,E07000146,13/01/2022,Grounds Southern Area,Repairs & Maintenance,Penty Contractors Ltd,21012094,"3,810.00"
Borough Council of Kings Lynn and West Norfolk,E07000146,13/01/2022,DuttonSports Pavillion,Materials,Origin Amenity Solutions Ltd,22007183,"1,495.00"
Borough Council of Kings Lynn and West Norfolk,E07000146,13/01/2022,DuttonSports Pavillion,Materials,Origin Amenity Solutions Ltd,22007183,206.00
Borough Council of Kings Lynn and West Norfolk,E07000146,13/01/2022,Financial Services,Postages,Royal Mail Group Ltd,22007247,153.93
Borough Council of Kings Lynn and West Norfolk,E07000146,13/01/2022,Cost of Collection - CTax,Postages,Royal Mail Group Ltd,22007247,600.46
Borough Council of Kings Lynn and West Norfolk,E07000146,13/01/2022,Kings Lynn Bid,Postages,Royal Mail Group Ltd,22007247,1.76
Borough Council of Kings Lynn and West Norfolk,E07000146,13/01/2022,Benefit Administration,Postages,Royal Mail Group Ltd,22007247,480.40
Borough Council of Kings Lynn and West Norfolk,E07000146,13/01/2022,Benefit Administration,Postages,Royal Mail Group Ltd,22007247,8.10
Borough Council of Kings Lynn and West Norfolk,E07000146,13/01/2022,ICT,Computer Software Maint,SOCITM Ltd,21012083,995.00
Borough Council of Kings Lynn and West Norfolk,E07000146,13/01/2022,Mintlyn Crematorium,Tools And Equipment,Teleshore UK Ltd t/a Gemini CCS Ltd,21011743,722.68
Borough Council of Kings Lynn and West Norfolk,E07000146,13/01/2022,Vehicle Recharge on account,Fuel,Worldline IT Services UK Re Fuelgenie,22007269,"10,480.31"
Borough Council of Kings Lynn and West Norfolk,E07000146,13/01/2022,Financial Services,Agency Staff,Hays Specialist Recruitment,21011992,"2,950.00"
Borough Council of Kings Lynn and West Norfolk,E07000146,13/01/2022,Grounds Southern Area,Fuel,UK Fuels Ltd,22007272,23.41
Borough Council of Kings Lynn and West Norfolk,E07000146,13/01/2022,Grounds Southern Area,Fuel,UK Fuels Ltd,22007272,186.57
Borough Council of Kings Lynn and West Norfolk,E07000146,13/01/2022,Public Cleansing,Fuel,UK Fuels Ltd,22007272,400.10
Borough Council of Kings Lynn and West Norfolk,E07000146,13/01/2022,Grounds Southern Area,Fuel,UK Fuels Ltd,22007272,209.12
Borough Council of Kings Lynn and West Norfolk,E07000146,13/01/2022,Grounds Southern Area,Fuel,UK Fuels Ltd,22007272,23.98
Borough Council of Kings Lynn and West Norfolk,E07000146,13/01/2022,Grounds Southern Area,Fuel,UK Fuels Ltd,22007272,99.35
Borough Council of Kings Lynn and West Norfolk,E07000146,13/01/2022,Balance Sheet,VAT Input - VAT Only Purchases,Newlyn PLC,22007240,"1,215.77"
Borough Council of Kings Lynn and West Norfolk,E07000146,13/01/2022,Balance Sheet,VAT Input - VAT Only Purchases,Newlyn PLC,22007241,576.07
Borough Council of Kings Lynn and West Norfolk,E07000146,13/01/2022,Balance Sheet,VAT Input - VAT Only Purchases,Newlyn PLC,22007242,563.33
Borough Council of Kings Lynn and West Norfolk,E07000146,13/01/2022,Treasury Management,Management Expenses,Link Treasury Services Ltd,21012049,"9,500.00"
Borough Council of Kings Lynn and West Norfolk,E07000146,13/01/2022,ICT,Computer Software Maint,Jadu Ltd,21011893,"16,369.23"
Borough Council of Kings Lynn and West Norfolk,E07000146,13/01/2022,Home Improvements Agency,Agency Staff,Seven Resourcing Ltd,21012013,"1,078.78"
Borough Council of Kings Lynn and West Norfolk,E07000146,13/01/2022,Home Improvements Agency,Agency Staff,Seven Resourcing Ltd,21012012,"1,581.12"
Borough Council of Kings Lynn and West Norfolk,E07000146,13/01/2022,Cashless Pk JG (Bk on St),Merchant Fees,Chipside Ltd,21012108,2.49
Borough Council of Kings Lynn and West Norfolk,E07000146,13/01/2022,Cashless Pk JE(NN on St),Merchant Fees,Chipside Ltd,21012108,9.91
Borough Council of Kings Lynn and West Norfolk,E07000146,13/01/2022,Cashless Park KR (KLWN on ST),Merchant Fees,Chipside Ltd,21012108,46.14
Borough Council of Kings Lynn and West Norfolk,E07000146,13/01/2022,Cashless Pk JI(GYon St),Merchant Fees,Chipside Ltd,21012108,64.26
Borough Council of Kings Lynn and West Norfolk,E07000146,13/01/2022,Cashless Pk YT(GY off St),Merchant Fees,Chipside Ltd,21012108,134.69
Borough Council of Kings Lynn and West Norfolk,E07000146,13/01/2022,Cashless Pk JF(NN on St),Merchant Fees,Chipside Ltd,21012108,209.87
Borough Council of Kings Lynn and West Norfolk,E07000146,13/01/2022,Cashless Park KZ (KLWN off ST),Merchant Fees,Chipside Ltd,21012108,"1,243.81"
Borough Council of Kings Lynn and West Norfolk,E07000146,13/01/2022,Decrim - Operational,Tools And Equipment,Chipside Ltd,21011960,"1,305.60"
Borough Council of Kings Lynn and West Norfolk,E07000146,13/01/2022,Cashless Pk JG (Bk on St),Transaction Fee,Chipside Ltd,21012109,10.00
Borough Council of Kings Lynn and West Norfolk,E07000146,13/01/2022,Cashless Pk JE(NN on St),Transaction Fee,Chipside Ltd,21012109,104.00
Borough Council of Kings Lynn and West Norfolk,E07000146,13/01/2022,Cashless Pk JI(GYon St),Transaction Fee,Chipside Ltd,21012109,192.24
Borough Council of Kings Lynn and West Norfolk,E07000146,13/01/2022,Cashless Park KR (KLWN on ST),Transaction Fee,Chipside Ltd,21012109,196.50
Borough Council of Kings Lynn and West Norfolk,E07000146,13/01/2022,Cashless Pk YT(GY off St),Transaction Fee,Chipside Ltd,21012109,409.17
Borough Council of Kings Lynn and West Norfolk,E07000146,13/01/2022,Cashless Pk JF(NN on St),Transaction Fee,Chipside Ltd,21012109,612.75
Borough Council of Kings Lynn and West Norfolk,E07000146,13/01/2022,Cashless Park KZ (KLWN off ST),Transaction Fee,Chipside Ltd,21012109,"3,203.08"
Borough Council of Kings Lynn and West Norfolk,E07000146,13/01/2022,LILY 5,Lily Advisor Payments,Family Action,21012129,958.33
Borough Council of Kings Lynn and West Norfolk,E07000146,13/01/2022,LILY 5,Lily Advisor Payments,West Norfolk Carers Association,21012073,"1,852.50"
Borough Council of Kings Lynn and West Norfolk,E07000146,13/01/2022,Creative Hub - Art Centre/Guildhall Complex,Professional Fees,Hudson Architects,21012050,"2,189.51"
Borough Council of Kings Lynn and West Norfolk,E07000146,13/01/2022,Development Control,Planning Fees,Portal / Planquest Ltd,22007264,924.00
Borough Council of Kings Lynn and West Norfolk,E07000146,13/01/2022,Development Control,Planning Fees,Portal / Planquest Ltd,22007265,924.00
Borough Council of Kings Lynn and West Norfolk,E07000146,13/01/2022,CCTV,Repairs & Maintenance,Quality Essential Distribution Ltd,21011752,"16,932.72"
Borough Council of Kings Lynn and West Norfolk,E07000146,13/01/2022,Financial Services,Applications Licence,Unit 4 Business Software Ltd,21012034,"69,047.89"
Borough Council of Kings Lynn and West Norfolk,E07000146,13/01/2022,Home Improvements Agency,Recruitment,TMP (UK) Ltd,22007252,176.25
Borough Council of Kings Lynn and West Norfolk,E07000146,13/01/2022,Housing Options Programme,Recruitment,TMP (UK) Ltd,22007252,176.25
Borough Council of Kings Lynn and West Norfolk,E07000146,13/01/2022,DSO Grounds Maint Supp,Recruitment,TMP (UK) Ltd,22007252,176.26
Borough Council of Kings Lynn and West Norfolk,E07000146,13/01/2022,Parking Operations - Brgh,Recruitment,TMP (UK) Ltd,22007252,176.26
Borough Council of Kings Lynn and West Norfolk,E07000146,13/01/2022,Public Cleansing,Recruitment,TMP (UK) Ltd,22007252,176.26
Borough Council of Kings Lynn and West Norfolk,E07000146,13/01/2022,LILY 5,Lily Advisor Payments,Norfolk and Waveney Mind,21012086,"1,852.50"
Borough Council of Kings Lynn and West Norfolk,E07000146,13/01/2022,Rough Sleeper Fund,Covid 19,Excaliber Security Services Ltd,21012058,"6,566.40"
Borough Council of Kings Lynn and West Norfolk,E07000146,13/01/2022,Rough Sleeper Fund,Covid 19,Excaliber Security Services Ltd,21012057,"5,107.20"
Borough Council of Kings Lynn and West Norfolk,E07000146,13/01/2022,Public Realm/Town Deal,Equipment/Materials,Hardscape Products Ltd,21012092,"2,985.99"
Borough Council of Kings Lynn and West Norfolk,E07000146,13/01/2022,Sports Grounds North,Materials,Advance Grass Solutions,21011751,693.25
Borough Council of Kings Lynn and West Norfolk,E07000146,13/01/2022,Sports Grounds Central,Materials,Advance Grass Solutions,21011751,693.25
Borough Council of Kings Lynn and West Norfolk,E07000146,14/01/2022,Corporate,Bank Charges,Allpay,22007289,"1,338.42"
Borough Council of Kings Lynn and West Norfolk,E07000146,14/01/2022,ICT,Computer Software Maint,Capita Business Services Ltd,22007296,772.31
Borough Council of Kings Lynn and West Norfolk,E07000146,14/01/2022,Utility Holding,Electricity Bulk Billing,EDF Energy Ltd,22007297,"73,400.82"
Borough Council of Kings Lynn and West Norfolk,E07000146,14/01/2022,Kings Court Kings Lynn,Confectionery - Supplies,Propel Finance Plc,22007299,"1,206.70"
Borough Council of Kings Lynn and West Norfolk,E07000146,14/01/2022,KL Innovation Centre,Telephones,Spitfire Network Services Ltd,22007301,912.45
Borough Council of Kings Lynn and West Norfolk,E07000146,14/01/2022,ICT,MPhone Usage & Top-up,TelefonicaO2UK Ltd,22007302,"1,119.37"
Borough Council of Kings Lynn and West Norfolk,E07000146,14/01/2022,ICT,MPhone Usage & Top-up,TelefonicaO2UK Ltd,22007303,"1,117.64"
Borough Council of Kings Lynn and West Norfolk,E07000146,14/01/2022,Utility Holding,Gas,Total Gas & Power Ltd,22007304,"23,219.15"
Borough Council of Kings Lynn and West Norfolk,E07000146,14/01/2022,Corporate,Bank Charges,Worldpay Ltd,22007305,"11,893.05"
Borough Council of Kings Lynn and West Norfolk,E07000146,14/01/2022,Corporate,Bank Charges,Worldpay Ltd,22007305,500.08
Borough Council of Kings Lynn and West Norfolk,E07000146,17/01/2022,Creditors Holding Account,Water & Drainage Rates,WAVE,22007286,"55,665.86"
Borough Council of Kings Lynn and West Norfolk,E07000146,17/01/2022,Community Projects CS,Service Level Agreements,West Norfolk Befriending,21012182,"1,050.00"
Borough Council of Kings Lynn and West Norfolk,E07000146,17/01/2022,Recycling Composting,Waste Processing Cost,Greenworld Sales Ltd t/a Greenworld,21012164,"13,266.31"
Borough Council of Kings Lynn and West Norfolk,E07000146,17/01/2022,Grounds Northern Area,Vehicle - repairs & Maint,Ernest Doe & Sons Ltd,21012162,597.28
Borough Council of Kings Lynn and West Norfolk,E07000146,17/01/2022,CCTV,Repairs & Maintenance,Clearview Window Cleaning,21012152,500.00
Borough Council of Kings Lynn and West Norfolk,E07000146,17/01/2022,CCTV Breckland,Repairs & Maintenance,Clearview Window Cleaning,21012152,500.00
Borough Council of Kings Lynn and West Norfolk,E07000146,17/01/2022,Factory 1 Refurb,Works,Cooks Blinds & Shutters Ltd,21011840,"8,138.00"
Borough Council of Kings Lynn and West Norfolk,E07000146,17/01/2022,COMF Phase 3,Advertising & Marketing,Your Local Paper Ltd,21011864,750.00
Borough Council of Kings Lynn and West Norfolk,E07000146,17/01/2022,Public Realm/Town Deal,Equipment/Materials,Hardscape Products Ltd,21012139,"1,490.00"
Borough Council of Kings Lynn and West Norfolk,E07000146,17/01/2022,Comm Infrastructure Levy,Small Projects,Denver Playing Field Association,22007276,"6,458.00"
Borough Council of Kings Lynn and West Norfolk,E07000146,17/01/2022,Parking Operations - Brgh,Repairs & Maintenance,Penty Contractors Ltd,21012151,"1,800.00"
Borough Council of Kings Lynn and West Norfolk,E07000146,17/01/2022,Postage Services K Court,Postages,Royal Mail Group Ltd,22007284,791.11
Borough Council of Kings Lynn and West Norfolk,E07000146,17/01/2022,Factory 1 Refurb,Works,Smith Building Services Ltd,21011971,"3,595.00"
Borough Council of Kings Lynn and West Norfolk,E07000146,17/01/2022,Rough Sleeper Initiative Y3,Miscellaneous,The Purfleet Trust,21012176,905.00
Borough Council of Kings Lynn and West Norfolk,E07000146,17/01/2022,Public Cleansing,Professional Fees,Cavell & Lind Ltd,21012143,"1,330.00"
Borough Council of Kings Lynn and West Norfolk,E07000146,17/01/2022,Street Naming & Numbering,Repairs & Maintenance,Midland Signs (Leics) t/a G & G Signs,21010471,"1,498.35"
Borough Council of Kings Lynn and West Norfolk,E07000146,17/01/2022,Street Naming & Numbering,Repairs & Maintenance,Midland Signs (Leics) t/a G & G Signs,21010471,96.00
Borough Council of Kings Lynn and West Norfolk,E07000146,17/01/2022,Public Cleansing,Initiatives,V & J Knitwear Ltd,21012181,572.00
Borough Council of Kings Lynn and West Norfolk,E07000146,17/01/2022,Postage Services K Court,Postages,Pitney Bowes Purchase Power Pre Pay,22007283,"5,003.71"
Borough Council of Kings Lynn and West Norfolk,E07000146,17/01/2022,Postage Services K Court,Postages,Pitney Bowes Purchase Power Pre Pay,22007283,11.00
Borough Council of Kings Lynn and West Norfolk,E07000146,17/01/2022,Town Hall Kings Lynn,Repairs & Maintenance,JD Cooling Systems Ltd,21012148,22.25
Borough Council of Kings Lynn and West Norfolk,E07000146,17/01/2022,North Lynn Managed Workshops,Repairs & Maintenance,JD Cooling Systems Ltd,21012148,54.23
Borough Council of Kings Lynn and West Norfolk,E07000146,17/01/2022,Valentine Road Hunstanton,Repairs & Maintenance,JD Cooling Systems Ltd,21012148,54.23
Borough Council of Kings Lynn and West Norfolk,E07000146,17/01/2022,Parking Operations - Brgh,Repairs & Maintenance,JD Cooling Systems Ltd,21012148,71.37
Borough Council of Kings Lynn and West Norfolk,E07000146,17/01/2022,Resort Seafront,Repairs & Maintenance,JD Cooling Systems Ltd,21012148,71.37
Borough Council of Kings Lynn and West Norfolk,E07000146,17/01/2022,Air Quality,Repairs & Maintenance,JD Cooling Systems Ltd,21012148,89.91
Borough Council of Kings Lynn and West Norfolk,E07000146,17/01/2022,Regis Place Unit1-Non Inv Care,Repairs & Maintenance,JD Cooling Systems Ltd,21012148,105.67
Borough Council of Kings Lynn and West Norfolk,E07000146,17/01/2022,Printroom,Repairs & Maintenance,JD Cooling Systems Ltd,21012148,122.82
Borough Council of Kings Lynn and West Norfolk,E07000146,17/01/2022,Stories of Lynn,Repairs & Maintenance,JD Cooling Systems Ltd,21012148,150.63
Borough Council of Kings Lynn and West Norfolk,E07000146,17/01/2022,Regis Place Unit 2 -WN Vol,Repairs & Maintenance,JD Cooling Systems Ltd,21012148,156.19
Borough Council of Kings Lynn and West Norfolk,E07000146,17/01/2022,Mintlyn Crematorium,Repairs & Maintenance,JD Cooling Systems Ltd,21012148,176.12
Borough Council of Kings Lynn and West Norfolk,E07000146,17/01/2022,NEWS Depot,Repairs & Maintenance,JD Cooling Systems Ltd,21012148,301.25
Borough Council of Kings Lynn and West Norfolk,E07000146,17/01/2022,KL Innovation Centre,Repairs & Maintenance,JD Cooling Systems Ltd,21012148,972.81
Borough Council of Kings Lynn and West Norfolk,E07000146,17/01/2022,Kings Court Kings Lynn,Repairs & Maintenance,JD Cooling Systems Ltd,21012148,"1,158.65"
Borough Council of Kings Lynn and West Norfolk,E07000146,17/01/2022,Corporate,Audit Fee,Norfolk Pension Fund,21012171,"3,157.70"
Borough Council of Kings Lynn and West Norfolk,E07000146,17/01/2022,Financial Services,Cap Pen Strain &Add Years,Norfolk Pension Fund,21012172,"14,267.90"
Borough Council of Kings Lynn and West Norfolk,E07000146,17/01/2022,Trade Refuse,Added Years Pension,Norfolk Pension Fund,21012172,491.63
Borough Council of Kings Lynn and West Norfolk,E07000146,17/01/2022,Domestic Refuse,Added Years Pension,Norfolk Pension Fund,21012172,491.63
Borough Council of Kings Lynn and West Norfolk,E07000146,17/01/2022,Corporate,Added Years Pension,Norfolk Pension Fund,21012172,"17,131.64"
Borough Council of Kings Lynn and West Norfolk,E07000146,17/01/2022,Play Areas,Repairs & Maintenance,G B Sport & Leisure UK Ltd,21011853,575.05
Borough Council of Kings Lynn and West Norfolk,E07000146,17/01/2022,Public Cleansing,Sweeper Consumables,Bucher Muncipal Ltd,21011958,993.60
Borough Council of Kings Lynn and West Norfolk,E07000146,20/01/2022,Planning Control,Professional Fees,T Leader St Johns Regulatory Fee Share Account,21012189,660.00
Borough Council of Kings Lynn and West Norfolk,E07000146,20/01/2022,CCTV,Computer Equipment,TelefonicaO2UK Ltd,21012188,"2,622.33"
Borough Council of Kings Lynn and West Norfolk,E07000146,20/01/2022,Parking Operations - Brgh,Royal Household Support,Actavo (UK) Ltd,21012095,"5,530.00"
Borough Council of Kings Lynn and West Norfolk,E07000146,20/01/2022,Parking Operations - Brgh,Royal Household Support,Actavo (UK) Ltd,21012140,"5,530.00"
Borough Council of Kings Lynn and West Norfolk,E07000146,20/01/2022,Home Improvements Agency,Agency Staff,Seven Resourcing Ltd,21012039,"1,173.90"
Borough Council of Kings Lynn and West Norfolk,E07000146,20/01/2022,Parks & Open Spaces,Tree Surgery,Golden Tree Surgeons Ltd,21012269,"1,130.00"
Borough Council of Kings Lynn and West Norfolk,E07000146,20/01/2022,Parks & Open Spaces,Tree Surgery,Golden Tree Surgeons Ltd,21012270,"1,130.00"
Borough Council of Kings Lynn and West Norfolk,E07000146,20/01/2022,Parks & Open Spaces,Tree Surgery,Golden Tree Surgeons Ltd,21012271,"1,130.00"
Borough Council of Kings Lynn and West Norfolk,E07000146,20/01/2022,Parks & Open Spaces,Tree Surgery,Golden Tree Surgeons Ltd,21012272,"2,260.00"
Borough Council of Kings Lynn and West Norfolk,E07000146,20/01/2022,EZ Dev of Spec Units,Works,R G Carter Cambridge Ltd,21011161,"202,368.42"
Borough Council of Kings Lynn and West Norfolk,E07000146,20/01/2022,NSF Events,Equipment/Materials,Breake Charity,21012245,"20,000.00"
Borough Council of Kings Lynn and West Norfolk,E07000146,20/01/2022,St Georges Guildhall Complex,Professional Fees,Foster Wilson Size,21011933,"3,900.00"
Borough Council of Kings Lynn and West Norfolk,E07000146,20/01/2022,Coast Defence/Protection,Repairs & Maintenance,IBS Engineered Products Ltd,21011927,"2,402.00"
Borough Council of Kings Lynn and West Norfolk,E07000146,20/01/2022,GM Central Area,Vehicle - repairs & Maint,G & J Peck Ltd,21012163,"5,172.62"
Borough Council of Kings Lynn and West Norfolk,E07000146,20/01/2022,Towns Fund Active and Clean Connectivity,Professional Fees,INVVU Construction Consultants Ltd,21012201,"10,872.50"
Borough Council of Kings Lynn and West Norfolk,E07000146,20/01/2022,Mintlyn Crematorium,Tools And Equipment,BACO-Compak (Norfolk) Ltd,21012253,126.78
Borough Council of Kings Lynn and West Norfolk,E07000146,20/01/2022,Mintlyn Crematorium,Repairs & Maintenance,BACO-Compak (Norfolk) Ltd,21012253,438.00
Borough Council of Kings Lynn and West Norfolk,E07000146,20/01/2022,ICT,Broadband Charge,British Telecommunications PLC,21012246,"1,032.42"
Borough Council of Kings Lynn and West Norfolk,E07000146,20/01/2022,ICT,Telephones,British Telecommunications PLC,21012248,494.36
Borough Council of Kings Lynn and West Norfolk,E07000146,20/01/2022,Hardwick Industrial Estate,Repairs & Maintenance,CGM Group (East Anglia) Ltd,21011917,500.00
Borough Council of Kings Lynn and West Norfolk,E07000146,20/01/2022,CCTV,Repairs & Maintenance,Dell Corporation Ltd,21012212,"1,172.24"
Borough Council of Kings Lynn and West Norfolk,E07000146,20/01/2022,Parking Operations - Brgh,Repairs & Maintenance,Kings Lynn Signs,21011995,684.00
Borough Council of Kings Lynn and West Norfolk,E07000146,20/01/2022,Parking Operations - Brgh,Repairs & Maintenance,Metric Group Ltd,21012273,550.00
Borough Council of Kings Lynn and West Norfolk,E07000146,20/01/2022,Head of Legal Services,External Legal fees,Norfolk County Council,22007324,622.50
Borough Council of Kings Lynn and West Norfolk,E07000146,20/01/2022,Head of Legal Services,External Legal fees,North Norfolk District Council,22007325,300.00
Borough Council of Kings Lynn and West Norfolk,E07000146,20/01/2022,Head of Legal Services,External Legal fees,North Norfolk District Council,22007325,153.00
Borough Council of Kings Lynn and West Norfolk,E07000146,20/01/2022,Head of Legal Services,External Legal fees,North Norfolk District Council,22007326,300.00
Borough Council of Kings Lynn and West Norfolk,E07000146,20/01/2022,Head of Legal Services,External Legal fees,North Norfolk District Council,22007326,153.00
Borough Council of Kings Lynn and West Norfolk,E07000146,20/01/2022,Head of Legal Services,External Legal fees,North Norfolk District Council,22007327,300.00
Borough Council of Kings Lynn and West Norfolk,E07000146,20/01/2022,Head of Legal Services,External Legal fees,North Norfolk District Council,22007327,153.00
Borough Council of Kings Lynn and West Norfolk,E07000146,20/01/2022,Welfare Reform Funding,Professional Fees,North Norfolk District Council,21012195,"3,658.85"
Borough Council of Kings Lynn and West Norfolk,E07000146,20/01/2022,NNDC Carpark Operation,Tools And Equipment,Penty Contractors Ltd,21012274,475.00
Borough Council of Kings Lynn and West Norfolk,E07000146,20/01/2022,Parking Operations - Brgh,Tools And Equipment,Penty Contractors Ltd,21012274,950.00
Borough Council of Kings Lynn and West Norfolk,E07000146,20/01/2022,Parking Operations - Brgh,Tools And Equipment,Penty Contractors Ltd,21012275,"2,000.00"
Borough Council of Kings Lynn and West Norfolk,E07000146,20/01/2022,Licensing,CRB Forms - Expenditure,Disclosure & Barring Service,22007316,160.00
Borough Council of Kings Lynn and West Norfolk,E07000146,20/01/2022,Personnel Services,Personnel DBS Checks,Disclosure & Barring Service,22007316,240.00
Borough Council of Kings Lynn and West Norfolk,E07000146,20/01/2022,CCTV,Personnel DBS Checks,Disclosure & Barring Service,22007316,40.00
Borough Council of Kings Lynn and West Norfolk,E07000146,20/01/2022,Early Help Hub Co-ordinator,Personnel DBS Checks,Disclosure & Barring Service,22007316,40.00
Borough Council of Kings Lynn and West Norfolk,E07000146,20/01/2022,Personnel Services,Personnel DBS Checks,Disclosure & Barring Service,22007316,120.00
Borough Council of Kings Lynn and West Norfolk,E07000146,20/01/2022,NNDC Carpark Operation,Broadband Charge,Claranet Ltd,21012213,188.36
Borough Council of Kings Lynn and West Norfolk,E07000146,20/01/2022,ICT,Broadband Charge,Claranet Ltd,21012213,48.32
Borough Council of Kings Lynn and West Norfolk,E07000146,20/01/2022,South Lynn Community Centre,Broadband Charge,Claranet Ltd,21012213,48.32
Borough Council of Kings Lynn and West Norfolk,E07000146,20/01/2022,Benefit Administration,Broadband Charge,Claranet Ltd,21012213,288.85
Borough Council of Kings Lynn and West Norfolk,E07000146,20/01/2022,ICT,Communications,Claranet Ltd,21012213,"4,674.90"
Borough Council of Kings Lynn and West Norfolk,E07000146,20/01/2022,Radio Phones,Communications,Claranet Ltd,21012213,67.76
Borough Council of Kings Lynn and West Norfolk,E07000146,20/01/2022,Street Sweeping,Animal Removal,Peaceful Pets Ltd,21012192,"1,460.00"
Borough Council of Kings Lynn and West Norfolk,E07000146,20/01/2022,Street Sweeping,Animal Removal,Peaceful Pets Ltd,21012193,765.00
Borough Council of Kings Lynn and West Norfolk,E07000146,20/01/2022,Public Cleansing,Vehicle - repairs & Maint,Bucher Muncipal Ltd,21012215,972.40
Borough Council of Kings Lynn and West Norfolk,E07000146,20/01/2022,Public Cleansing,Vehicle - repairs & Maint,Bucher Muncipal Ltd,21012216,439.38
Borough Council of Kings Lynn and West Norfolk,E07000146,20/01/2022,Natl Assist Act Burials,Burial Fees-Nat.Ass.Act,Thornalley Funeral Services Ltd,21012228,"1,252.00"
Borough Council of Kings Lynn and West Norfolk,E07000146,20/01/2022,Natl Assist Act Burials,Burial Fees-Nat.Ass.Act,Thornalley Funeral Services Ltd,21012229,"1,045.00"
Borough Council of Kings Lynn and West Norfolk,E07000146,20/01/2022,Decarbonisation ReFit 2,Works,AMR Electrical Services Ltd,21011879,"10,403.24"
Borough Council of Kings Lynn and West Norfolk,E07000146,20/01/2022,Valentine Road Hunstanton,Repairs & Maintenance,1-2 Call Drainage & Groundwork Ltd,21012267,650.00
Borough Council of Kings Lynn and West Norfolk,E07000146,20/01/2022,Licensing,Professional Fees,Institute of Licensing (Events) Ltd,21012243,760.75
Borough Council of Kings Lynn and West Norfolk,E07000146,20/01/2022,ICT,Computer Software Maint,Access Intelligence Media and Communications Ltd,21012265,"4,500.00"
Borough Council of Kings Lynn and West Norfolk,E07000146,20/01/2022,Financial Services,Agency Staff,Hays Specialist Recruitment,21012202,"2,360.00"
Borough Council of Kings Lynn and West Norfolk,E07000146,20/01/2022,Cultrl & Other Activities,Membership & Subscription,British Destinations Ltd,21011875,"1,550.00"
Borough Council of Kings Lynn and West Norfolk,E07000146,20/01/2022,Sth Quay Sommerfield & Thomas BRP,Works,Command Pest Control Ltd,21011973,"2,235.00"
Borough Council of Kings Lynn and West Norfolk,E07000146,20/01/2022,Printroom,Other Machine Lease,Konica Minolta Business Solutions,22007318,"2,509.56"
Borough Council of Kings Lynn and West Norfolk,E07000146,20/01/2022,Printroom,Konica Usage,Konica Minolta Business Solutions,22007319,"2,618.96"
Borough Council of Kings Lynn and West Norfolk,E07000146,20/01/2022,Training Holding Account,Training,Association of Electoral Administrators,21012260,900.00
Borough Council of Kings Lynn and West Norfolk,E07000146,20/01/2022,Rough Sleeper Initiative Y3,Miscellaneous,The Purfleet Trust,21012232,605.00
Borough Council of Kings Lynn and West Norfolk,E07000146,20/01/2022,Supplier Holding Account,Vehicle - repairs & Maint,Paul Johnson Motor Services Ltd,22007329,148.60
Borough Council of Kings Lynn and West Norfolk,E07000146,20/01/2022,Supplier Holding Account,Vehicle - repairs & Maint,Paul Johnson Motor Services Ltd,22007329,"2,719.45"
Borough Council of Kings Lynn and West Norfolk,E07000146,24/01/2022,Wash East Coast - CIC,Repairs & Maintenance,Environment Agency,21012312,"50,583.31"
Borough Council of Kings Lynn and West Norfolk,E07000146,24/01/2022,Car Park - Great Yarmouth,Repairs & Maintenance,Metric Group Ltd,21012293,"4,095.00"
Borough Council of Kings Lynn and West Norfolk,E07000146,24/01/2022,Towns Fund,Professional Fees,Mott MacDonald Limited,21012294,"20,470.00"
Borough Council of Kings Lynn and West Norfolk,E07000146,24/01/2022,Parking Operations - Brgh,Repairs & Maintenance,Norfolk County Council,21012292,"2,648.76"
Borough Council of Kings Lynn and West Norfolk,E07000146,24/01/2022,Head of Legal Services,External Legal fees,North Norfolk District Council,22007342,800.00
Borough Council of Kings Lynn and West Norfolk,E07000146,24/01/2022,Head of Legal Services,External Legal fees,North Norfolk District Council,22007342,40.00
Borough Council of Kings Lynn and West Norfolk,E07000146,24/01/2022,Head of Legal Services,External Legal fees,North Norfolk District Council,22007343,500.00
Borough Council of Kings Lynn and West Norfolk,E07000146,24/01/2022,Public Cleansing,Repairs & Maintenance,Pick & Banham,21012327,425.00
Borough Council of Kings Lynn and West Norfolk,E07000146,24/01/2022,Coast Defence/Protection,Repairs & Maintenance,C G Godfrey Ltd,21012268,"31,706.68"
Borough Council of Kings Lynn and West Norfolk,E07000146,24/01/2022,Register of Electors,Stationery & Office,Civica Election Services Ltd,22007336,"3,252.02"
Borough Council of Kings Lynn and West Norfolk,E07000146,24/01/2022,Register of Electors,Stationery & Office,Civica Election Services Ltd,22007336,225.00
Borough Council of Kings Lynn and West Norfolk,E07000146,24/01/2022,Mintlyn Crematorium,Trade Waste,Facultatieve Technologies Ltd,21012290,968.88
Borough Council of Kings Lynn and West Norfolk,E07000146,24/01/2022,Mintlyn Crematorium,Professional Fees,Zagota Creation Ltd,21012278,725.00
Borough Council of Kings Lynn and West Norfolk,E07000146,24/01/2022,Financial Services,Agency Staff,Hays Specialist Recruitment,21012304,"2,360.00"
Borough Council of Kings Lynn and West Norfolk,E07000146,24/01/2022,Property Services,Tools And Equipment,TelefonicaO2UK Ltd,21012286,999.33
Borough Council of Kings Lynn and West Norfolk,E07000146,24/01/2022,Crematorium Trading Account,Webcasts/Tributes/Recordings,Vivedia Ltd,21012026,"2,632.00"
Borough Council of Kings Lynn and West Norfolk,E07000146,24/01/2022,EZ Dev of Spec Units,Works,R G Carter Cambridge Ltd,21012297,"401,520.90"
Borough Council of Kings Lynn and West Norfolk,E07000146,24/01/2022,Kings Court Kings Lynn,Covid 19,David Priest Fifp & Carpentry Solutions,21012287,"1,003.00"
Borough Council of Kings Lynn and West Norfolk,E07000146,24/01/2022,Public conveniences,Sewerage/Cesspool Empty,BACO-Compak (Norfolk) Ltd,21012313,710.00
Borough Council of Kings Lynn and West Norfolk,E07000146,24/01/2022,Public conveniences,Sewerage/Cesspool Empty,BACO-Compak (Norfolk) Ltd,21012311,"1,075.00"
Borough Council of Kings Lynn and West Norfolk,E07000146,24/01/2022,ICT,Communications,Vodafone Ltd,21012281,"1,781.55"
Borough Council of Kings Lynn and West Norfolk,E07000146,24/01/2022,Parking Operations - Brgh,Repairs & Maintenance,E Akers,21012323,927.35
Borough Council of Kings Lynn and West Norfolk,E07000146,27/01/2022,Parking Operations - Brgh,Repairs & Maintenance,E Akers,21012318,300.00
Borough Council of Kings Lynn and West Norfolk,E07000146,27/01/2022,Parking Operations - Brgh,Repairs & Maintenance,E Akers,21012318,259.05
Borough Council of Kings Lynn and West Norfolk,E07000146,27/01/2022,Mintlyn Crematorium,Membership & Subscription,"Fed, of Burial & Cremation Authorities",22007235,983.80
Borough Council of Kings Lynn and West Norfolk,E07000146,27/01/2022,Mintlyn Crematorium,Membership & Subscription,"Fed, of Burial & Cremation Authorities",22007235,61.20
Borough Council of Kings Lynn and West Norfolk,E07000146,27/01/2022,General Property,Repairs & Maintenance,KJN Landscapes,21012404,750.00
Borough Council of Kings Lynn and West Norfolk,E07000146,27/01/2022,Home Assistance Loans,Works,Mr Brights Ltd,21011857,"8,340.00"
Borough Council of Kings Lynn and West Norfolk,E07000146,27/01/2022,Flitcham Workshops,Repairs & Maintenance,Neville Godfrey Ltd,21012150,"1,950.00"
Borough Council of Kings Lynn and West Norfolk,E07000146,27/01/2022,Comm Infrastructure Levy,Small Projects,North Wootton Parish Council,22007353,"10,000.00"
Borough Council of Kings Lynn and West Norfolk,E07000146,27/01/2022,Financial Services,Postages,Royal Mail Group Ltd,22007359,58.08
Borough Council of Kings Lynn and West Norfolk,E07000146,27/01/2022,Benefit Administration,Postages,Royal Mail Group Ltd,22007359,515.59
Borough Council of Kings Lynn and West Norfolk,E07000146,27/01/2022,Cost of Collection - CTax,Postages,Royal Mail Group Ltd,22007359,669.46
Borough Council of Kings Lynn and West Norfolk,E07000146,27/01/2022,Kings Lynn Bid,Postages,Royal Mail Group Ltd,22007359,0.44
Borough Council of Kings Lynn and West Norfolk,E07000146,27/01/2022,Pub & Tourism int charges,Postages,Royal Mail Group Ltd,22007359,17.24
Borough Council of Kings Lynn and West Norfolk,E07000146,27/01/2022,Benefit Administration,Postages,Royal Mail Group Ltd,22007359,5.55
Borough Council of Kings Lynn and West Norfolk,E07000146,27/01/2022,Cost of Collection - CTax,Postages,Royal Mail Group Ltd,22007359,1.65
Borough Council of Kings Lynn and West Norfolk,E07000146,27/01/2022,Dry Box Collection Scheme,Waste Processing Cost,Norse Environmental Services,21012174,"44,276.61"
Borough Council of Kings Lynn and West Norfolk,E07000146,27/01/2022,Food Waste,Waste Processing Cost,Norse Environmental Services,21012175,"6,467.34"
Borough Council of Kings Lynn and West Norfolk,E07000146,27/01/2022,Parking Operations - Brgh,Electricity,Siemens Plc,22007360,131.18
Borough Council of Kings Lynn and West Norfolk,E07000146,27/01/2022,Corn Exchange,Electricity,Siemens Plc,22007360,109.68
Borough Council of Kings Lynn and West Norfolk,E07000146,27/01/2022,Kings Court Kings Lynn,Electricity,Siemens Plc,22007360,109.68
Borough Council of Kings Lynn and West Norfolk,E07000146,27/01/2022,Oasis General Account,Electricity,Siemens Plc,22007360,109.68
Borough Council of Kings Lynn and West Norfolk,E07000146,27/01/2022,Lease Cars,Leasing,Commercial Services Trading Ltd,22007354,"1,866.52"
Borough Council of Kings Lynn and West Norfolk,E07000146,27/01/2022,Lease Cars,Leasing,Commercial Services Trading Ltd,22007354,"1,522.12"
Borough Council of Kings Lynn and West Norfolk,E07000146,27/01/2022,Housing Options Programme,Homeless Prevention Fund,P Harvey,22007362,600.00
Borough Council of Kings Lynn and West Norfolk,E07000146,27/01/2022,Hardwick Industrial Estate,Repairs & Maintenance,1-2 Call Drainage & Groundwork Ltd,21012336,"1,780.00"
Borough Council of Kings Lynn and West Norfolk,E07000146,27/01/2022,Trafalgar (DM)  Industrial Estate,Repairs & Maintenance,1-2 Call Drainage & Groundwork Ltd,21012337,"1,080.00"
Borough Council of Kings Lynn and West Norfolk,E07000146,27/01/2022,St Johns Business Park,Repairs & Maintenance,1-2 Call Drainage & Groundwork Ltd,21012339,540.00
Borough Council of Kings Lynn and West Norfolk,E07000146,27/01/2022,South Lynn Community Centre,Repairs & Maintenance,1-2 Call Drainage & Groundwork Ltd,21012341,930.00
Borough Council of Kings Lynn and West Norfolk,E07000146,27/01/2022,Tech/Officers/Repairs,Vehicle - repairs & Maint,Trakm8 Limited,22007361,9.99
Borough Council of Kings Lynn and West Norfolk,E07000146,27/01/2022,Tech/Officers/Repairs,Vehicle - repairs & Maint,Trakm8 Limited,22007361,9.99
Borough Council of Kings Lynn and West Norfolk,E07000146,27/01/2022,Careline,Vehicle - repairs & Maint,Trakm8 Limited,22007361,9.99
Borough Council of Kings Lynn and West Norfolk,E07000146,27/01/2022,Public Cleansing,Vehicle - repairs & Maint,Trakm8 Limited,22007361,51.00
Borough Council of Kings Lynn and West Norfolk,E07000146,27/01/2022,Careline,Vehicle - repairs & Maint,Trakm8 Limited,22007361,51.00
Borough Council of Kings Lynn and West Norfolk,E07000146,27/01/2022,Neighbourhood Teams,Vehicle - repairs & Maint,Trakm8 Limited,22007361,51.00
Borough Council of Kings Lynn and West Norfolk,E07000146,27/01/2022,Public Cleansing,Vehicle - repairs & Maint,Trakm8 Limited,22007361,51.00
Borough Council of Kings Lynn and West Norfolk,E07000146,27/01/2022,Neighbourhood Teams,Vehicle - repairs & Maint,Trakm8 Limited,22007361,51.00
Borough Council of Kings Lynn and West Norfolk,E07000146,27/01/2022,GM Central Area,Vehicle - repairs & Maint,Trakm8 Limited,22007361,51.00
Borough Council of Kings Lynn and West Norfolk,E07000146,27/01/2022,GM Central Area,Vehicle - repairs & Maint,Trakm8 Limited,22007361,51.00
Borough Council of Kings Lynn and West Norfolk,E07000146,27/01/2022,Neighbourhood Teams,Vehicle - repairs & Maint,Trakm8 Limited,22007361,51.00
Borough Council of Kings Lynn and West Norfolk,E07000146,27/01/2022,CCTV,Vehicle - repairs & Maint,Trakm8 Limited,22007361,51.00
Borough Council of Kings Lynn and West Norfolk,E07000146,27/01/2022,Public Cleansing,Vehicle - repairs & Maint,Trakm8 Limited,22007361,51.00
Borough Council of Kings Lynn and West Norfolk,E07000146,27/01/2022,GM Central Area,Vehicle - repairs & Maint,Trakm8 Limited,22007361,51.00
Borough Council of Kings Lynn and West Norfolk,E07000146,27/01/2022,Public Cleansing,Vehicle - repairs & Maint,Trakm8 Limited,22007361,51.00
Borough Council of Kings Lynn and West Norfolk,E07000146,27/01/2022,Neighbourhood Teams,Vehicle - repairs & Maint,Trakm8 Limited,22007361,51.00
Borough Council of Kings Lynn and West Norfolk,E07000146,27/01/2022,Neighbourhood Teams,Vehicle - repairs & Maint,Trakm8 Limited,22007361,51.00
Borough Council of Kings Lynn and West Norfolk,E07000146,27/01/2022,Public Cleansing,Vehicle - repairs & Maint,Trakm8 Limited,22007361,51.00
Borough Council of Kings Lynn and West Norfolk,E07000146,27/01/2022,GM Central Area,Vehicle - repairs & Maint,Trakm8 Limited,22007361,51.00
Borough Council of Kings Lynn and West Norfolk,E07000146,27/01/2022,Public Cleansing,Vehicle - repairs & Maint,Trakm8 Limited,22007361,51.00
Borough Council of Kings Lynn and West Norfolk,E07000146,27/01/2022,GM Central Area,Vehicle - repairs & Maint,Trakm8 Limited,22007361,51.00
Borough Council of Kings Lynn and West Norfolk,E07000146,27/01/2022,Public Cleansing,Vehicle - repairs & Maint,Trakm8 Limited,22007361,51.00
Borough Council of Kings Lynn and West Norfolk,E07000146,27/01/2022,Public Cleansing,Vehicle - repairs & Maint,Trakm8 Limited,22007361,51.00
Borough Council of Kings Lynn and West Norfolk,E07000146,27/01/2022,Public Cleansing,Vehicle - repairs & Maint,Trakm8 Limited,22007361,51.00
Borough Council of Kings Lynn and West Norfolk,E07000146,27/01/2022,CCTV,Vehicle - repairs & Maint,Trakm8 Limited,22007361,51.00
Borough Council of Kings Lynn and West Norfolk,E07000146,27/01/2022,Public Cleansing,Vehicle - repairs & Maint,Trakm8 Limited,22007361,51.00
Borough Council of Kings Lynn and West Norfolk,E07000146,27/01/2022,Public Cleansing,Vehicle - repairs & Maint,Trakm8 Limited,22007361,51.00
Borough Council of Kings Lynn and West Norfolk,E07000146,27/01/2022,Public Cleansing,Vehicle - repairs & Maint,Trakm8 Limited,22007361,51.00
Borough Council of Kings Lynn and West Norfolk,E07000146,27/01/2022,Public Cleansing,Vehicle - repairs & Maint,Trakm8 Limited,22007361,51.00
Borough Council of Kings Lynn and West Norfolk,E07000146,27/01/2022,Public Cleansing,Vehicle - repairs & Maint,Trakm8 Limited,22007361,51.00
Borough Council of Kings Lynn and West Norfolk,E07000146,27/01/2022,Public Cleansing,Vehicle - repairs & Maint,Trakm8 Limited,22007361,51.00
Borough Council of Kings Lynn and West Norfolk,E07000146,27/01/2022,GM Central Area,Vehicle - repairs & Maint,Trakm8 Limited,22007361,51.00
Borough Council of Kings Lynn and West Norfolk,E07000146,27/01/2022,Public Cleansing,Vehicle - repairs & Maint,Trakm8 Limited,22007361,51.00
Borough Council of Kings Lynn and West Norfolk,E07000146,27/01/2022,Public Cleansing,Vehicle - repairs & Maint,Trakm8 Limited,22007361,51.00
Borough Council of Kings Lynn and West Norfolk,E07000146,27/01/2022,Public Cleansing,Vehicle - repairs & Maint,Trakm8 Limited,22007361,51.00
Borough Council of Kings Lynn and West Norfolk,E07000146,27/01/2022,Public Cleansing,Vehicle - repairs & Maint,Trakm8 Limited,22007361,51.00
Borough Council of Kings Lynn and West Norfolk,E07000146,27/01/2022,Neighbourhood Teams,Vehicle - repairs & Maint,Trakm8 Limited,22007361,51.00
Borough Council of Kings Lynn and West Norfolk,E07000146,27/01/2022,Public Cleansing,Vehicle - repairs & Maint,Trakm8 Limited,22007361,51.00
Borough Council of Kings Lynn and West Norfolk,E07000146,27/01/2022,Neighbourhood Teams,Vehicle - repairs & Maint,Trakm8 Limited,22007361,51.00
Borough Council of Kings Lynn and West Norfolk,E07000146,27/01/2022,GM Central Area,Vehicle - repairs & Maint,Trakm8 Limited,22007361,51.00
Borough Council of Kings Lynn and West Norfolk,E07000146,27/01/2022,Public Cleansing,Vehicle - repairs & Maint,Trakm8 Limited,22007361,51.00
Borough Council of Kings Lynn and West Norfolk,E07000146,27/01/2022,Public Cleansing,Vehicle - repairs & Maint,Trakm8 Limited,22007361,51.00
Borough Council of Kings Lynn and West Norfolk,E07000146,27/01/2022,Parking Operations - Brgh,Repairs & Maintenance,Securitas Security Services (UK) Ltd,21012369,"1,150.00"
Borough Council of Kings Lynn and West Norfolk,E07000146,27/01/2022,Standard Desktop Refresh,Computer Equip (Software),Bytes Software Services Ltd,21012314,"4,468.00"
Borough Council of Kings Lynn and West Norfolk,E07000146,27/01/2022,Planning Control,Professional Fees,Sharpe Pritchard,21012015,"2,000.00"
Borough Council of Kings Lynn and West Norfolk,E07000146,27/01/2022,Standard Desktop Refresh,Computer Equip (Software),Bytes Software Services Ltd,21012315,"4,561.67"
Borough Council of Kings Lynn and West Norfolk,E07000146,27/01/2022,Crematorium Trading Account,Memorial Plates,Anglia Sign Casting Ltd,21010733,859.86
Borough Council of Kings Lynn and West Norfolk,E07000146,27/01/2022,Crematorium Trading Account,Renewal Plates - Exp,Anglia Sign Casting Ltd,21010733,15.00
Borough Council of Kings Lynn and West Norfolk,E07000146,27/01/2022,Mintlyn Crematorium,Repairs & Maintenance,Vivedia Ltd,21012375,"3,937.19"
Borough Council of Kings Lynn and West Norfolk,E07000146,27/01/2022,Personnel Welfare,Staff Welfare,Mark Andrews,21012047,640.00
Borough Council of Kings Lynn and West Norfolk,E07000146,27/01/2022,KL Innovation Centre,Repairs & Maintenance,Onyx It,21012387,630.00
Borough Council of Kings Lynn and West Norfolk,E07000146,27/01/2022,Kings Lynn Bus Station,Rent,APAM RE Vancouver GP Ltd Rent,22007357,"11,124.30"
Borough Council of Kings Lynn and West Norfolk,E07000146,27/01/2022,Kings Lynn Bus Station,Rent,APAM RE Vancouver GP Ltd Rent,22007358,"11,124.30"
Borough Council of Kings Lynn and West Norfolk,E07000146,27/01/2022,Rough Sleeper Fund,Covid 19,Bunkabin Ltd,21012103,"2,016.00"
Borough Council of Kings Lynn and West Norfolk,E07000146,27/01/2022,Rough Sleeper Fund,Covid 19,Bunkabin Ltd,21012104,"1,764.00"
Borough Council of Kings Lynn and West Norfolk,E07000146,27/01/2022,Heacham Toilets South Beach,Works,Templeman Associates Ltd,21012285,"2,000.00"
Borough Council of Kings Lynn and West Norfolk,E07000146,27/01/2022,Environmental Protection,Agency Staff,Vivid Resourcing,21012076,"3,742.40"
Borough Council of Kings Lynn and West Norfolk,E07000146,27/01/2022,Balance Sheet,VAT Input - VAT Only Purchases,Marston (Holdings) Ltd,22007320,791.14
Borough Council of Kings Lynn and West Norfolk,E07000146,27/01/2022,Corn Ex Refurbish Seating,Works,Whaleys Bradford Ltd,21011284,"2,549.88"
Borough Council of Kings Lynn and West Norfolk,E07000146,27/01/2022,Corn Ex Refurbish Seating,Works,Whaleys Bradford Ltd,21011284,32.15
Borough Council of Kings Lynn and West Norfolk,E07000146,27/01/2022,Towns Fund,Professional Fees,Deyton Bell Ltd,21012122,"3,000.00"
Borough Council of Kings Lynn and West Norfolk,E07000146,27/01/2022,Training Holding Account,Training,The Chartered Institute of Procurement & Supply,21012316,"3,450.00"
Borough Council of Kings Lynn and West Norfolk,E07000146,27/01/2022,Parkway - Gaywood,Professional Fees,Andrew Golland Associates Ltd,21012338,"2,400.00"
Borough Council of Kings Lynn and West Norfolk,E07000146,31/01/2022,Towns Fund Active and Clean Connectivity,Professional Fees,INVVU Construction Consultants Ltd,21012445,"5,075.00"
Borough Council of Kings Lynn and West Norfolk,E07000146,31/01/2022,Refuse Vehicles,Works,Heathrow LDV,21012401,"32,822.00"
Borough Council of Kings Lynn and West Norfolk,E07000146,31/01/2022,Refuse Vehicles,Works,Heathrow LDV,21012401,"-5,945.00"
Borough Council of Kings Lynn and West Norfolk,E07000146,31/01/2022,Refuse Vehicles,Works,Heathrow LDV,21012402,"32,822.00"
Borough Council of Kings Lynn and West Norfolk,E07000146,31/01/2022,Refuse Vehicles,Works,Heathrow LDV,21012402,"-5,945.00"
Borough Council of Kings Lynn and West Norfolk,E07000146,31/01/2022,COWA School of Nursing,Equipment/Materials,College of West Anglia,21012458,"506,526.87"
Borough Council of Kings Lynn and West Norfolk,E07000146,31/01/2022,Corporate Policy,Stationery & Office,Dell Corporation Ltd,21012461,544.31
Borough Council of Kings Lynn and West Norfolk,E07000146,31/01/2022,Air Quality,Tools And Equipment,Dell Corporation Ltd,21012378,530.76
Borough Council of Kings Lynn and West Norfolk,E07000146,31/01/2022,Kings Court Service Charges,Covid 19,V & J Knitwear Ltd,21012491,918.00
Borough Council of Kings Lynn and West Norfolk,E07000146,31/01/2022,Rough Sleeper Fund,Covid 19,The Grange Hotel,21012468,"5,181.94"
Borough Council of Kings Lynn and West Norfolk,E07000146,31/01/2022,Town Hall Kings Lynn,Tools And Equipment,Amaze Blind & Curtains Ltd,21012438,451.00
Borough Council of Kings Lynn and West Norfolk,E07000146,31/01/2022,North Lynn Managed Workshops,Repairs & Maintenance,AMR Mechanical Services Ltd,21012317,"1,291.14"
Borough Council of Kings Lynn and West Norfolk,E07000146,31/01/2022,Cost of Collection - CTax,Postages,DSI Billing Services Ltd,22007368,"1,980.61"
Borough Council of Kings Lynn and West Norfolk,E07000146,31/01/2022,Marriotts Warehouse,Repairs & Maintenance,Marriotts Warehouse Trust,21012475,"1,096.71"
Borough Council of Kings Lynn and West Norfolk,E07000146,31/01/2022,West Winch Growth Area,Professional Fees,Engaging People Company,21012441,550.00
Borough Council of Kings Lynn and West Norfolk,E07000146,31/01/2022,Corporate,Bank Charges,Worldpay Ltd,22007610,"12,119.62"
Borough Council of Kings Lynn and West Norfolk,E07000146,31/01/2022,Corporate,Bank Charges,Worldpay Ltd,22007610,471.83
Borough Council of Kings Lynn and West Norfolk,E07000146,31/01/2022,West Winch Growth Area,Professional Fees,Engaging People Company,21012442,825.00
Borough Council of Kings Lynn and West Norfolk,E07000146,31/01/2022,KL Arts Centre,Hirings Ticketed,Kings Lynn Winter Night Shelter,22007369,"4,337.50"
Borough Council of Kings Lynn and West Norfolk,E07000146,31/01/2022,KL Arts Centre,Hiring Charges Income,Kings Lynn Winter Night Shelter,22007369,-388.83
Borough Council of Kings Lynn and West Norfolk,E07000146,31/01/2022,KL Arts Centre,Commission On Box Office,Kings Lynn Winter Night Shelter,22007369,-260.25
Borough Council of Kings Lynn and West Norfolk,E07000146,31/01/2022,KL Arts Centre,Credit Card Recharge,Kings Lynn Winter Night Shelter,22007369,-205.20
Borough Council of Kings Lynn and West Norfolk,E07000146,31/01/2022,West Winch Growth Area,Professional Fees,Brecher LLP,21012443,"1,886.50"
Borough Council of Kings Lynn and West Norfolk,E07000146,31/01/2022,West Winch Growth Area,Professional Fees,Brecher LLP,21012435,"4,385.00"
Borough Council of Kings Lynn and West Norfolk,E07000146,31/01/2022,Decrim - Other,Agency,Norfolk County Council,21012432,"93,678.13"
Borough Council of Kings Lynn and West Norfolk,E07000146,31/01/2022,Decrim - Other,Agency,Norfolk County Council,21012433,"21,672.56"
Borough Council of Kings Lynn and West Norfolk,E07000146,31/01/2022,Planning Control,Professional Fees,North Norfolk District Council,21012477,625.00
Borough Council of Kings Lynn and West Norfolk,E07000146,31/01/2022,Head of Legal Services,External Legal fees,North Norfolk District Council,22007370,300.00
Borough Council of Kings Lynn and West Norfolk,E07000146,31/01/2022,Head of Legal Services,External Legal fees,North Norfolk District Council,22007370,153.00
Borough Council of Kings Lynn and West Norfolk,E07000146,31/01/2022,Head of Legal Services,External Legal fees,North Norfolk District Council,22007371,300.00
Borough Council of Kings Lynn and West Norfolk,E07000146,31/01/2022,Head of Legal Services,External Legal fees,North Norfolk District Council,22007371,153.00
Borough Council of Kings Lynn and West Norfolk,E07000146,31/01/2022,Financial Services,Postages,Royal Mail Group Ltd,22007374,281.98
Borough Council of Kings Lynn and West Norfolk,E07000146,31/01/2022,Benefit Administration,Postages,Royal Mail Group Ltd,22007374,507.79
Borough Council of Kings Lynn and West Norfolk,E07000146,31/01/2022,Cost of Collection - CTax,Postages,Royal Mail Group Ltd,22007374,681.62
Borough Council of Kings Lynn and West Norfolk,E07000146,31/01/2022,Kings Lynn Bid,Postages,Royal Mail Group Ltd,22007374,19.68
Borough Council of Kings Lynn and West Norfolk,E07000146,31/01/2022,Pub & Tourism int charges,Postages,Royal Mail Group Ltd,22007374,9.44
Borough Council of Kings Lynn and West Norfolk,E07000146,31/01/2022,Benefit Administration,Postages,Royal Mail Group Ltd,22007374,14.77
Borough Council of Kings Lynn and West Norfolk,E07000146,31/01/2022,ICT,Computer Software Maint,HFX Limited,21012444,"23,218.14"
Borough Council of Kings Lynn and West Norfolk,E07000146,03/02/2022,Home Improvements Agency,Agency Staff,Seven Resourcing Ltd,21012231,889.16
Borough Council of Kings Lynn and West Norfolk,E07000146,03/02/2022,DWP at Kings Court,Contract Security,MPD FM Ltd,21012478,"1,437.10"
Borough Council of Kings Lynn and West Norfolk,E07000146,03/02/2022,DWP at Kings Court,Contract Security,MPD FM Ltd,21012479,"6,485.40"
Borough Council of Kings Lynn and West Norfolk,E07000146,03/02/2022,Rough Sleeper Fund,Covid 19,Excaliber Security Services Ltd,21012574,"6,566.40"
Borough Council of Kings Lynn and West Norfolk,E07000146,03/02/2022,Rough Sleeper Fund,Covid 19,Excaliber Security Services Ltd,21012575,"5,107.20"
Borough Council of Kings Lynn and West Norfolk,E07000146,03/02/2022,ICT,Computer Software Maint,Insight Direct (UK) Ltd,21012135,"1,865.00"
Borough Council of Kings Lynn and West Norfolk,E07000146,03/02/2022,Community Transport,Transport Subsidies,West Lynn Ferry Ltd,21012509,"5,149.98"
Borough Council of Kings Lynn and West Norfolk,E07000146,03/02/2022,EZ Premises Costs,Professional Fees,EDP Environmental Ltd,21012521,"2,160.00"
Borough Council of Kings Lynn and West Norfolk,E07000146,03/02/2022,Personnel Services,Tools And Equipment,Digital ID Ltd,21012059,749.95
Borough Council of Kings Lynn and West Norfolk,E07000146,03/02/2022,Public Realm/Town Deal,Equipment/Materials,Hardscape Products Ltd,21012203,"5,040.80"
Borough Council of Kings Lynn and West Norfolk,E07000146,03/02/2022,Food Hygiene General,Professional Fees,Vivid Resourcing,21012184,"1,389.09"
Borough Council of Kings Lynn and West Norfolk,E07000146,03/02/2022,Careline,Tools And Equipment,Chiptech International Ltd,21012110,"7,644.00"
Borough Council of Kings Lynn and West Norfolk,E07000146,03/02/2022,Towns Fund,Professional Fees,Deyton Bell Ltd,21012123,"3,500.00"
Borough Council of Kings Lynn and West Norfolk,E07000146,03/02/2022,Housing Options Programme,Homeless Prevention Fund,Sarah Leamon,22007393,"1,300.00"
Borough Council of Kings Lynn and West Norfolk,E07000146,03/02/2022,Comm Infrastructure Levy,Small Projects,Stoke Ferry Community Enterprise Ltd,22007384,"5,596.33"
Borough Council of Kings Lynn and West Norfolk,E07000146,03/02/2022,Food Hygiene/H&S Sals/Sup,Professional Fees,Stephen Hockman QC,22007389,"21,151.70"
Borough Council of Kings Lynn and West Norfolk,E07000146,03/02/2022,Public Cleansing,Vehicle - repairs & Maint,Ford & Slater DAF Kings Lynn,21012572,"1,612.18"
Borough Council of Kings Lynn and West Norfolk,E07000146,03/02/2022,Public Cleansing,Vehicle - repairs & Maint,Ford & Slater DAF Kings Lynn,21012572,126.00
Borough Council of Kings Lynn and West Norfolk,E07000146,03/02/2022,KL Innovation Centre,Repairs & Maintenance,Mr Brights Ltd,21012087,"1,721.16"
Borough Council of Kings Lynn and West Norfolk,E07000146,03/02/2022,Financial Services,Postages,Royal Mail Group Ltd,22007392,144.68
Borough Council of Kings Lynn and West Norfolk,E07000146,03/02/2022,Benefit Administration,Postages,Royal Mail Group Ltd,22007392,299.52
Borough Council of Kings Lynn and West Norfolk,E07000146,03/02/2022,Cost of Collection - CTax,Postages,Royal Mail Group Ltd,22007392,592.84
Borough Council of Kings Lynn and West Norfolk,E07000146,03/02/2022,Kings Lynn Bid,Postages,Royal Mail Group Ltd,22007392,1.44
Borough Council of Kings Lynn and West Norfolk,E07000146,03/02/2022,Pub & Tourism int charges,Postages,Royal Mail Group Ltd,22007392,1.44
Borough Council of Kings Lynn and West Norfolk,E07000146,03/02/2022,Benefit Administration,Postages,Royal Mail Group Ltd,22007392,8.10
Borough Council of Kings Lynn and West Norfolk,E07000146,03/02/2022,ICT,MPhone Usage & Top-up,Vodafone (Corporate) Ltd,21012510,"5,720.04"
Borough Council of Kings Lynn and West Norfolk,E07000146,03/02/2022,ICT,MPhone Usage & Top-up,Vodafone (Corporate) Ltd,21012510,6.54
Borough Council of Kings Lynn and West Norfolk,E07000146,03/02/2022,Community Projects CS,Service Level Agreements,Shelter,21012522,"15,121.00"
Borough Council of Kings Lynn and West Norfolk,E07000146,03/02/2022,Public Cleansing,Cleaning Material & Equip,V & J Knitwear Ltd,21012527,552.62
Borough Council of Kings Lynn and West Norfolk,E07000146,03/02/2022,Mintlyn Crematorium,Repairs & Maintenance,AMR Electrical Services Ltd,21012459,689.84
Borough Council of Kings Lynn and West Norfolk,E07000146,03/02/2022,St Johns Business Park,Repairs & Maintenance,1-2 Call Drainage & Groundwork Ltd,21012502,525.00
Borough Council of Kings Lynn and West Norfolk,E07000146,03/02/2022,Training Holding Account,Training,Institute of Licensing (Events) Ltd,21012523,950.00
Borough Council of Kings Lynn and West Norfolk,E07000146,03/02/2022,W Norfolk Housing Co Ltd,Repairs & Maintenance,Advanced Water Treatment (UK) Ltd,21010008,449.00
Borough Council of Kings Lynn and West Norfolk,E07000146,03/02/2022,Community Projects CRS,Small Projects,Norfolk Community Foundation,21012553,"4,000.00"
Borough Council of Kings Lynn and West Norfolk,E07000146,03/02/2022,Community Projects CRS,Admin Costs,Norfolk Community Foundation,21012553,"6,420.00"
Borough Council of Kings Lynn and West Norfolk,E07000146,03/02/2022,Community Projects,Works,Norfolk Community Foundation,21012553,"20,397.00"
Borough Council of Kings Lynn and West Norfolk,E07000146,03/02/2022,Community Projects CRS,Donations,Norfolk Community Foundation,21012553,"13,030.00"
Borough Council of Kings Lynn and West Norfolk,E07000146,03/02/2022,Trade Bins,Equipment/Materials,UK Container Maintenance Ltd,21012185,"5,000.00"
Borough Council of Kings Lynn and West Norfolk,E07000146,03/02/2022,Financial Services,Agency Staff,Hays Specialist Recruitment,21012470,"2,950.00"
Borough Council of Kings Lynn and West Norfolk,E07000146,03/02/2022,Financial Services,Agency Staff,Hays Specialist Recruitment,21012399,885.00
Borough Council of Kings Lynn and West Norfolk,E07000146,03/02/2022,Financial Services,Agency Staff,Hays Specialist Recruitment,21012400,"1,475.00"
Borough Council of Kings Lynn and West Norfolk,E07000146,03/02/2022,Food Hygiene General,Shellfish Sampling,Eastern IFCA,21012463,"2,304.00"
Borough Council of Kings Lynn and West Norfolk,E07000146,03/02/2022,Fairstead Community  Centre,Repairs & Maintenance,Robert Fox,21012456,"2,045.00"
Borough Council of Kings Lynn and West Norfolk,E07000146,03/02/2022,Fairstead Community  Centre,Repairs & Maintenance,Robert Fox,21012456,510.00
Borough Council of Kings Lynn and West Norfolk,E07000146,03/02/2022,Parking Operations - Brgh,Tek Fund,Traffic Enforcement Centre,22007394,"10,000.00"
Borough Council of Kings Lynn and West Norfolk,E07000146,03/02/2022,NNDC Carpark Operation,Security Services Charge,LOOMIS UK Ltd,21012591,316.87
Borough Council of Kings Lynn and West Norfolk,E07000146,03/02/2022,Leisure Management Costs,Security Services Charge,LOOMIS UK Ltd,21012591,515.63
Borough Council of Kings Lynn and West Norfolk,E07000146,03/02/2022,Parking Operations - Brgh,Security Services Charge,LOOMIS UK Ltd,21012591,809.72
Borough Council of Kings Lynn and West Norfolk,E07000146,03/02/2022,Comm Infrastructure Levy,Advertising & Marketing,Your Local Paper Ltd,21012183,500.00
Borough Council of Kings Lynn and West Norfolk,E07000146,03/02/2022,Personnel Services,Membership & Subscription,Jobtrain Ltd,21012091,"1,733.00"
Borough Council of Kings Lynn and West Norfolk,E07000146,03/02/2022,Home Improvements Agency,Agency Staff,Seven Resourcing Ltd,21012230,"1,259.52"
Borough Council of Kings Lynn and West Norfolk,E07000146,03/02/2022,NNDC Carpark Operation,Stationery & Office,Bemrose Booth Paragon Ltd,21012100,"2,313.75"
Borough Council of Kings Lynn and West Norfolk,E07000146,03/02/2022,Trade Refuse,Added Years Pension,Norfolk Pension Fund,21012552,"-3,067.10"
Borough Council of Kings Lynn and West Norfolk,E07000146,03/02/2022,Domestic Refuse,Added Years Pension,Norfolk Pension Fund,21012552,430.09
Borough Council of Kings Lynn and West Norfolk,E07000146,03/02/2022,Corporate,Added Years Pension,Norfolk Pension Fund,21012552,"20,122.97"
Borough Council of Kings Lynn and West Norfolk,E07000146,03/02/2022,Apprenticeship Scheme,Apprentice Levy,Bedford Borough Council,21012508,"4,555.00"
Borough Council of Kings Lynn and West Norfolk,E07000146,03/02/2022,Register of Electors,Stationery & Office,Civica Election Services Ltd,22007337,551.20
Borough Council of Kings Lynn and West Norfolk,E07000146,07/02/2022,Financial Services,Computer Equipment,Dell Corporation Ltd,21012581,530.76
Borough Council of Kings Lynn and West Norfolk,E07000146,07/02/2022,KL Innovation Centre,Repairs & Maintenance,Mr Brights Ltd,21012559,"1,973.16"
Borough Council of Kings Lynn and West Norfolk,E07000146,07/02/2022,"St Edmunds, D'ham Mkt",Repairs & Maintenance,Neville Godfrey Ltd,21012654,650.00
Borough Council of Kings Lynn and West Norfolk,E07000146,07/02/2022,Towns Fund Active and Clean Connectivity,Professional Fees,Norfolk County Council,21012556,"22,988.30"
Borough Council of Kings Lynn and West Norfolk,E07000146,07/02/2022,EZ Premises Costs,External Fees/Consultancy,North Norfolk District Council,22007408,"2,700.00"
Borough Council of Kings Lynn and West Norfolk,E07000146,07/02/2022,Internal Audit,Contracted Services,South Norfolk Council,21012600,"2,920.60"
Borough Council of Kings Lynn and West Norfolk,E07000146,07/02/2022,Home Improvements Agency,Agency,David Trundley Design Services Ltd,22007411,875.00
Borough Council of Kings Lynn and West Norfolk,E07000146,07/02/2022,Salters Road,Works,G C Baxter & Associates Ltd,21012621,843.75
Borough Council of Kings Lynn and West Norfolk,E07000146,07/02/2022,Salters Road,Professional Fees,G C Baxter & Associates Ltd,21012622,640.00
Borough Council of Kings Lynn and West Norfolk,E07000146,07/02/2022,Major Housing Management,Professional Fees,G C Baxter & Associates Ltd,21012623,640.00
Borough Council of Kings Lynn and West Norfolk,E07000146,07/02/2022,NORA Phase 4,Professional Fees,G C Baxter & Associates Ltd,21012623,640.00
Borough Council of Kings Lynn and West Norfolk,E07000146,07/02/2022,Postage Services K Court,Postages,Pitney Bowes Purchase Power Pre Pay,22007409,"5,005.04"
Borough Council of Kings Lynn and West Norfolk,E07000146,07/02/2022,Postage Services K Court,Postages,Pitney Bowes Purchase Power Pre Pay,22007409,11.00
Borough Council of Kings Lynn and West Norfolk,E07000146,07/02/2022,Public Cleansing,Vehicle - repairs & Maint,Bucher Muncipal Ltd,21012244,439.38
Borough Council of Kings Lynn and West Norfolk,E07000146,07/02/2022,Public Cleansing,Vehicle - repairs & Maint,Bucher Muncipal Ltd,21012218,972.40
Borough Council of Kings Lynn and West Norfolk,E07000146,07/02/2022,Welfare Reform Funding,Professional Fees,HBINFO Ltd,21012619,855.00
Borough Council of Kings Lynn and West Norfolk,E07000146,07/02/2022,Financial Services,Agency Staff,Hays Specialist Recruitment,21012620,"2,950.00"
Borough Council of Kings Lynn and West Norfolk,E07000146,07/02/2022,Open Cemeteries,Repairs & Maintenance,BACO-Compak (Norfolk) Ltd,21012637,876.00
Borough Council of Kings Lynn and West Norfolk,E07000146,07/02/2022,Open Cemeteries,Tools And Equipment,BACO-Compak (Norfolk) Ltd,21012637,253.56
Borough Council of Kings Lynn and West Norfolk,E07000146,07/02/2022,Parking Operations - Brgh,Repairs & Maintenance,Xylem Water Solutions UK Limited,21012431,"1,399.34"
Borough Council of Kings Lynn and West Norfolk,E07000146,07/02/2022,Hunstanton Bus Station & NCC Library,Contractor Works,Lovell Partnerships Ltd,21012648,"5,400.00"
Borough Council of Kings Lynn and West Norfolk,E07000146,07/02/2022,NORA Phase 4,Contractor Works,Lovell Partnerships Ltd,21012649,"348,332.35"
Borough Council of Kings Lynn and West Norfolk,E07000146,07/02/2022,Parkway - Gaywood,Contractor Works,Lovell Partnerships Ltd,21012650,"20,615.85"
Borough Council of Kings Lynn and West Norfolk,E07000146,07/02/2022,Salters Road,Contractor Works,Lovell Partnerships Ltd,21012651,"304,908.51"
Borough Council of Kings Lynn and West Norfolk,E07000146,07/02/2022,Hunstanton Southend Road,Contractor Works,Lovell Partnerships Ltd,21012652,"18,872.90"
Borough Council of Kings Lynn and West Norfolk,E07000146,07/02/2022,Planning Control,Professional Fees,T Leader St Johns Regulatory Fee Share Account,21012599,"3,765.00"
Borough Council of Kings Lynn and West Norfolk,E07000146,07/02/2022,Parks & Open Spaces,Tree Surgery,Golden Tree Surgeons Ltd,21012647,"1,130.00"
Borough Council of Kings Lynn and West Norfolk,E07000146,07/02/2022,Corporate Communitcations,Professional Fees,Engaging People Company,21012209,550.00
Borough Council of Kings Lynn and West Norfolk,E07000146,07/02/2022,Personnel Welfare,Pre- Employment Medical,Wrightway Health Ltd,21012221,25.00
Borough Council of Kings Lynn and West Norfolk,E07000146,07/02/2022,Personnel Welfare,Employee Medicals,Wrightway Health Ltd,21012221,675.00
Borough Council of Kings Lynn and West Norfolk,E07000146,07/02/2022,Personnel Welfare,Pre- Employment Medical,Wrightway Health Ltd,21012221,54.00
Borough Council of Kings Lynn and West Norfolk,E07000146,07/02/2022,GM Central Area,Covid 19,Enterprise Flex-E Rent,21012665,529.00
Borough Council of Kings Lynn and West Norfolk,E07000146,07/02/2022,Neighbourhood Teams,Covid 19,Enterprise Flex-E Rent,21012665,989.00
Borough Council of Kings Lynn and West Norfolk,E07000146,07/02/2022,Grounds Southern Area,Covid 19,Enterprise Flex-E Rent,21012665,460.00
Borough Council of Kings Lynn and West Norfolk,E07000146,07/02/2022,Careline,Tools And Equipment,Chiptech International Ltd,21012145,"3,136.00"
Borough Council of Kings Lynn and West Norfolk,E07000146,07/02/2022,St Georges Guildhall Complex,Professional Fees,Festival and Events International Ltd,21012626,"5,059.40"
Borough Council of Kings Lynn and West Norfolk,E07000146,07/02/2022,Refuse & Recyc Mgmt,Computer Equipment,Dell Corporation Ltd,21012580,544.31
Borough Council of Kings Lynn and West Norfolk,E07000146,10/02/2022,Internal Audit,Membership & Subscription,Synectics Solutions Ltd,21012190,"6,426.84"
Borough Council of Kings Lynn and West Norfolk,E07000146,10/02/2022,Sth Quay Sommerfield & Thomas CRF,External Fees/Consultancy,Player Roberts Bell Architects Ltd,21012742,"3,432.50"
Borough Council of Kings Lynn and West Norfolk,E07000146,10/02/2022,St Georges Guildhall Complex,Professional Fees,Festival and Events International Ltd,21012720,"5,122.40"
Borough Council of Kings Lynn and West Norfolk,E07000146,10/02/2022,Resort Trading Operations,Tools And Equipment,Portable Space Limited,21012675,"2,070.00"
Borough Council of Kings Lynn and West Norfolk,E07000146,10/02/2022,Public Realm/Town Deal,Professional Fees,Mills & Reeve LLP,21012754,"5,000.00"
Borough Council of Kings Lynn and West Norfolk,E07000146,10/02/2022,Comm Infrastructure Levy,CIL Income,Casini Systems Ltd,22007415,"11,552.56"
Borough Council of Kings Lynn and West Norfolk,E07000146,10/02/2022,Parking Operations - Brgh,Repairs & Maintenance,Downham Door Services,21012644,495.00
Borough Council of Kings Lynn and West Norfolk,E07000146,10/02/2022,Kings Lynn Christmas Lights,Miscellaneous,Kings & Barnhams,21012519,"18,382.57"
Borough Council of Kings Lynn and West Norfolk,E07000146,10/02/2022,Kings Lynn Christmas Lights,Miscellaneous,Kings & Barnhams,21012588,"1,848.17"
Borough Council of Kings Lynn and West Norfolk,E07000146,10/02/2022,Hardwick Industrial Estate,Repairs - Services Chg,Marathon Services Ltd,21012761,760.14
Borough Council of Kings Lynn and West Norfolk,E07000146,10/02/2022,NEWS Depot,Contract Cleaning,Marathon Services Ltd,21012698,"1,500.95"
Borough Council of Kings Lynn and West Norfolk,E07000146,10/02/2022,Licensing,Professional Fees,North Norfolk District Council,21012749,984.26
Borough Council of Kings Lynn and West Norfolk,E07000146,10/02/2022,Community Safety,Professional Fees,North Norfolk District Council,21012751,"1,378.00"
Borough Council of Kings Lynn and West Norfolk,E07000146,10/02/2022,Public Cleansing,Cleaning Material & Equip,V & J Knitwear Ltd,21012737,718.91
Borough Council of Kings Lynn and West Norfolk,E07000146,10/02/2022,Recycling Composting,Waste Processing Cost,Greenworld Sales Ltd t/a Greenworld,21012770,"10,781.45"
Borough Council of Kings Lynn and West Norfolk,E07000146,10/02/2022,Licensing,Tools And Equipment,VIP System Limited,21012511,527.78
Borough Council of Kings Lynn and West Norfolk,E07000146,10/02/2022,Princess Theatre Roof Replacement,Professional Fees,David Trundley Design Services Ltd,21012738,"2,825.00"
Borough Council of Kings Lynn and West Norfolk,E07000146,10/02/2022,Printroom,Materials,Canon (UK) Limited,21012377,"1,193.39"
Borough Council of Kings Lynn and West Norfolk,E07000146,10/02/2022,Stories of Lynn,Repairs & Maintenance,CTS Security Ltd,21012767,877.50
Borough Council of Kings Lynn and West Norfolk,E07000146,10/02/2022,Radio Phones,Repairs & Maintenance,Direct Communications Radio Services Ltd,21012211,"2,690.00"
Borough Council of Kings Lynn and West Norfolk,E07000146,10/02/2022,Recycling Composting,Waste Processing Cost,Greenworld Sales Ltd t/a Greenworld,21012719,"1,170.30"
Borough Council of Kings Lynn and West Norfolk,E07000146,10/02/2022,Public conveniences,Sewerage/Cesspool Empty,BACO-Compak (Norfolk) Ltd,21012757,"1,160.00"
Borough Council of Kings Lynn and West Norfolk,E07000146,10/02/2022,Public conveniences,Sewerage/Cesspool Empty,BACO-Compak (Norfolk) Ltd,21012758,"3,010.00"
Borough Council of Kings Lynn and West Norfolk,E07000146,10/02/2022,ICT,Telephones,Adept Technology Group Plc,21012264,"5,633.52"
Borough Council of Kings Lynn and West Norfolk,E07000146,10/02/2022,Corporate,Stationery & Office,Adept Technology Group Plc,21012300,"1,129.42"
Borough Council of Kings Lynn and West Norfolk,E07000146,10/02/2022,ICT,Communications,Adept Technology Group Plc,21012300,"2,860.40"
Borough Council of Kings Lynn and West Norfolk,E07000146,10/02/2022,CCTV,Repairs & Maintenance,Adept Technology Group Plc,21012300,350.00
Borough Council of Kings Lynn and West Norfolk,E07000146,10/02/2022,ICT,Recoverable Fees,Adept Technology Group Plc,21012300,186.17
Borough Council of Kings Lynn and West Norfolk,E07000146,10/02/2022,Home Improvements Agency,Applications Licence,Idapt LLP,21012381,"1,000.00"
Borough Council of Kings Lynn and West Norfolk,E07000146,10/02/2022,NNDC Carpark Operation,Security Services Charge,LOOMIS UK Ltd,21012785,182.84
Borough Council of Kings Lynn and West Norfolk,E07000146,10/02/2022,Leisure Management Costs,Security Services Charge,LOOMIS UK Ltd,21012785,232.26
Borough Council of Kings Lynn and West Norfolk,E07000146,10/02/2022,Parking Operations - Brgh,Security Services Charge,LOOMIS UK Ltd,21012785,421.81
Borough Council of Kings Lynn and West Norfolk,E07000146,10/02/2022,NNDC Carpark Operation,Security Services Charge,LOOMIS UK Ltd,21012787,268.27
Borough Council of Kings Lynn and West Norfolk,E07000146,10/02/2022,Leisure Management Costs,Security Services Charge,LOOMIS UK Ltd,21012787,461.95
Borough Council of Kings Lynn and West Norfolk,E07000146,10/02/2022,Parking Operations - Brgh,Security Services Charge,LOOMIS UK Ltd,21012787,654.07
Borough Council of Kings Lynn and West Norfolk,E07000146,10/02/2022,NNDC Carpark Operation,Security Services Charge,LOOMIS UK Ltd,21012788,253.67
Borough Council of Kings Lynn and West Norfolk,E07000146,10/02/2022,Parking Operations - Brgh,Security Services Charge,LOOMIS UK Ltd,21012788,488.60
Borough Council of Kings Lynn and West Norfolk,E07000146,10/02/2022,Leisure Management Costs,Security Services Charge,LOOMIS UK Ltd,21012788,531.02
Borough Council of Kings Lynn and West Norfolk,E07000146,10/02/2022,General Property,Advertising & Marketing,Rightmove Group Ltd,21011859,720.00
Borough Council of Kings Lynn and West Norfolk,E07000146,10/02/2022,Street Lighting,Repairs & Maintenance,Westcotec Ltd,21012277,"3,368.88"
Borough Council of Kings Lynn and West Norfolk,E07000146,10/02/2022,Green Bins/Recycling,Equipment/Materials,MGB Plastics,21012235,"11,370.00"
Borough Council of Kings Lynn and West Norfolk,E07000146,10/02/2022,Balance Sheet,VAT Input - VAT Only Purchases,Newlyn PLC,22007418,"2,075.62"
Borough Council of Kings Lynn and West Norfolk,E07000146,10/02/2022,Balance Sheet,VAT Input - VAT Only Purchases,Newlyn PLC,22007420,"1,014.22"
Borough Council of Kings Lynn and West Norfolk,E07000146,10/02/2022,Community Projects CRS,Service Level Agreements,SWAN Youth Project (Norfolk),21012684,"2,500.00"
Borough Council of Kings Lynn and West Norfolk,E07000146,10/02/2022,Day visitor awareness,Advertising & Marketing,APL Media Ltd,21012756,500.00
Borough Council of Kings Lynn and West Norfolk,E07000146,10/02/2022,Day visitor awareness,Advertising & Marketing,APL Media Ltd,21012753,500.00
Borough Council of Kings Lynn and West Norfolk,E07000146,10/02/2022,Home Improvements Agency,Agency Staff,Seven Resourcing Ltd,21012427,"1,614.16"
Borough Council of Kings Lynn and West Norfolk,E07000146,10/02/2022,Home Improvements Agency,Agency Staff,Seven Resourcing Ltd,21012428,"1,120.18"
Borough Council of Kings Lynn and West Norfolk,E07000146,10/02/2022,Investment & Place Mktg,Mayors Award,Iliffe Media Publishing Ltd,21012403,"5,250.00"
Borough Council of Kings Lynn and West Norfolk,E07000146,10/02/2022,Crematorium Trading Account,Memorial Plates,Anglia Sign Casting Ltd,21012261,403.86
Borough Council of Kings Lynn and West Norfolk,E07000146,10/02/2022,Crematorium Trading Account,Renewal Plates - Exp,Anglia Sign Casting Ltd,21012261,30.00
Borough Council of Kings Lynn and West Norfolk,E07000146,10/02/2022,Planning Policy - Dept,Recruitment,TMP (UK) Ltd,22007348,"1,272.00"
Borough Council of Kings Lynn and West Norfolk,E07000146,10/02/2022,Personnel Services,Recruitment,TMP (UK) Ltd,22007349,"2,950.63"
Borough Council of Kings Lynn and West Norfolk,E07000146,10/02/2022,Corn Exchange Cinema,Works,Phelan Construction Ltd,21012691,"74,449.73"
Borough Council of Kings Lynn and West Norfolk,E07000146,10/02/2022,Climate Change,Contractor Payments,University of East Anglia,21012226,"5,119.00"
Borough Council of Kings Lynn and West Norfolk,E07000146,10/02/2022,Decarbonisation ReFit 2,Works,Ameresco Ltd,21012686,"554,486.91"
Borough Council of Kings Lynn and West Norfolk,E07000146,14/02/2022,Comm Infrastructure Levy,Small Projects,Walpole Parish Council,22007444,"3,400.00"
Borough Council of Kings Lynn and West Norfolk,E07000146,14/02/2022,Parks & Open Spaces,Tree Surgery,Barcham Trees Plc,21012793,"2,873.00"
Borough Council of Kings Lynn and West Norfolk,E07000146,14/02/2022,ICT,Computer Software Maint,Debit Finance Collections PLC (Legend),21012769,"34,562.08"
Borough Council of Kings Lynn and West Norfolk,E07000146,14/02/2022,Rough Sleeper Fund,Covid 19,Excaliber Security Services Ltd,21012811,"5,107.20"
Borough Council of Kings Lynn and West Norfolk,E07000146,14/02/2022,Rough Sleeper Fund,Covid 19,Excaliber Security Services Ltd,21012812,"5,107.20"
Borough Council of Kings Lynn and West Norfolk,E07000146,14/02/2022,Closed Churchyards,Repairs & Maintenance,PIKESTAFF BUILDING CO LTD,21012655,"1,770.00"
Borough Council of Kings Lynn and West Norfolk,E07000146,14/02/2022,Closed Churchyards,Repairs & Maintenance,PIKESTAFF BUILDING CO LTD,21012655,490.00
Borough Council of Kings Lynn and West Norfolk,E07000146,14/02/2022,St Georges Guildhall Complex,Professional Fees,Focus Consultants 2010 LLP,21012624,825.00
Borough Council of Kings Lynn and West Norfolk,E07000146,14/02/2022,Housing Options Programme,Homeless Prevention Fund,Morris Armitage ,22007437,805.00
Borough Council of Kings Lynn and West Norfolk,E07000146,14/02/2022,Head of Legal Services,External Legal fees,Norfolk County Council,22007438,956.90
Borough Council of Kings Lynn and West Norfolk,E07000146,14/02/2022,Head of Legal Services,External Legal fees,Norfolk County Council,22007438,-20.00
Borough Council of Kings Lynn and West Norfolk,E07000146,14/02/2022,Community Safety,Professional Fees,North Norfolk District Council,21012830,"1,470.00"
Borough Council of Kings Lynn and West Norfolk,E07000146,14/02/2022,KL Innovation Centre,External Legal fees,North Norfolk District Council,22007445,"1,500.00"
Borough Council of Kings Lynn and West Norfolk,E07000146,14/02/2022,Public Cleansing,Repairs & Maintenance,Pick & Banham,21012731,"1,140.00"
Borough Council of Kings Lynn and West Norfolk,E07000146,14/02/2022,Parking Operations - Brgh,Tools And Equipment,Bemrose Booth Paragon Ltd,21012360,"2,211.00"
Borough Council of Kings Lynn and West Norfolk,E07000146,14/02/2022,NNDC Carpark Operation,Broadband Charge,Claranet Ltd,21012764,188.36
Borough Council of Kings Lynn and West Norfolk,E07000146,14/02/2022,ICT,Broadband Charge,Claranet Ltd,21012764,48.32
Borough Council of Kings Lynn and West Norfolk,E07000146,14/02/2022,South Lynn Community Centre,Broadband Charge,Claranet Ltd,21012764,48.32
Borough Council of Kings Lynn and West Norfolk,E07000146,14/02/2022,Benefit Administration,Broadband Charge,Claranet Ltd,21012764,288.85
Borough Council of Kings Lynn and West Norfolk,E07000146,14/02/2022,Town Hall Kings Lynn,Broadband Charge,Claranet Ltd,21012764,69.27
Borough Council of Kings Lynn and West Norfolk,E07000146,14/02/2022,Mintlyn Crematorium,Repairs & Maintenance,Facultatieve Technologies Ltd,21012330,"1,034.76"
Borough Council of Kings Lynn and West Norfolk,E07000146,14/02/2022,Resort Seafront,Tools And Equipment,Roland DG (UK) Ltd,21012832,"1,979.00"
Borough Council of Kings Lynn and West Norfolk,E07000146,17/02/2022,ICT,Broadband Charge,British Telecommunications PLC,21012898,"1,032.42"
Borough Council of Kings Lynn and West Norfolk,E07000146,17/02/2022,ICT,Telephones,British Telecommunications PLC,21012900,515.52
Borough Council of Kings Lynn and West Norfolk,E07000146,17/02/2022,Financial Services,Agency Staff,Hays Specialist Recruitment,21012853,"2,360.00"
Borough Council of Kings Lynn and West Norfolk,E07000146,17/02/2022,Financial Services,Agency Staff,Hays Specialist Recruitment,21012854,"1,622.50"
Borough Council of Kings Lynn and West Norfolk,E07000146,17/02/2022,Financial Services,Agency Staff,Hays Specialist Recruitment,21012855,"1,622.50"
Borough Council of Kings Lynn and West Norfolk,E07000146,17/02/2022,Financial Services,Agency Staff,Hays Specialist Recruitment,21012856,"1,770.00"
Borough Council of Kings Lynn and West Norfolk,E07000146,17/02/2022,NNDC Carpark Operation,Vehicle - repairs & Maint,Webfleet Solutions,21012881,89.95
Borough Council of Kings Lynn and West Norfolk,E07000146,17/02/2022,Parking Operations - Brgh,Vehicle - repairs & Maint,Webfleet Solutions,21012881,118.35
Borough Council of Kings Lynn and West Norfolk,E07000146,17/02/2022,Decrim - Operational,Vehicle - repairs & Maint,Webfleet Solutions,21012881,259.45
Borough Council of Kings Lynn and West Norfolk,E07000146,17/02/2022,Grounds Southern Area,Fuel,UK Fuels Ltd,22007475,93.38
Borough Council of Kings Lynn and West Norfolk,E07000146,17/02/2022,Public Cleansing,Fuel,UK Fuels Ltd,22007475,493.32
Borough Council of Kings Lynn and West Norfolk,E07000146,17/02/2022,Grounds Southern Area,Fuel,UK Fuels Ltd,22007475,178.60
Borough Council of Kings Lynn and West Norfolk,E07000146,17/02/2022,Grounds Southern Area,Fuel,UK Fuels Ltd,22007475,18.50
Borough Council of Kings Lynn and West Norfolk,E07000146,17/02/2022,Fairstead Community  Centre,Repairs & Maintenance,Robert Fox,21012947,"2,832.00"
Borough Council of Kings Lynn and West Norfolk,E07000146,17/02/2022,Fairstead Community  Centre,Repairs & Maintenance,Robert Fox,21012947,555.00
Borough Council of Kings Lynn and West Norfolk,E07000146,17/02/2022,Dog Warden and Services,Contracted Services,Dogotel Kennels & Cattery,22007458,925.00
Borough Council of Kings Lynn and West Norfolk,E07000146,17/02/2022,Dog Warden and Services,Kennel Fees,Dogotel Kennels & Cattery,22007458,172.00
Borough Council of Kings Lynn and West Norfolk,E07000146,17/02/2022,Dog Warden and Services,Kennel Fees Recd - Extl,Dogotel Kennels & Cattery,22007458,-211.50
Borough Council of Kings Lynn and West Norfolk,E07000146,17/02/2022,General Property,Advertising & Marketing,Rightmove Group Ltd,21012685,720.00
Borough Council of Kings Lynn and West Norfolk,E07000146,17/02/2022,Environmental Protection,Computer Equipment,TelefonicaO2UK Ltd,21012897,642.00
Borough Council of Kings Lynn and West Norfolk,E07000146,17/02/2022,Refuse & Recyc Mgmt,Computer Equipment,TelefonicaO2UK Ltd,21012901,677.11
Borough Council of Kings Lynn and West Norfolk,E07000146,17/02/2022,Home Improvements Agency,Agency Staff,Seven Resourcing Ltd,21012541,"1,633.83"
Borough Council of Kings Lynn and West Norfolk,E07000146,17/02/2022,Home Improvements Agency,Agency Staff,Seven Resourcing Ltd,21012542,"1,094.88"
Borough Council of Kings Lynn and West Norfolk,E07000146,17/02/2022,Home Improvements Agency,Agency Staff,Seven Resourcing Ltd,21012917,"1,091.66"
Borough Council of Kings Lynn and West Norfolk,E07000146,17/02/2022,Home Improvements Agency,Agency Staff,Seven Resourcing Ltd,21012918,"1,501.86"
Borough Council of Kings Lynn and West Norfolk,E07000146,17/02/2022,Cashless Pk JC(SN on St),Merchant Fees,Chipside Ltd,21012908,0.11
Borough Council of Kings Lynn and West Norfolk,E07000146,17/02/2022,Cashless Pk JG (Bk on St),Merchant Fees,Chipside Ltd,21012908,1.30
Borough Council of Kings Lynn and West Norfolk,E07000146,17/02/2022,Cashless Pk JE(NN on St),Merchant Fees,Chipside Ltd,21012908,13.37
Borough Council of Kings Lynn and West Norfolk,E07000146,17/02/2022,Cashless Park KR (KLWN on ST),Merchant Fees,Chipside Ltd,21012908,44.36
Borough Council of Kings Lynn and West Norfolk,E07000146,17/02/2022,Cashless Pk JI(GYon St),Merchant Fees,Chipside Ltd,21012908,51.83
Borough Council of Kings Lynn and West Norfolk,E07000146,17/02/2022,Cashless Pk YT(GY off St),Merchant Fees,Chipside Ltd,21012908,122.67
Borough Council of Kings Lynn and West Norfolk,E07000146,17/02/2022,Cashless Pk JF(NN on St),Merchant Fees,Chipside Ltd,21012908,244.66
Borough Council of Kings Lynn and West Norfolk,E07000146,17/02/2022,Cashless Park KZ (KLWN off ST),Merchant Fees,Chipside Ltd,21012908,"1,225.13"
Borough Council of Kings Lynn and West Norfolk,E07000146,17/02/2022,Cashless Pk JC(SN on St),Transaction Fee,Chipside Ltd,21012909,612.75
Borough Council of Kings Lynn and West Norfolk,E07000146,17/02/2022,Cashless Pk JG (Bk on St),Transaction Fee,Chipside Ltd,21012909,11.00
Borough Council of Kings Lynn and West Norfolk,E07000146,17/02/2022,Cashless Pk JE(NN on St),Transaction Fee,Chipside Ltd,21012909,120.00
Borough Council of Kings Lynn and West Norfolk,E07000146,17/02/2022,Cashless Pk JI(GYon St),Transaction Fee,Chipside Ltd,21012909,189.92
Borough Council of Kings Lynn and West Norfolk,E07000146,17/02/2022,Cashless Park KR (KLWN on ST),Transaction Fee,Chipside Ltd,21012909,206.83
Borough Council of Kings Lynn and West Norfolk,E07000146,17/02/2022,Cashless Pk YT(GY off St),Transaction Fee,Chipside Ltd,21012909,318.08
Borough Council of Kings Lynn and West Norfolk,E07000146,17/02/2022,Cashless Park KZ (KLWN off ST),Transaction Fee,Chipside Ltd,21012909,"2,937.67"
Borough Council of Kings Lynn and West Norfolk,E07000146,17/02/2022,LILY 5,Lily Advisor Payments,Family Action,21012955,958.33
Borough Council of Kings Lynn and West Norfolk,E07000146,17/02/2022,LILY 5,Lily Advisor Payments,West Norfolk Carers Association,21012879,"1,852.50"
Borough Council of Kings Lynn and West Norfolk,E07000146,17/02/2022,Home Improvements Agency,Recruitment,TMP (UK) Ltd,22007377,136.30
Borough Council of Kings Lynn and West Norfolk,E07000146,17/02/2022,Publ Cl & St Sweap - Supp,Recruitment,TMP (UK) Ltd,22007377,136.30
Borough Council of Kings Lynn and West Norfolk,E07000146,17/02/2022,COMF Phase 3,Recruitment,TMP (UK) Ltd,22007377,136.30
Borough Council of Kings Lynn and West Norfolk,E07000146,17/02/2022,Mintlyn Crematorium,Recruitment,TMP (UK) Ltd,22007377,136.30
Borough Council of Kings Lynn and West Norfolk,E07000146,17/02/2022,Food Hygiene/H&S Sals/Sup,Recruitment,TMP (UK) Ltd,22007378,"1,088.00"
Borough Council of Kings Lynn and West Norfolk,E07000146,17/02/2022,LILY 5,Lily Advisor Payments,Norfolk and Waveney Mind,21012929,"1,852.50"
Borough Council of Kings Lynn and West Norfolk,E07000146,17/02/2022,KL Innovation Centre,Repairs & Maintenance,Lucid Systems Ltd,21012851,429.00
Borough Council of Kings Lynn and West Norfolk,E07000146,17/02/2022,Environmental Protection,Computer Equipment,Dell Corporation Ltd,21012771,544.31
Borough Council of Kings Lynn and West Norfolk,E07000146,17/02/2022,Environmental Protection,Computer Equipment,Dell Corporation Ltd,21012772,544.31
Borough Council of Kings Lynn and West Norfolk,E07000146,17/02/2022,KL Innovation Centre,Repairs & Maintenance,Mr Brights Ltd,21012925,"1,721.16"
Borough Council of Kings Lynn and West Norfolk,E07000146,17/02/2022,Parking Operations - Brgh,Repairs & Maintenance,Norfolk County Council,21012924,"10,000.00"
Borough Council of Kings Lynn and West Norfolk,E07000146,17/02/2022,Lynnsport 1,Professional Fees,Norfolk County Council,22007466,"1,400.00"
Borough Council of Kings Lynn and West Norfolk,E07000146,17/02/2022,Head of Legal Services,External Legal fees,North Norfolk District Council,22007468,"13,896.00"
Borough Council of Kings Lynn and West Norfolk,E07000146,17/02/2022,Head of Legal Services,External Legal fees,North Norfolk District Council,22007469,"11,805.00"
Borough Council of Kings Lynn and West Norfolk,E07000146,17/02/2022,Parking Operations - Brgh,Repairs & Maintenance,Penty Contractors Ltd,21012945,420.00
Borough Council of Kings Lynn and West Norfolk,E07000146,17/02/2022,Flitcham Workshops,Rent,Sandringham Estate,22007472,"3,729.85"
Borough Council of Kings Lynn and West Norfolk,E07000146,17/02/2022,ICT,MPhone Usage & Top-up,Vodafone (Corporate) Ltd,22007476,709.49
Borough Council of Kings Lynn and West Norfolk,E07000146,17/02/2022,ICT,MPhone Usage & Top-up,Vodafone (Corporate) Ltd,22007476,-54.57
Borough Council of Kings Lynn and West Norfolk,E07000146,17/02/2022,Corporate Health & Safety,Professional Fees,Cavell & Lind Ltd,21012873,"1,045.50"
Borough Council of Kings Lynn and West Norfolk,E07000146,17/02/2022,Mintlyn Crematorium,Tools And Equipment,Teleshore UK Ltd t/a Gemini CCS Ltd,21012485,730.50
Borough Council of Kings Lynn and West Norfolk,E07000146,17/02/2022,Street Sweeping,Animal Removal,Peaceful Pets Ltd,21012846,"1,055.00"
Borough Council of Kings Lynn and West Norfolk,E07000146,17/02/2022,Street Sweeping,Animal Removal,Peaceful Pets Ltd,21012847,617.50
Borough Council of Kings Lynn and West Norfolk,E07000146,17/02/2022,Public Cleansing,Sweeper Consumables,Bucher Muncipal Ltd,21012356,538.28
Borough Council of Kings Lynn and West Norfolk,E07000146,17/02/2022,ICT,Computer Software Maint,Switchshop Ltd,21012683,"2,498.00"
Borough Council of Kings Lynn and West Norfolk,E07000146,17/02/2022,Mintlyn Crematorium,Trade Waste,Facultatieve Technologies Ltd,21012349,"1,008.64"
Borough Council of Kings Lynn and West Norfolk,E07000146,17/02/2022,LILY 5,Lily Advisor Payments,West Norfolk Befriending,21012878,"1,000.00"
Borough Council of Kings Lynn and West Norfolk,E07000146,17/02/2022,Street Sweeping,Hazardous Waste Disposal,WEAAR Ltd,21012806,750.00
Borough Council of Kings Lynn and West Norfolk,E07000146,17/02/2022,Play Areas,Repairs & Maintenance,Proludic Ltd,21012384,739.75
Borough Council of Kings Lynn and West Norfolk,E07000146,17/02/2022,Comm Infrastructure Levy,Professional Fees,POS Enterprises Ltd,21012748,"1,500.00"
Borough Council of Kings Lynn and West Norfolk,E07000146,17/02/2022,Training Holding Account,Training,RH Environmental Ltd,21012410,467.50
Borough Council of Kings Lynn and West Norfolk,E07000146,17/02/2022,CCTV,Repairs & Maintenance,Focus Security (East Anglia) Ltd,21012860,992.00
Borough Council of Kings Lynn and West Norfolk,E07000146,17/02/2022,CCTV,Repairs & Maintenance,Focus Security (East Anglia) Ltd,21012861,447.24
Borough Council of Kings Lynn and West Norfolk,E07000146,17/02/2022,Planning Control,Professional Fees,Northstar Urban Design Ltd,21012291,"1,105.00"
Borough Council of Kings Lynn and West Norfolk,E07000146,17/02/2022,Development Control,Planning Fees,C Moughton & J Duncan,22007474,462.00
Borough Council of Kings Lynn and West Norfolk,E07000146,17/02/2022,Habitat Regulations,Miscellaneous Income,C Moughton & J Duncan,22007474,50.00
Borough Council of Kings Lynn and West Norfolk,E07000146,17/02/2022,Filming,Professional Fees,Abba  Chique,22007473,"1,900.00"
Borough Council of Kings Lynn and West Norfolk,E07000146,17/02/2022,Housing Options Programme,Homeless Prevention Fund,Mark Tilbrook,22007465,"1,700.00"
Borough Council of Kings Lynn and West Norfolk,E07000146,17/02/2022,Kings Court Service Charges,Staff Health & Safety,M English Security Limited,21012565,965.00
Borough Council of Kings Lynn and West Norfolk,E07000146,21/02/2022,Priory Road D Market,Repairs & Maintenance,Marathon Services Ltd,21012990,694.00
Borough Council of Kings Lynn and West Norfolk,E07000146,21/02/2022,Postage Services K Court,Postages,Royal Mail Group Ltd,22007498,824.59
Borough Council of Kings Lynn and West Norfolk,E07000146,21/02/2022,Financial Services,Postages,Royal Mail Group Ltd,22007500,438.24
Borough Council of Kings Lynn and West Norfolk,E07000146,21/02/2022,Benefit Administration,Postages,Royal Mail Group Ltd,22007500,314.68
Borough Council of Kings Lynn and West Norfolk,E07000146,21/02/2022,Cost of Collection - CTax,Postages,Royal Mail Group Ltd,22007500,780.67
Borough Council of Kings Lynn and West Norfolk,E07000146,21/02/2022,Pub & Tourism int charges,Postages,Royal Mail Group Ltd,22007500,10.08
Borough Council of Kings Lynn and West Norfolk,E07000146,21/02/2022,Benefit Administration,Postages,Royal Mail Group Ltd,22007500,6.30
Borough Council of Kings Lynn and West Norfolk,E07000146,21/02/2022,Supplier Holding Account,Vehicle - repairs & Maint,Paul Johnson Motor Services Ltd,22007496,"2,929.05"
Borough Council of Kings Lynn and West Norfolk,E07000146,21/02/2022,Supplier Holding Account,Vehicle - repairs & Maint,Paul Johnson Motor Services Ltd,22007496,90.00
Borough Council of Kings Lynn and West Norfolk,E07000146,21/02/2022,KL Innovation Centre,Beverage Supplies,NVCS Ltd,21012998,195.00
Borough Council of Kings Lynn and West Norfolk,E07000146,21/02/2022,KL Innovation Centre,Beverage Supplies,NVCS Ltd,21012998,"1,409.71"
Borough Council of Kings Lynn and West Norfolk,E07000146,21/02/2022,Subscriptions,Membership & Subscription,IDEA,21012471,"1,105.00"
Borough Council of Kings Lynn and West Norfolk,E07000146,21/02/2022,Parkway - Gaywood,External Fees/Consultancy,William H Brown,21012880,"1,500.00"
Borough Council of Kings Lynn and West Norfolk,E07000146,21/02/2022,Play Areas,Repairs & Maintenance,Play Inspection Company Ltd,21012481,"3,665.00"
Borough Council of Kings Lynn and West Norfolk,E07000146,21/02/2022,Financial Services,Agency Staff,Hays Specialist Recruitment,21012980,"2,950.00"
Borough Council of Kings Lynn and West Norfolk,E07000146,21/02/2022,Decrim - Operational,Vehicle - repairs & Maint,Kings Lynn Auto Electrical Ltd,21012985,578.50
Borough Council of Kings Lynn and West Norfolk,E07000146,21/02/2022,Head of Legal Services,External Legal fees,Greenhalgh Kerr,22007488,"1,050.00"
Borough Council of Kings Lynn and West Norfolk,E07000146,21/02/2022,Head of Legal Services,External Legal fees,Greenhalgh Kerr,22007489,525.00
Borough Council of Kings Lynn and West Norfolk,E07000146,21/02/2022,EZ Dev of Spec Units,Works,R G Carter Cambridge Ltd,21012506,"311,847.48"
Borough Council of Kings Lynn and West Norfolk,E07000146,21/02/2022,Planning Control,Professional Fees,Northstar Urban Design Ltd,21012551,"2,728.00"
Borough Council of Kings Lynn and West Norfolk,E07000146,21/02/2022,Housing Options Programme,Homeless Prevention Fund,MJH Removals Ltd,22007495,925.00
Borough Council of Kings Lynn and West Norfolk,E07000146,21/02/2022,Community Safety,Corporate Items,Addleshaw Goddard,22007514,750.00
Borough Council of Kings Lynn and West Norfolk,E07000146,24/02/2022,Planning Control,Membership & Subscription,Haymarket Media Group Ltd,21013030,"4,380.00"
Borough Council of Kings Lynn and West Norfolk,E07000146,24/02/2022,KL Innovation Centre,Repairs & Maintenance,Lucid Systems Ltd,21012702,429.00
Borough Council of Kings Lynn and West Norfolk,E07000146,24/02/2022,Public conveniences,Sewerage/Cesspool Empty,BACO-Compak (Norfolk) Ltd,21013090,"1,290.00"
Borough Council of Kings Lynn and West Norfolk,E07000146,24/02/2022,Hunstanton Southend Road,Professional Fees,Calvert Brain & Fraulo Ltd,21013014,"1,125.00"
Borough Council of Kings Lynn and West Norfolk,E07000146,24/02/2022,ICT,Communications,Fordway Solutions Ltd,21012979,"3,445.68"
Borough Council of Kings Lynn and West Norfolk,E07000146,24/02/2022,CIC Main,Recruitment,TMP (UK) Ltd,22007395,181.73
Borough Council of Kings Lynn and West Norfolk,E07000146,24/02/2022,Parking Operations - Brgh,Recruitment,TMP (UK) Ltd,22007395,181.73
Borough Council of Kings Lynn and West Norfolk,E07000146,24/02/2022,Neighbourhood Teams,Recruitment,TMP (UK) Ltd,22007395,181.73
Borough Council of Kings Lynn and West Norfolk,E07000146,24/02/2022,ICT,Repairs & Maintenance,4Sight Communications,21012512,"3,165.00"
Borough Council of Kings Lynn and West Norfolk,E07000146,24/02/2022,Domestic Refuse,Contracted Services,Serco Ltd,21012604,"66,271.94"
Borough Council of Kings Lynn and West Norfolk,E07000146,24/02/2022,Dry Box Collection Scheme,Contracted Services,Serco Ltd,21012604,"66,945.15"
Borough Council of Kings Lynn and West Norfolk,E07000146,24/02/2022,Food Waste,Contracted Services,Serco Ltd,21012604,"58,519.81"
Borough Council of Kings Lynn and West Norfolk,E07000146,24/02/2022,Refuse & Recyc Mgmt,Contracted Services,Serco Ltd,21012604,"35,112.60"
Borough Council of Kings Lynn and West Norfolk,E07000146,24/02/2022,Domestic Refuse,Contracted Services,Serco Ltd,21012605,"66,271.94"
Borough Council of Kings Lynn and West Norfolk,E07000146,24/02/2022,Dry Box Collection Scheme,Contracted Services,Serco Ltd,21012605,"66,945.15"
Borough Council of Kings Lynn and West Norfolk,E07000146,24/02/2022,Food Waste,Contracted Services,Serco Ltd,21012605,"58,519.81"
Borough Council of Kings Lynn and West Norfolk,E07000146,24/02/2022,Refuse & Recyc Mgmt,Contracted Services,Serco Ltd,21012605,"35,112.60"
Borough Council of Kings Lynn and West Norfolk,E07000146,24/02/2022,Domestic Refuse,Contracted Services,Serco Ltd,21012606,"66,271.94"
Borough Council of Kings Lynn and West Norfolk,E07000146,24/02/2022,Dry Box Collection Scheme,Contracted Services,Serco Ltd,21012606,"66,945.15"
Borough Council of Kings Lynn and West Norfolk,E07000146,24/02/2022,Food Waste,Contracted Services,Serco Ltd,21012606,"58,519.81"
Borough Council of Kings Lynn and West Norfolk,E07000146,24/02/2022,Refuse & Recyc Mgmt,Contracted Services,Serco Ltd,21012606,"35,112.60"
Borough Council of Kings Lynn and West Norfolk,E07000146,24/02/2022,Domestic Refuse,Contracted Services,Serco Ltd,21012607,"66,271.94"
Borough Council of Kings Lynn and West Norfolk,E07000146,24/02/2022,Dry Box Collection Scheme,Contracted Services,Serco Ltd,21012607,"66,945.15"
Borough Council of Kings Lynn and West Norfolk,E07000146,24/02/2022,Food Waste,Contracted Services,Serco Ltd,21012607,"58,519.81"
Borough Council of Kings Lynn and West Norfolk,E07000146,24/02/2022,Refuse & Recyc Mgmt,Contracted Services,Serco Ltd,21012607,"35,112.60"
Borough Council of Kings Lynn and West Norfolk,E07000146,24/02/2022,Domestic Refuse,Contracted Services,Serco Ltd,21012608,"66,271.94"
Borough Council of Kings Lynn and West Norfolk,E07000146,24/02/2022,Dry Box Collection Scheme,Contracted Services,Serco Ltd,21012608,"66,945.15"
Borough Council of Kings Lynn and West Norfolk,E07000146,24/02/2022,Food Waste,Contracted Services,Serco Ltd,21012608,"58,519.81"
Borough Council of Kings Lynn and West Norfolk,E07000146,24/02/2022,Refuse & Recyc Mgmt,Contracted Services,Serco Ltd,21012608,"35,112.60"
Borough Council of Kings Lynn and West Norfolk,E07000146,24/02/2022,Sports Grounds North,Materials,Advance Grass Solutions,21012789,592.50
Borough Council of Kings Lynn and West Norfolk,E07000146,24/02/2022,Sports Grounds Central,Materials,Advance Grass Solutions,21012789,592.50
Borough Council of Kings Lynn and West Norfolk,E07000146,24/02/2022,ICT,Communications,Nominet UK,21012554,765.94
Borough Council of Kings Lynn and West Norfolk,E07000146,24/02/2022,Head of Legal Services,External Legal fees,CH & I,21012357,"5,980.84"
Borough Council of Kings Lynn and West Norfolk,E07000146,24/02/2022,Play Area Equipment (KLAC),Works,Playdale Playgrounds Ltd,21012589,"3,651.00"
Borough Council of Kings Lynn and West Norfolk,E07000146,24/02/2022,Play Area Equipment (KLAC),Equipment/Materials,Playdale Playgrounds Ltd,21012589,"15,993.20"
Borough Council of Kings Lynn and West Norfolk,E07000146,24/02/2022,KLIC2,Professional Fees,Richard Utting Associates LLP,21012011,"2,250.00"
Borough Council of Kings Lynn and West Norfolk,E07000146,24/02/2022,Towns Fund Active and Clean Connectivity,Professional Fees,INVVU Construction Consultants Ltd,21013035,"31,842.50"
Borough Council of Kings Lynn and West Norfolk,E07000146,24/02/2022,Planning Policy,Professional Fees,South Cambridgeshire District Council,21013045,600.00
Borough Council of Kings Lynn and West Norfolk,E07000146,24/02/2022,Property Services,Advertising & Marketing,Costar Uk Ltd,21013077,"6,804.00"
Borough Council of Kings Lynn and West Norfolk,E07000146,24/02/2022,KL Innovation Centre,Repairs & Maintenance,CGM Group (East Anglia) Ltd,21013019,210.00
Borough Council of Kings Lynn and West Norfolk,E07000146,24/02/2022,KL Innovation Centre,Repairs & Maintenance,CGM Group (East Anglia) Ltd,21013019,350.00
Borough Council of Kings Lynn and West Norfolk,E07000146,24/02/2022,North Lynn Managed Workshops,Repairs & Maintenance,CGM Group (East Anglia) Ltd,21013020,210.00
Borough Council of Kings Lynn and West Norfolk,E07000146,24/02/2022,North Lynn Managed Workshops,Repairs & Maintenance,CGM Group (East Anglia) Ltd,21013020,280.00
Borough Council of Kings Lynn and West Norfolk,E07000146,24/02/2022,Comm Infrastructure Levy,Small Projects,Heacham Parish Council,22007532,"7,831.13"
Borough Council of Kings Lynn and West Norfolk,E07000146,24/02/2022,Parking Operations - Brgh,Repairs & Maintenance,Norfolk County Council,21013066,"5,297.52"
Borough Council of Kings Lynn and West Norfolk,E07000146,24/02/2022,NORA Phase 3,Professional Fees,North Norfolk District Council,21013040,875.00
Borough Council of Kings Lynn and West Norfolk,E07000146,24/02/2022,Financial Services,Postages,Royal Mail Group Ltd,22007519,141.60
Borough Council of Kings Lynn and West Norfolk,E07000146,24/02/2022,Benefit Administration,Postages,Royal Mail Group Ltd,22007519,436.80
Borough Council of Kings Lynn and West Norfolk,E07000146,24/02/2022,Cost of Collection - CTax,Postages,Royal Mail Group Ltd,22007519,628.77
Borough Council of Kings Lynn and West Norfolk,E07000146,24/02/2022,Kings Lynn Bid,Postages,Royal Mail Group Ltd,22007519,0.48
Borough Council of Kings Lynn and West Norfolk,E07000146,24/02/2022,Financial Services,Postages,Royal Mail Group Ltd,22007519,2.70
Borough Council of Kings Lynn and West Norfolk,E07000146,24/02/2022,Benefit Administration,Postages,Royal Mail Group Ltd,22007519,9.00
Borough Council of Kings Lynn and West Norfolk,E07000146,24/02/2022,Cost of Collection - CTax,Postages,Royal Mail Group Ltd,22007519,12.71
Borough Council of Kings Lynn and West Norfolk,E07000146,24/02/2022,Pub & Tourism int charges,Postages,Royal Mail Group Ltd,22007519,1.35
Borough Council of Kings Lynn and West Norfolk,E07000146,24/02/2022,Pub & Tourism int charges,Postages,Royal Mail Group Ltd,22007519,8.64
Borough Council of Kings Lynn and West Norfolk,E07000146,24/02/2022,Community Projects CRS,Service Level Agreements,North End Trust,21013130,"2,545.00"
Borough Council of Kings Lynn and West Norfolk,E07000146,24/02/2022,Rough Sleeper Initiative Y3,Miscellaneous,The Purfleet Trust,21013132,"1,440.00"
Borough Council of Kings Lynn and West Norfolk,E07000146,24/02/2022,Rough Sleeper Initiative Y3,Miscellaneous,The Purfleet Trust,21013074,"1,770.00"
Borough Council of Kings Lynn and West Norfolk,E07000146,24/02/2022,Mintlyn Crematorium,Repairs & Maintenance,House Of Flags Ltd,21013063,449.04
Borough Council of Kings Lynn and West Norfolk,E07000146,24/02/2022,Corporate Communitcations,Publications & Newspapers,NLA Media Access Ltd,21012613,697.00
Borough Council of Kings Lynn and West Norfolk,E07000146,24/02/2022,Re:Fit Project,Works,WEAAR Ltd,21012951,900.00
Borough Council of Kings Lynn and West Norfolk,E07000146,24/02/2022,North Lynn Industrial Estate,Repairs & Maintenance,1-2 Call Drainage & Groundwork Ltd,21013050,"2,160.00"
Borough Council of Kings Lynn and West Norfolk,E07000146,24/02/2022,Kings Court Service Charges,Repairs & Maintenance,H2O Vend Ltd,21013061,494.00
Borough Council of Kings Lynn and West Norfolk,E07000146,24/02/2022,Vehicle Recharge on account,Fuel,Worldline IT Services UK Re Fuelgenie,22007521,"10,366.15"
Borough Council of Kings Lynn and West Norfolk,E07000146,24/02/2022,Vehicle Recharge on account,Fuel,Worldline IT Services UK Re Fuelgenie,22007521,1.05
Borough Council of Kings Lynn and West Norfolk,E07000146,24/02/2022,Parking Operations - Brgh,Repairs & Maintenance,Supreme Surfacing Ltd,21013100,"7,050.00"
Borough Council of Kings Lynn and West Norfolk,E07000146,24/02/2022,Financial Services,Agency Staff,Hays Specialist Recruitment,21013031,"1,475.00"
Borough Council of Kings Lynn and West Norfolk,E07000146,24/02/2022,Financial Services,Recruitment,Hays Specialist Recruitment,21013032,"9,600.00"
Borough Council of Kings Lynn and West Norfolk,E07000146,24/02/2022,Mintlyn Crematorium,Tools And Equipment,East Coast Signs Ltd,21013055,690.00
Borough Council of Kings Lynn and West Norfolk,E07000146,24/02/2022,NNDC Carpark Operation,Security Services Charge,LOOMIS UK Ltd,21012786,191.48
Borough Council of Kings Lynn and West Norfolk,E07000146,24/02/2022,Parking Operations - Brgh,Security Services Charge,LOOMIS UK Ltd,21012786,420.42
Borough Council of Kings Lynn and West Norfolk,E07000146,24/02/2022,Leisure Management Costs,Security Services Charge,LOOMIS UK Ltd,21012786,446.51
Borough Council of Kings Lynn and West Norfolk,E07000146,24/02/2022,Grounds Northern Area,Vehicle - repairs & Maint,Anglia Mowers,21012750,527.51
Borough Council of Kings Lynn and West Norfolk,E07000146,24/02/2022,P Health- BJF Outreach,Homeless Prevention Fund,Benjamin Foundation,21013092,"2,500.00"
Borough Council of Kings Lynn and West Norfolk,E07000146,24/02/2022,W Norfolk Housing Co Ltd,Water & Drainage Rates,Anglian Water Services,22007515,863.25
Borough Council of Kings Lynn and West Norfolk,E07000146,24/02/2022,Financial Services,Contracted Services,Embridge Consulting (UK) Ltd,21013027,"1,733.39"
Borough Council of Kings Lynn and West Norfolk,E07000146,24/02/2022,West Winch Growth Area,Professional Fees,Gerald Eve LLP,21012440,"7,789.67"
Borough Council of Kings Lynn and West Norfolk,E07000146,28/02/2022,CCTV,Repairs & Maintenance,E Akers,21013155,"1,047.40"
Borough Council of Kings Lynn and West Norfolk,E07000146,28/02/2022,Cashless Pk YT(GY off St),Agency,Great Yarmouth Borough Council,22007539,"11,924.20"
Borough Council of Kings Lynn and West Norfolk,E07000146,28/02/2022,Parking Operations - Brgh,Repairs & Maintenance,Kings & Barnhams,21013023,481.65
Borough Council of Kings Lynn and West Norfolk,E07000146,28/02/2022,Cashless Pk JF(NN on St),Agency,North Norfolk District Council,22007543,"24,501.60"
Borough Council of Kings Lynn and West Norfolk,E07000146,28/02/2022,Rough Sleeper Initiative Y3,Consultants Fees,The Purfleet Trust,21013174,"38,000.00"
Borough Council of Kings Lynn and West Norfolk,E07000146,28/02/2022,Care & Repair - Fenland Agency,Agency,David Trundley Design Services Ltd,22007538,"1,287.50"
Borough Council of Kings Lynn and West Norfolk,E07000146,28/02/2022,KL Arts Centre,Hirings Ticketed,W Nfk Gilbert & Sullivan Operatic Soc,22007546,"6,921.25"
Borough Council of Kings Lynn and West Norfolk,E07000146,28/02/2022,KL Arts Centre,Hiring Charges Income,W Nfk Gilbert & Sullivan Operatic Soc,22007546,"-2,331.65"
Borough Council of Kings Lynn and West Norfolk,E07000146,28/02/2022,KL Arts Centre,Commission On Box Office,W Nfk Gilbert & Sullivan Operatic Soc,22007546,-415.28
Borough Council of Kings Lynn and West Norfolk,E07000146,28/02/2022,KL Arts Centre,PRS Recharge,W Nfk Gilbert & Sullivan Operatic Soc,22007546,-11.66
Borough Council of Kings Lynn and West Norfolk,E07000146,28/02/2022,KL Arts Centre,Credit Card Recharge,W Nfk Gilbert & Sullivan Operatic Soc,22007546,-199.32
Borough Council of Kings Lynn and West Norfolk,E07000146,28/02/2022,KL Arts Centre,Equipment Hire,W Nfk Gilbert & Sullivan Operatic Soc,22007546,-200.00
Borough Council of Kings Lynn and West Norfolk,E07000146,28/02/2022,Corn Ex CYC Sourc Lighti,Works,Stage Electrics Partnership Ltd,21012601,"4,985.50"
Borough Council of Kings Lynn and West Norfolk,E07000146,28/02/2022,Corn Ex CYC Sourc Lighti,Works,Stage Electrics Partnership Ltd,21012602,"4,648.80"
Borough Council of Kings Lynn and West Norfolk,E07000146,28/02/2022,Corn Ex CYC Sourc Lighti,Works,Stage Electrics Partnership Ltd,21012603,"2,357.14"
Borough Council of Kings Lynn and West Norfolk,E07000146,28/02/2022,Register of Electors,Stationery & Office,Civica Election Services Ltd,22007413,881.50
Borough Council of Kings Lynn and West Norfolk,E07000146,28/02/2022,Kings Court Kings Lynn,Repairs & Maintenance,1-2 Call Drainage & Groundwork Ltd,21013149,"1,100.00"
Borough Council of Kings Lynn and West Norfolk,E07000146,28/02/2022,ICT,Computer Software Maint,Computer Systems Integration Ltd,21012658,"14,889.00"
Borough Council of Kings Lynn and West Norfolk,E07000146,28/02/2022,Public Realm/Town Deal,Equipment/Materials,Hardscape Products Ltd,21012718,700.00
Borough Council of Kings Lynn and West Norfolk,E07000146,28/02/2022,Grounds Northern Area,Covid 19,Enterprise Flex-E Rent,21012809,529.00
Borough Council of Kings Lynn and West Norfolk,E07000146,28/02/2022,Neighbourhood Teams,Covid 19,Enterprise Flex-E Rent,21012809,989.00
Borough Council of Kings Lynn and West Norfolk,E07000146,28/02/2022,Grounds Southern Area,Covid 19,Enterprise Flex-E Rent,21012809,460.00
Borough Council of Kings Lynn and West Norfolk,E07000146,28/02/2022,Balance Sheet,VAT Input - VAT Only Purchases,Marston (Holdings) Ltd,22007491,"2,008.62"
Borough Council of Kings Lynn and West Norfolk,E07000146,28/02/2022,Creative Hub - Art Centre/Guildhall Complex,Professional Fees,Festival and Events International Ltd,21012625,"8,333.33"
Borough Council of Kings Lynn and West Norfolk,E07000146,28/02/2022,LILY 5,Advertising & Marketing,Global Media Group Services Ltd,21012782,470.00
Borough Council of Kings Lynn and West Norfolk,E07000146,28/02/2022,Careline,Advertising & Marketing,Global Media Group Services Ltd,21012782,470.00
Borough Council of Kings Lynn and West Norfolk,E07000146,28/02/2022,Planning Control,Professional Fees,Richard Utting Associates LLP,21012610,"2,000.00"
Borough Council of Kings Lynn and West Norfolk,E07000146,28/02/2022,Salters Road,Professional Fees,Homes England,21013033,"1,000.00"
Borough Council of Kings Lynn and West Norfolk,E07000146,28/02/2022,Comm Infrastructure Levy,Small Projects,Burnham Norton Parish Meeting,22007544,700.00
Borough Council of Kings Lynn and West Norfolk,E07000146,28/02/2022,ICT,Computer Software Maint,Snap Surveys Limited,21012460,840.00
Borough Council of Kings Lynn and West Norfolk,E07000146,28/02/2022,KL Innovation Centre,Repairs & Maintenance,UPS Systems PLC,21012536,"1,125.00"
Borough Council of Kings Lynn and West Norfolk,E07000146,28/02/2022,ICT,Telephones,Adept Technology Group Plc,21012888,"5,437.16"
Borough Council of Kings Lynn and West Norfolk,E07000146,28/02/2022,ICT,Communications,Adept Technology Group Plc,21013010,"2,870.40"
Borough Council of Kings Lynn and West Norfolk,E07000146,28/02/2022,Corporate,Stationery & Office,Adept Technology Group Plc,21013010,"1,129.42"
Borough Council of Kings Lynn and West Norfolk,E07000146,28/02/2022,CCTV,Repairs & Maintenance,Adept Technology Group Plc,21013010,350.00
Borough Council of Kings Lynn and West Norfolk,E07000146,28/02/2022,ICT,Recoverable Fees,Adept Technology Group Plc,21013010,186.17
Borough Council of Kings Lynn and West Norfolk,E07000146,28/02/2022,Financial Services,Agency Staff,Hays Specialist Recruitment,21013161,"2,950.00"
Borough Council of Kings Lynn and West Norfolk,E07000146,28/02/2022,CCTV,Rental CCTV - BT,ASSA ABLOY Ltd,21012594,"2,675.00"
Borough Council of Kings Lynn and West Norfolk,E07000146,28/02/2022,Decrim - Operational,Miscellaneous,Patrol,21012688,"2,703.90"
Borough Council of Kings Lynn and West Norfolk,E07000146,28/02/2022,Towns Fund,Professional Fees,New Anglia Local Enterprise Ptn Ltd,21013171,"3,000.00"
Borough Council of Kings Lynn and West Norfolk,E07000146,28/02/2022,Network Hardware holding,Repairs & Maintenance,Softcat PLC,21012833,"3,428.40"
Borough Council of Kings Lynn and West Norfolk,E07000146,28/02/2022,NNDC Carpark Operation,Security Services Charge,LOOMIS UK Ltd,21013037,312.95
Borough Council of Kings Lynn and West Norfolk,E07000146,28/02/2022,Leisure Management Costs,Security Services Charge,LOOMIS UK Ltd,21013037,594.52
Borough Council of Kings Lynn and West Norfolk,E07000146,28/02/2022,Parking Operations - Brgh,Security Services Charge,LOOMIS UK Ltd,21013037,715.08
Borough Council of Kings Lynn and West Norfolk,E07000146,28/02/2022,Cost of Collection - CTax,Postages,DSI Billing Services Ltd,22007481,"1,627.45"
Borough Council of Kings Lynn and West Norfolk,E07000146,28/02/2022,Public Realm/Town Deal,Equipment/Materials,Stuart Power Ltd,21012843,885.71
Borough Council of Kings Lynn and West Norfolk,E07000146,28/02/2022,Crematorium Trading Account,Webcasts/Tributes/Recordings,Vivedia Ltd,21012596,"3,749.00"
Borough Council of Kings Lynn and West Norfolk,E07000146,28/02/2022,West Winch Growth Area,Professional Fees,Gerald Eve LLP,21013160,"4,692.60"
Borough Council of Kings Lynn and West Norfolk,E07000146,28/02/2022,West Winch Growth Area,Professional Fees,Clyde & Co LLP,21013157,"2,612.80"
Borough Council of Kings Lynn and West Norfolk,E07000146,28/02/2022,Rough Sleeper Fund,Covid 19,Bunkabin Ltd,21013093,"1,680.00"
Borough Council of Kings Lynn and West Norfolk,E07000146,28/02/2022,Rough Sleeper Fund,Covid 19,Bunkabin Ltd,21013094,"1,920.00"
Borough Council of Kings Lynn and West Norfolk,E07000146,28/02/2022,Norfolk Tourism Package,Equipment/Materials,Wybone Ltd,21008996,"54,450.00"
Borough Council of Kings Lynn and West Norfolk,E07000146,28/02/2022,EZ Premises Costs,Professional Fees,EDP Environmental Ltd,21013141,"1,468.00"
Borough Council of Kings Lynn and West Norfolk,E07000146,28/02/2022,ICT,Computer Software Maint,Computer Systems Integration Ltd,21012657,"6,955.00"
Borough Council of Kings Lynn and West Norfolk,E07000146,28/02/2022,Corporate,Bank Charges,Allpay,22007550,"1,331.35"
Borough Council of Kings Lynn and West Norfolk,E07000146,28/02/2022,ICT,Computer Software Maint,Capita Business Services Ltd,22007557,670.53
Borough Council of Kings Lynn and West Norfolk,E07000146,28/02/2022,Corporate,Bank Charges,Allpay,22007563,"2,081.36"
Borough Council of Kings Lynn and West Norfolk,E07000146,28/02/2022,Balance Sheet,Rail Warrants Suspense,RSP Rail Travel,22007559,687.30
Borough Council of Kings Lynn and West Norfolk,E07000146,28/02/2022,KL Innovation Centre,Telephones,Spitfire Network Services Ltd,22007561,912.45
Borough Council of Kings Lynn and West Norfolk,E07000146,28/02/2022,Corporate,Bank Charges,Worldpay Ltd,22007562,441.22
Borough Council of Kings Lynn and West Norfolk,E07000146,28/02/2022,Corporate,Bank Charges,Worldpay Ltd,22007562,"11,764.60"
Borough Council of Kings Lynn and West Norfolk,E07000146,03/03/2022,The Walks,Special Events,Rise Scaffolding Services Ltd,21013232,"2,574.44"
Borough Council of Kings Lynn and West Norfolk,E07000146,03/03/2022,Towns Fund,Professional Fees,New Anglia Local Enterprise Ptn Ltd,21013210,"1,000.00"
Borough Council of Kings Lynn and West Norfolk,E07000146,03/03/2022,EZ Premises Costs,Professional Fees,EDP Environmental Ltd,21013242,"3,242.00"
Borough Council of Kings Lynn and West Norfolk,E07000146,03/03/2022,EZ- Roads/Infrastructure,External Fees/Consultancy,Ground Technology Services Ltd,21013254,"1,999.88"
Borough Council of Kings Lynn and West Norfolk,E07000146,03/03/2022,COMF Phase 3,Agency Staff,Vivid Resourcing,21012883,"3,131.56"
Borough Council of Kings Lynn and West Norfolk,E07000146,03/03/2022,Food Hygiene General,Professional Fees,Danielle Barrett,21012633,"1,420.00"
Borough Council of Kings Lynn and West Norfolk,E07000146,03/03/2022,Training Holding Account,Training,Julie Barratt Legal Training,21013215,"1,000.00"
Borough Council of Kings Lynn and West Norfolk,E07000146,03/03/2022,Comm Infrastructure Levy,Professional Fees,European Administration Ltd t/a Clerksroom,21012976,900.00
Borough Council of Kings Lynn and West Norfolk,E07000146,03/03/2022,Housing Options Programme,Homeless Prevention Fund,Clarion Housing Group,22007567,522.37
Borough Council of Kings Lynn and West Norfolk,E07000146,03/03/2022,Assistive Technology,Stationery & Office,Dell Corporation Ltd,21013223,279.40
Borough Council of Kings Lynn and West Norfolk,E07000146,03/03/2022,Careline,Stationery & Office,Dell Corporation Ltd,21013223,698.50
Borough Council of Kings Lynn and West Norfolk,E07000146,03/03/2022,Corporate,Audit Fee,Ernst & Young,21013220,"21,750.00"
Borough Council of Kings Lynn and West Norfolk,E07000146,03/03/2022,Parking Operations - Brgh,Royal Household Support,ESPO,21012933,"2,161.25"
Borough Council of Kings Lynn and West Norfolk,E07000146,03/03/2022,Resort Seafront,Beach Safety,Glasdon UK Ltd,21012781,823.60
Borough Council of Kings Lynn and West Norfolk,E07000146,03/03/2022,KL Innovation Centre,Repairs & Maintenance,Mr Brights Ltd,21013214,"2,004.48"
Borough Council of Kings Lynn and West Norfolk,E07000146,03/03/2022,Planning Control,Professional Fees,Norfolk County Council,21013193,"2,878.00"
Borough Council of Kings Lynn and West Norfolk,E07000146,03/03/2022,Planning Control,Professional Fees,Sharpe Pritchard,21013004,"3,000.00"
Borough Council of Kings Lynn and West Norfolk,E07000146,03/03/2022,Apprenticeship Scheme,Apprentice Levy,Bedford Borough Council,21013229,"4,706.00"
Borough Council of Kings Lynn and West Norfolk,E07000146,03/03/2022,Apprenticeship Scheme,Apprentice Levy,Bedford Borough Council,21013230,"5,764.00"
Borough Council of Kings Lynn and West Norfolk,E07000146,03/03/2022,Rough Sleeper Fund,Covid 19,Freebridge Community Housing,21013202,"1,133.34"
Borough Council of Kings Lynn and West Norfolk,E07000146,03/03/2022,Cost of Collection - CTax,Professional Fees,Civica UK Ltd,21012763,"3,750.00"
Borough Council of Kings Lynn and West Norfolk,E07000146,03/03/2022,Financial Services,Membership & Subscription,Creditsafe Business Solutions Ltd,22007576,675.00
Borough Council of Kings Lynn and West Norfolk,E07000146,03/03/2022,Parking Operations - Brgh,Tools And Equipment,Mobius Networks Ltd,21013194,669.30
Borough Council of Kings Lynn and West Norfolk,E07000146,03/03/2022,Public Cleansing,Initiatives,WEL Medical Ltd,21013009,844.90
Borough Council of Kings Lynn and West Norfolk,E07000146,03/03/2022,Housing Options Programme,Homeless Prevention Fund,Edmonton Estates Ltd,22007569,935.00
Borough Council of Kings Lynn and West Norfolk,E07000146,03/03/2022,Home Improvements Agency,Agency Staff,Seven Resourcing Ltd,21012919,"1,204.04"
Borough Council of Kings Lynn and West Norfolk,E07000146,03/03/2022,Home Improvements Agency,Agency Staff,Seven Resourcing Ltd,21012920,"1,479.49"
Borough Council of Kings Lynn and West Norfolk,E07000146,03/03/2022,DWP at Kings Court,Contract Security,MPD FM Ltd,21012926,"1,946.16"
Borough Council of Kings Lynn and West Norfolk,E07000146,03/03/2022,DWP at Kings Court,Contract Security,MPD FM Ltd,21012927,"6,485.40"
Borough Council of Kings Lynn and West Norfolk,E07000146,03/03/2022,Towns Fund-Town Centre Repurposing,Professional Fees,Survey Solutions,21013205,"3,400.00"
Borough Council of Kings Lynn and West Norfolk,E07000146,03/03/2022,Financial Services,Computer Software Maint,Unit 4 Business Software Ltd,21013185,"44,344.81"
Borough Council of Kings Lynn and West Norfolk,E07000146,03/03/2022,Climate Change,Recruitment,TMP (UK) Ltd,22007446,"1,317.08"
Borough Council of Kings Lynn and West Norfolk,E07000146,03/03/2022,Rough Sleeper Fund,Covid 19,Excaliber Security Services Ltd,21013217,"5,107.20"
Borough Council of Kings Lynn and West Norfolk,E07000146,03/03/2022,Rough Sleeper Fund,Covid 19,Excaliber Security Services Ltd,21013218,"5,107.20"
Borough Council of Kings Lynn and West Norfolk,E07000146,03/03/2022,Rough Sleeper Fund,Covid 19,BACO-Compak (Norfolk) Ltd,21013231,580.00
Borough Council of Kings Lynn and West Norfolk,E07000146,03/03/2022,Kings Lynn Bus Station,Rent,APAM RE Vancouver GP Ltd Rent,22007573,"11,124.30"
Borough Council of Kings Lynn and West Norfolk,E07000146,03/03/2022,Kings Lynn Bus Station,Rent,APAM RE Vancouver GP Ltd Rent,22007574,"1,000.00"
Borough Council of Kings Lynn and West Norfolk,E07000146,03/03/2022,Green Bins/Recycling,Equipment/Materials,Egbert H Taylor,21013221,"4,531.20"
Borough Council of Kings Lynn and West Norfolk,E07000146,03/03/2022,Trade Bins,Equipment/Materials,Egbert H Taylor,21013221,"3,020.80"
Borough Council of Kings Lynn and West Norfolk,E07000146,03/03/2022,Refuse & Recyc Mgmt,Miscellaneous,Egbert H Taylor,21013221,405.00
Borough Council of Kings Lynn and West Norfolk,E07000146,03/03/2022,Trade Bins,Equipment/Materials,Egbert H Taylor,21013222,"7,552.25"
Borough Council of Kings Lynn and West Norfolk,E07000146,03/03/2022,Green Bins/Recycling,Equipment/Materials,Egbert H Taylor,21013222,"3,020.90"
Borough Council of Kings Lynn and West Norfolk,E07000146,03/03/2022,Printroom,Materials,Antalis Ltd,21012752,431.24
Borough Council of Kings Lynn and West Norfolk,E07000146,03/03/2022,Trade Refuse,Added Years Pension,Norfolk Pension Fund,21013192,"-2,977.87"
Borough Council of Kings Lynn and West Norfolk,E07000146,03/03/2022,Domestic Refuse,Added Years Pension,Norfolk Pension Fund,21013192,515.18
Borough Council of Kings Lynn and West Norfolk,E07000146,03/03/2022,Corporate,Added Years Pension,Norfolk Pension Fund,21013192,"19,927.96"
Borough Council of Kings Lynn and West Norfolk,E07000146,03/03/2022,Sth Quay Sommerfield & Thomas BRP,Professional Fees,The Morton Partnership Ltd,21013169,425.00
Borough Council of Kings Lynn and West Norfolk,E07000146,03/03/2022,Radio Phones,Rent,Highpoint Radio Communications Ltd,22007547,"1,950.00"
Borough Council of Kings Lynn and West Norfolk,E07000146,03/03/2022,Radio Phones,Rent,Highpoint Radio Communications Ltd,22007548,"1,950.00"
Borough Council of Kings Lynn and West Norfolk,E07000146,07/03/2022,Parking Operations - Brgh,Membership & Subscription,British Parking Association,21012895,906.00
Borough Council of Kings Lynn and West Norfolk,E07000146,07/03/2022,Postage Services K Court,Postages,Pitney Bowes Purchase Power Pre Pay,22007588,"5,000.00"
Borough Council of Kings Lynn and West Norfolk,E07000146,07/03/2022,Postage Services K Court,Postages,Pitney Bowes Purchase Power Pre Pay,22007588,11.00
Borough Council of Kings Lynn and West Norfolk,E07000146,07/03/2022,Public Cleansing,Vehicle - repairs & Maint,Bucher Muncipal Ltd,21012800,972.40
Borough Council of Kings Lynn and West Norfolk,E07000146,07/03/2022,Public Cleansing,Vehicle - repairs & Maint,Bucher Muncipal Ltd,21012803,439.38
Borough Council of Kings Lynn and West Norfolk,E07000146,07/03/2022,Corporate,Miscellaneous,PHF Training Ltd,21013172,"1,000.00"
Borough Council of Kings Lynn and West Norfolk,E07000146,07/03/2022,Register of Electors,Stationery & Office,Civica Election Services Ltd,22007452,632.31
Borough Council of Kings Lynn and West Norfolk,E07000146,07/03/2022,Register of Electors,Stationery & Office,Civica Election Services Ltd,22007453,"2,459.86"
Borough Council of Kings Lynn and West Norfolk,E07000146,07/03/2022,Decarbonisation ReFit 2,Works,AMR Electrical Services Ltd,21013295,"1,817.69"
Borough Council of Kings Lynn and West Norfolk,E07000146,07/03/2022,Community Projects CRS,Service Level Agreements,Freebridge Community Housing,21013329,"10,000.00"
Borough Council of Kings Lynn and West Norfolk,E07000146,07/03/2022,Revs & Bens System Replacement,Computer Equip (Software),Civica UK Ltd,21006050,"7,800.00"
Borough Council of Kings Lynn and West Norfolk,E07000146,07/03/2022,Revs & Bens System Replacement,Computer Equip (Software),Civica UK Ltd,21011612,"5,200.00"
Borough Council of Kings Lynn and West Norfolk,E07000146,07/03/2022,Mintlyn Crematorium,Repairs & Maintenance,Zagota Creation Ltd,21013182,825.00
Borough Council of Kings Lynn and West Norfolk,E07000146,07/03/2022,Careline,Tools And Equipment,Supra UK Ltd T/A The Key Safe Company,21012834,"2,790.60"
Borough Council of Kings Lynn and West Norfolk,E07000146,07/03/2022,Financial Services,Agency Staff,Hays Specialist Recruitment,21013331,"2,950.00"
Borough Council of Kings Lynn and West Norfolk,E07000146,07/03/2022,CCTV,Rental CCTV - BT,Net-Ctrl Ltd,21012829,"2,902.90"
Borough Council of Kings Lynn and West Norfolk,E07000146,07/03/2022,Hunstanton Southend Road,Contractor Works,Lovell Partnerships Ltd,21013313,"66,696.48"
Borough Council of Kings Lynn and West Norfolk,E07000146,07/03/2022,Parkway - Gaywood,Contractor Works,Lovell Partnerships Ltd,21013315,"20,427.27"
Borough Council of Kings Lynn and West Norfolk,E07000146,07/03/2022,Lynnsport 1,Contractor Works,Lovell Partnerships Ltd,21013316,"5,243.88"
Borough Council of Kings Lynn and West Norfolk,E07000146,07/03/2022,Hunstanton Bus Station & NCC Library,Contractor Works,Lovell Partnerships Ltd,21013317,"8,640.00"
Borough Council of Kings Lynn and West Norfolk,E07000146,07/03/2022,Salters Road,Contractor Works,Lovell Partnerships Ltd,21013319,"290,641.65"
Borough Council of Kings Lynn and West Norfolk,E07000146,07/03/2022,NORA Phase 4,Contractor Works,Lovell Partnerships Ltd,21013320,"504,140.85"
Borough Council of Kings Lynn and West Norfolk,E07000146,07/03/2022,Parking Operations - Brgh,Rent,Norfolk County Council,22007586,875.00
Borough Council of Kings Lynn and West Norfolk,E07000146,07/03/2022,Planning Control,Professional Fees,Sharpe Pritchard,21012014,"3,000.00"
Borough Council of Kings Lynn and West Norfolk,E07000146,07/03/2022,Planning Control,Professional Fees,Sharpe Pritchard,21012014,952.00
Borough Council of Kings Lynn and West Norfolk,E07000146,07/03/2022,Salters Road,Works,G C Baxter & Associates Ltd,21013330,562.51
Borough Council of Kings Lynn and West Norfolk,E07000146,07/03/2022,Arts Initatives,Project Costs,Collusion Cambridge Ltd,21013291,"31,000.00"
Borough Council of Kings Lynn and West Norfolk,E07000146,07/03/2022,Corporate Health & Safety,Staff Health & Safety,Skyguard Ltd T/A Peoplesafe,21012844,"1,336.50"
Borough Council of Kings Lynn and West Norfolk,E07000146,07/03/2022,Personnel Welfare,Staff Welfare,Mark Andrews,21012849,560.00
Borough Council of Kings Lynn and West Norfolk,E07000146,07/03/2022,Balance Sheet,VAT Input - VAT Only Purchases,Marston (Holdings) Ltd,22007493,917.48
Borough Council of Kings Lynn and West Norfolk,E07000146,07/03/2022,COMF Phase 3,Agency Staff,Danielle Barrett,21013326,660.00
Borough Council of Kings Lynn and West Norfolk,E07000146,07/03/2022,Housing standards,Energy Efficiency Expense,Borney UK Ltd,21013270,425.45
Borough Council of Kings Lynn and West Norfolk,E07000146,07/03/2022,KL Arts Centre,Hirings Ticketed,Avalon Promotions Ltd,22007579,852.50
Borough Council of Kings Lynn and West Norfolk,E07000146,07/03/2022,KL Arts Centre,Hiring Charges Income,Avalon Promotions Ltd,22007579,-326.35
Borough Council of Kings Lynn and West Norfolk,E07000146,07/03/2022,Salaries Oncost Account,Personnel DBS Checks,N Bulbeck,22007589,700.00
Borough Council of Kings Lynn and West Norfolk,E07000146,07/03/2022,KL Arts Centre,Hirings Ticketed,Jo Sarsby Personal Management,22007585,"2,479.17"
Borough Council of Kings Lynn and West Norfolk,E07000146,07/03/2022,KL Arts Centre,Hiring Charges Income,Jo Sarsby Personal Management,22007585,-637.50
Borough Council of Kings Lynn and West Norfolk,E07000146,07/03/2022,KL Arts Centre,Commission On Box Office,Jo Sarsby Personal Management,22007585,-216.25
Borough Council of Kings Lynn and West Norfolk,E07000146,07/03/2022,KL Arts Centre,Credit Card Recharge,Jo Sarsby Personal Management,22007585,-112.14
Borough Council of Kings Lynn and West Norfolk,E07000146,07/03/2022,KL Arts Centre,Equipment Hire,Jo Sarsby Personal Management,22007585,-37.00
Borough Council of Kings Lynn and West Norfolk,E07000146,07/03/2022,KL Arts Centre,Advertising Recharge,Jo Sarsby Personal Management,22007585,-100.00
Borough Council of Kings Lynn and West Norfolk,E07000146,07/03/2022,Comm Infrastructure Levy,Small Projects,Burnham Thorpe Playing Field Committee,22007581,"10,000.00"
Borough Council of Kings Lynn and West Norfolk,E07000146,07/03/2022,Trade Refuse,NCC Trade Waste Disposal,Norfolk County Council,21013477,"172,335.98"
Borough Council of Kings Lynn and West Norfolk,E07000146,08/03/2022,Reopening High Streets Safely Fund,Materials,Landmark Street Furniture Ltd,21013452,"10,820.00"
Borough Council of Kings Lynn and West Norfolk,E07000146,10/03/2022,Rough Sleeper Fund,Covid 19,Excaliber Security Services Ltd,21013366,"5,107.20"
Borough Council of Kings Lynn and West Norfolk,E07000146,10/03/2022,Dry Box Collection Scheme,Contracted Services,Serco Ltd,21013412,"66,271.94"
Borough Council of Kings Lynn and West Norfolk,E07000146,10/03/2022,Domestic Refuse,Contracted Services,Serco Ltd,21013412,"66,945.15"
Borough Council of Kings Lynn and West Norfolk,E07000146,10/03/2022,Food Waste,Contracted Services,Serco Ltd,21013412,"58,519.81"
Borough Council of Kings Lynn and West Norfolk,E07000146,10/03/2022,Refuse & Recyc Mgmt,Contracted Services,Serco Ltd,21013412,"35,112.60"
Borough Council of Kings Lynn and West Norfolk,E07000146,10/03/2022,Refuse & Recyc Mgmt,Contracted Services,Serco Ltd,21013413,"4,619.77"
Borough Council of Kings Lynn and West Norfolk,E07000146,10/03/2022,Food Waste,Contracted Services,Serco Ltd,21013413,"7,699.47"
Borough Council of Kings Lynn and West Norfolk,E07000146,10/03/2022,Dry Box Collection Scheme,Contracted Services,Serco Ltd,21013413,"8,807.99"
Borough Council of Kings Lynn and West Norfolk,E07000146,10/03/2022,Domestic Refuse,Contracted Services,Serco Ltd,21013413,"8,719.42"
Borough Council of Kings Lynn and West Norfolk,E07000146,10/03/2022,Dry Box Collection Scheme,Contracted Services,Serco Ltd,21013414,"66,271.94"
Borough Council of Kings Lynn and West Norfolk,E07000146,10/03/2022,Domestic Refuse,Contracted Services,Serco Ltd,21013414,"66,945.15"
Borough Council of Kings Lynn and West Norfolk,E07000146,10/03/2022,Food Waste,Contracted Services,Serco Ltd,21013414,"58,519.81"
Borough Council of Kings Lynn and West Norfolk,E07000146,10/03/2022,Refuse & Recyc Mgmt,Contracted Services,Serco Ltd,21013414,"35,112.60"
Borough Council of Kings Lynn and West Norfolk,E07000146,10/03/2022,Dry Box Collection Scheme,Contracted Services,Serco Ltd,21013415,"66,271.94"
Borough Council of Kings Lynn and West Norfolk,E07000146,10/03/2022,Domestic Refuse,Contracted Services,Serco Ltd,21013415,"66,945.15"
Borough Council of Kings Lynn and West Norfolk,E07000146,10/03/2022,Food Waste,Contracted Services,Serco Ltd,21013415,"58,519.81"
Borough Council of Kings Lynn and West Norfolk,E07000146,10/03/2022,Refuse & Recyc Mgmt,Contracted Services,Serco Ltd,21013415,"35,112.60"
Borough Council of Kings Lynn and West Norfolk,E07000146,10/03/2022,Dry Box Collection Scheme,Contracted Services,Serco Ltd,21013416,"66,271.94"
Borough Council of Kings Lynn and West Norfolk,E07000146,10/03/2022,Domestic Refuse,Contracted Services,Serco Ltd,21013416,"66,945.15"
Borough Council of Kings Lynn and West Norfolk,E07000146,10/03/2022,Food Waste,Contracted Services,Serco Ltd,21013416,"58,519.81"
Borough Council of Kings Lynn and West Norfolk,E07000146,10/03/2022,Refuse & Recyc Mgmt,Contracted Services,Serco Ltd,21013416,"35,112.60"
Borough Council of Kings Lynn and West Norfolk,E07000146,10/03/2022,NORA Phase 2,Professional Fees,NPS Property Consultants Ltd,21013349,"6,048.96"
Borough Council of Kings Lynn and West Norfolk,E07000146,10/03/2022,Housing Joint Venture,Professional Fees,NPS Property Consultants Ltd,21013350,"6,271.35"
Borough Council of Kings Lynn and West Norfolk,E07000146,10/03/2022,Leisure Management Costs,Professional Fees,English Sports Council t/a Sport England,21013175,"1,500.00"
Borough Council of Kings Lynn and West Norfolk,E07000146,10/03/2022,Town Fund - Public Realm,Professional Fees,Waterland Associates Ltd,21013337,700.00
Borough Council of Kings Lynn and West Norfolk,E07000146,10/03/2022,Coast Defence/Protection,Repairs & Maintenance,Gunite (Eastern) Ltd,21012940,"3,295.00"
Borough Council of Kings Lynn and West Norfolk,E07000146,10/03/2022,Athletics Cage and Lighting,Works,Sport & Play Ltd,21013006,"12,095.25"
Borough Council of Kings Lynn and West Norfolk,E07000146,10/03/2022,Sports Grounds North,Repairs & Maintenance,CIA Fire and Security Ltd,21013378,601.40
Borough Council of Kings Lynn and West Norfolk,E07000146,10/03/2022,Comm Infrastructure Levy,Small Projects,Burnham Norton Parish Meeting,22007612,"1,155.00"
Borough Council of Kings Lynn and West Norfolk,E07000146,10/03/2022,Reopening High Streets Safely Fund,Professional Fees,Hary Stebbing Workshop,22007631,"1,525.00"
Borough Council of Kings Lynn and West Norfolk,E07000146,10/03/2022,Towns Fund,Professional Fees,Mott MacDonald Limited,21012928,"15,250.41"
Borough Council of Kings Lynn and West Norfolk,E07000146,10/03/2022,Trade Refuse,NCC Trade Waste Disposal,Norfolk County Council,21013408,"48,146.34"
Borough Council of Kings Lynn and West Norfolk,E07000146,10/03/2022,Trade Refuse,NCC Trade Waste Disposal,Norfolk County Council,21013409,"48,883.32"
Borough Council of Kings Lynn and West Norfolk,E07000146,10/03/2022,Trade Refuse,NCC Trade Waste Disposal,Norfolk County Council,21013410,"43,505.64"
Borough Council of Kings Lynn and West Norfolk,E07000146,10/03/2022,Head of Legal Services,External Legal fees,North Norfolk District Council,22007623,"3,387.00"
Borough Council of Kings Lynn and West Norfolk,E07000146,10/03/2022,Pub & Tourism int charges,Postages,Royal Mail Group Ltd,22007627,0.45
Borough Council of Kings Lynn and West Norfolk,E07000146,10/03/2022,Financial Services,Postages,Royal Mail Group Ltd,22007627,233.28
Borough Council of Kings Lynn and West Norfolk,E07000146,10/03/2022,Benefit Administration,Postages,Royal Mail Group Ltd,22007627,563.37
Borough Council of Kings Lynn and West Norfolk,E07000146,10/03/2022,Cost of Collection - CTax,Postages,Royal Mail Group Ltd,22007627,898.80
Borough Council of Kings Lynn and West Norfolk,E07000146,10/03/2022,Kings Lynn Bid,Postages,Royal Mail Group Ltd,22007627,0.90
Borough Council of Kings Lynn and West Norfolk,E07000146,10/03/2022,Benefit Administration,Postages,Royal Mail Group Ltd,22007627,13.95
Borough Council of Kings Lynn and West Norfolk,E07000146,10/03/2022,Cost of Collection - CTax,Postages,Royal Mail Group Ltd,22007627,17.82
Borough Council of Kings Lynn and West Norfolk,E07000146,10/03/2022,Register of Electors,Postages,Royal Mail Group Ltd,22007629,722.28
Borough Council of Kings Lynn and West Norfolk,E07000146,10/03/2022,Parking Operations - Brgh,Stationery & Office,Hodson Office Supplies,21013358,659.96
Borough Council of Kings Lynn and West Norfolk,E07000146,10/03/2022,Town Hall Kings Lynn,Repairs & Maintenance,CTS Security Ltd,21013395,675.00
Borough Council of Kings Lynn and West Norfolk,E07000146,10/03/2022,Parking Operations - Brgh,Royal Household Support,V & J Knitwear Ltd,21013339,497.25
Borough Council of Kings Lynn and West Norfolk,E07000146,10/03/2022,Public Cleansing,Cleaning Material & Equip,V & J Knitwear Ltd,21013136,573.19
Borough Council of Kings Lynn and West Norfolk,E07000146,10/03/2022,Public Cleansing,Sweeper Consumables,Bucher Muncipal Ltd,21012902,460.29
Borough Council of Kings Lynn and West Norfolk,E07000146,10/03/2022,Recycling Composting,Waste Processing Cost,Greenworld Sales Ltd t/a Greenworld,21013404,"10,241.93"
Borough Council of Kings Lynn and West Norfolk,E07000146,10/03/2022,Air Quality,Consultants Fees,Bureau Veritas UK Ltd,21012906,"2,950.00"
Borough Council of Kings Lynn and West Norfolk,E07000146,10/03/2022,Air Quality,Consultants Fees,Martin Cranfield Associates Ltd,21013354,"3,532.84"
Borough Council of Kings Lynn and West Norfolk,E07000146,10/03/2022,Air Quality,Consultants Fees,Martin Cranfield Associates Ltd,21013362,"3,532.84"
Borough Council of Kings Lynn and West Norfolk,E07000146,10/03/2022,CCTV,Repairs & Maintenance,Amey LG Ltd,21012913,"2,546.49"
Borough Council of Kings Lynn and West Norfolk,E07000146,10/03/2022,Financial Services,Agency Staff,Hays Specialist Recruitment,21013359,590.00
Borough Council of Kings Lynn and West Norfolk,E07000146,10/03/2022,Financial Services,Agency Staff,Hays Specialist Recruitment,21013361,"1,180.00"
Borough Council of Kings Lynn and West Norfolk,E07000146,10/03/2022,ICT,Computer Hardware Maint,Midland Computer Services Ltd,21013407,908.72
Borough Council of Kings Lynn and West Norfolk,E07000146,10/03/2022,Parking Operations - Brgh,Tools And Equipment,Mobius Networks Ltd,21013353,670.30
Borough Council of Kings Lynn and West Norfolk,E07000146,10/03/2022,Balance Sheet,VAT Input - VAT Only Purchases,Newlyn PLC,22007620,"1,844.95"
Borough Council of Kings Lynn and West Norfolk,E07000146,10/03/2022,Balance Sheet,VAT Input - VAT Only Purchases,Newlyn PLC,22007622,648.95
Borough Council of Kings Lynn and West Norfolk,E07000146,10/03/2022,Home Improvements Agency,Agency Staff,Seven Resourcing Ltd,21013043,"1,585.94"
Borough Council of Kings Lynn and West Norfolk,E07000146,10/03/2022,Home Improvements Agency,Agency Staff,Seven Resourcing Ltd,21013044,"1,110.98"
Borough Council of Kings Lynn and West Norfolk,E07000146,10/03/2022,Creditors Holding Account,Water & Drainage Rates,WAVE,22007633,"2,917.29"
Borough Council of Kings Lynn and West Norfolk,E07000146,10/03/2022,Financial Services,Contracted Services,Embridge Consulting (UK) Ltd,21013399,"1,244.84"
Borough Council of Kings Lynn and West Norfolk,E07000146,10/03/2022,CCTV,Rental CCTV - BT,Quality Essential Distribution Ltd,21012845,"4,998.30"
Borough Council of Kings Lynn and West Norfolk,E07000146,10/03/2022,Network Hardware holding,Tools And Equipment,Quality Essential Distribution Ltd,21012845,"20,504.00"
Borough Council of Kings Lynn and West Norfolk,E07000146,10/03/2022,CCTV,Repairs & Maintenance,Quality Essential Distribution Ltd,21012845,"3,728.00"
Borough Council of Kings Lynn and West Norfolk,E07000146,10/03/2022,Property Services,Recruitment,TMP (UK) Ltd,22007520,"4,218.92"
Borough Council of Kings Lynn and West Norfolk,E07000146,10/03/2022,Rough Sleeper Fund,Covid 19,Excaliber Security Services Ltd,21013365,"5,107.20"
Borough Council of Kings Lynn and West Norfolk,E07000146,14/03/2022,Reopening High Streets Safely Fund,Materials,Landmark Street Furniture Ltd,21013488,"10,820.00"
Borough Council of Kings Lynn and West Norfolk,E07000146,14/03/2022,Housing standards,Computer Equipment,Dell Corporation Ltd,21013396,544.31
Borough Council of Kings Lynn and West Norfolk,E07000146,14/03/2022,Town Centre Manager,Christmas Lighting,Kings & Barnhams,21013311,650.00
Borough Council of Kings Lynn and West Norfolk,E07000146,14/03/2022,Rough Sleeper Fund,Covid 19,BACO-Compak (Norfolk) Ltd,21013430,740.00
Borough Council of Kings Lynn and West Norfolk,E07000146,14/03/2022,Play Areas,Repairs & Maintenance,Kompan Ltd,21012941,594.96
Borough Council of Kings Lynn and West Norfolk,E07000146,14/03/2022,Parish/B Coun. Elections,Stationery & Office,Civica Election Services Ltd,22007480,"1,107.81"
Borough Council of Kings Lynn and West Norfolk,E07000146,14/03/2022,Natl Assist Act Burials,Burial Fees-Nat.Ass.Act,Thornalley Funeral Services Ltd,21013478,"1,045.00"
Borough Council of Kings Lynn and West Norfolk,E07000146,14/03/2022,Natl Assist Act Burials,Burial Fees-Nat.Ass.Act,Thornalley Funeral Services Ltd,21013479,"1,402.00"
Borough Council of Kings Lynn and West Norfolk,E07000146,14/03/2022,Corporate Communitcations,Advertising & Marketing,KL Publications Ltd,21013472,576.00
Borough Council of Kings Lynn and West Norfolk,E07000146,14/03/2022,Cost of Collection - CTax,Advertising & Marketing,Your Local Paper Ltd,21013486,549.00
Borough Council of Kings Lynn and West Norfolk,E07000146,14/03/2022,COMF Phase 3,Covid 19,Your Local Paper Ltd,21012875,"1,150.00"
Borough Council of Kings Lynn and West Norfolk,E07000146,14/03/2022,CCTV,Repairs & Maintenance,Net-Ctrl Ltd,21012997,"1,116.16"
Borough Council of Kings Lynn and West Norfolk,E07000146,14/03/2022,Corporate Policy,Small Projects,Iliffe Media Publishing Ltd,21012932,500.00
Borough Council of Kings Lynn and West Norfolk,E07000146,14/03/2022,Crematorium Trading Account,Memorial Plates,Anglia Sign Casting Ltd,21013011,"1,186.00"
Borough Council of Kings Lynn and West Norfolk,E07000146,14/03/2022,Printing&Copying-Floor Copiers,Click Charges,Capita Business Services Ltd,21013015,"1,727.80"
Borough Council of Kings Lynn and West Norfolk,E07000146,14/03/2022,COMF Phase 3,Covid 19,Millington Enterprises t/a Radio West Norfolk,21012828,915.00
Borough Council of Kings Lynn and West Norfolk,E07000146,14/03/2022,Financial Services,Postages,Royal Mail Group Ltd,22007660,119.86
Borough Council of Kings Lynn and West Norfolk,E07000146,14/03/2022,Benefit Administration,Postages,Royal Mail Group Ltd,22007660,395.68
Borough Council of Kings Lynn and West Norfolk,E07000146,14/03/2022,Cost of Collection - CTax,Postages,Royal Mail Group Ltd,22007660,574.87
Borough Council of Kings Lynn and West Norfolk,E07000146,14/03/2022,Kings Lynn Bid,Postages,Royal Mail Group Ltd,22007660,1.50
Borough Council of Kings Lynn and West Norfolk,E07000146,14/03/2022,Pub & Tourism int charges,Postages,Royal Mail Group Ltd,22007660,5.40
Borough Council of Kings Lynn and West Norfolk,E07000146,14/03/2022,Benefit Administration,Postages,Royal Mail Group Ltd,22007660,7.65
Borough Council of Kings Lynn and West Norfolk,E07000146,14/03/2022,Cost of Collection - CTax,Postages,Royal Mail Group Ltd,22007660,0.45
Borough Council of Kings Lynn and West Norfolk,E07000146,14/03/2022,Care & Repair - Fenland Agency,Agency,David Trundley Design Services Ltd,22007639,825.00
Borough Council of Kings Lynn and West Norfolk,E07000146,14/03/2022,Norfolk Tourism Package,Equipment/Materials,Able Engineering Ltd,21010603,"2,400.00"
Borough Council of Kings Lynn and West Norfolk,E07000146,14/03/2022,Street Naming & Numbering,Repairs & Maintenance,Midland Signs (Leics) t/a G & G Signs,21013195,"1,172.63"
Borough Council of Kings Lynn and West Norfolk,E07000146,14/03/2022,Public Cleansing,Cleaning Material & Equip,V & J Knitwear Ltd,21013481,438.04
Borough Council of Kings Lynn and West Norfolk,E07000146,14/03/2022,Licensing,CRB Forms - Expenditure,Disclosure & Barring Service,22007664,160.00
Borough Council of Kings Lynn and West Norfolk,E07000146,14/03/2022,Personnel Services,Personnel DBS Checks,Disclosure & Barring Service,22007664,440.00
Borough Council of Kings Lynn and West Norfolk,E07000146,14/03/2022,Parking Operations - Brgh,Personnel DBS Checks,Disclosure & Barring Service,22007664,120.00
Borough Council of Kings Lynn and West Norfolk,E07000146,14/03/2022,LILY 5,Personnel DBS Checks,Disclosure & Barring Service,22007664,40.00
Borough Council of Kings Lynn and West Norfolk,E07000146,14/03/2022,Home Improvements Agency,Personnel DBS Checks,Disclosure & Barring Service,22007664,40.00
Borough Council of Kings Lynn and West Norfolk,E07000146,14/03/2022,Housing standards,Personnel DBS Checks,Disclosure & Barring Service,22007664,80.00
Borough Council of Kings Lynn and West Norfolk,E07000146,14/03/2022,Resort Trading Operations,Personnel DBS Checks,Disclosure & Barring Service,22007664,200.00
Borough Council of Kings Lynn and West Norfolk,E07000146,14/03/2022,Kings Court Flat Roof,Works,JD Cooling Systems Ltd,21013445,"2,849.00"
Borough Council of Kings Lynn and West Norfolk,E07000146,14/03/2022,ICT,Computer Software Maint,Claranet Ltd,21013394,61.15
Borough Council of Kings Lynn and West Norfolk,E07000146,14/03/2022,ICT,Communications,Claranet Ltd,21013394,"1,359.02"
Borough Council of Kings Lynn and West Norfolk,E07000146,14/03/2022,Mintlyn Crematorium,Broadband Charge,Claranet Ltd,21013394,147.47
Borough Council of Kings Lynn and West Norfolk,E07000146,14/03/2022,NNDC Carpark Operation,Broadband Charge,Claranet Ltd,21013394,188.36
Borough Council of Kings Lynn and West Norfolk,E07000146,14/03/2022,ICT,Broadband Charge,Claranet Ltd,21013394,48.32
Borough Council of Kings Lynn and West Norfolk,E07000146,14/03/2022,South Lynn Community Centre,Broadband Charge,Claranet Ltd,21013394,48.32
Borough Council of Kings Lynn and West Norfolk,E07000146,14/03/2022,Benefit Administration,Broadband Charge,Claranet Ltd,21013394,288.85
Borough Council of Kings Lynn and West Norfolk,E07000146,14/03/2022,Air Quality,Broadband Charge,Claranet Ltd,21013394,138.54
Borough Council of Kings Lynn and West Norfolk,E07000146,14/03/2022,CCTV,Broadband Charge,Claranet Ltd,21013394,69.27
Borough Council of Kings Lynn and West Norfolk,E07000146,14/03/2022,Radio Phones,Communications,Claranet Ltd,21013394,67.76
Borough Council of Kings Lynn and West Norfolk,E07000146,14/03/2022,Kings Court Kings Lynn,Covid 19,XL Displays Limited,21012877,"4,446.00"
Borough Council of Kings Lynn and West Norfolk,E07000146,14/03/2022,The Walks,Materials,Practical Plants Ltd,21013411,461.08
,,14/03/2022,LILY 5,Computer Equipment,Dell Corporation Ltd,21013455,530.76
,,14/03/2022,Careline,Stationery & Office,Dell Corporation Ltd,21013455,530.76
Borough Council of Kings Lynn and West Norfolk,E07000146,17/03/2022,Corporate Insurance,Professional Fees,Arthur J Gallagher Insurance Brokers Ltd,21013601,"4,000.00"
Borough Council of Kings Lynn and West Norfolk,E07000146,17/03/2022,Property Services,Professional Fees,Lambert Smith Hampton Group Ltd,21013064,"5,250.00"
Borough Council of Kings Lynn and West Norfolk,E07000146,17/03/2022,Planning Control,Professional Fees,Richard Utting Associates LLP,21013042,750.00
Borough Council of Kings Lynn and West Norfolk,E07000146,17/03/2022,St Georges Guildhall Complex,Professional Fees,Focus Consultants 2010 LLP,21013640,800.00
Borough Council of Kings Lynn and West Norfolk,E07000146,17/03/2022,Parking Operations - Brgh,Tools And Equipment,Specialist Computer Centres,21013236,"4,940.90"
Borough Council of Kings Lynn and West Norfolk,E07000146,17/03/2022,NNDC Carpark Operation,Tools And Equipment,Specialist Computer Centres,21013236,"1,644.40"
Borough Council of Kings Lynn and West Norfolk,E07000146,17/03/2022,Decrim - Operational,Tools And Equipment,Specialist Computer Centres,21013236,"7,893.12"
Borough Council of Kings Lynn and West Norfolk,E07000146,17/03/2022,Car Park - Great Yarmouth,Tools And Equipment,Specialist Computer Centres,21013236,"1,973.28"
Borough Council of Kings Lynn and West Norfolk,E07000146,17/03/2022,The Walks,Materials,Practical Plants Ltd,21013504,461.08
Borough Council of Kings Lynn and West Norfolk,E07000146,17/03/2022,Public conveniences,Sewerage/Cesspool Empty,BACO-Compak (Norfolk) Ltd,21013635,"1,290.00"
Borough Council of Kings Lynn and West Norfolk,E07000146,17/03/2022,ICT,Telephones,British Telecommunications PLC,21013631,504.74
Borough Council of Kings Lynn and West Norfolk,E07000146,17/03/2022,ICT,Broadband Charge,British Telecommunications PLC,21013632,"1,032.42"
Borough Council of Kings Lynn and West Norfolk,E07000146,17/03/2022,Financial Services,Agency Staff,Hays Specialist Recruitment,21013591,"1,622.50"
Borough Council of Kings Lynn and West Norfolk,E07000146,17/03/2022,Financial Services,Agency Staff,Hays Specialist Recruitment,21013589,"2,950.00"
Borough Council of Kings Lynn and West Norfolk,E07000146,17/03/2022,Grounds Southern Area,Fuel,UK Fuels Ltd,22007683,133.52
Borough Council of Kings Lynn and West Norfolk,E07000146,17/03/2022,Public Cleansing,Fuel,UK Fuels Ltd,22007683,479.16
Borough Council of Kings Lynn and West Norfolk,E07000146,17/03/2022,Grounds Southern Area,Fuel,UK Fuels Ltd,22007683,74.85
Borough Council of Kings Lynn and West Norfolk,E07000146,17/03/2022,Grounds Southern Area,Fuel,UK Fuels Ltd,22007683,135.69
Borough Council of Kings Lynn and West Norfolk,E07000146,17/03/2022,Econ Partnership Working,Initiative Supprt Funding,New Anglia Local Enterprise Ptn Ltd,21013518,"16,500.00"
Borough Council of Kings Lynn and West Norfolk,E07000146,17/03/2022,General Property,Advertising & Marketing,Rightmove Group Ltd,21013068,720.00
Borough Council of Kings Lynn and West Norfolk,E07000146,17/03/2022,Parking Operations - Brgh,Advertising & Marketing,Your Local Paper Ltd,21013484,"1,094.00"
Borough Council of Kings Lynn and West Norfolk,E07000146,17/03/2022,Street Lighting,Repairs & Maintenance,Westcotec Ltd,21013026,765.62
Borough Council of Kings Lynn and West Norfolk,E07000146,17/03/2022,Parkway - Gaywood,Works,Ashfield Japanese Knotweed Ltd,21013429,"1,000.00"
Borough Council of Kings Lynn and West Norfolk,E07000146,17/03/2022,Property Services,Tools And Equipment,TelefonicaO2UK Ltd,21013506,668.92
Borough Council of Kings Lynn and West Norfolk,E07000146,17/03/2022,Home Improvements Agency,Agency Staff,Seven Resourcing Ltd,21013206,754.68
Borough Council of Kings Lynn and West Norfolk,E07000146,17/03/2022,Home Improvements Agency,Agency Staff,Seven Resourcing Ltd,21013207,"1,601.24"
Borough Council of Kings Lynn and West Norfolk,E07000146,17/03/2022,Parks & Open Spaces,Tree Surgery,Golden Tree Surgeons Ltd,21013600,"3,390.00"
Borough Council of Kings Lynn and West Norfolk,E07000146,17/03/2022,Parks & Open Spaces,Tree Work/Storm Damage,Golden Tree Surgeons Ltd,21013598,"1,380.00"
Borough Council of Kings Lynn and West Norfolk,E07000146,17/03/2022,LILY 5,Lily Advisor Payments,Family Action,21013608,958.33
Borough Council of Kings Lynn and West Norfolk,E07000146,17/03/2022,LILY 5,Lily Advisor Payments,West Norfolk Carers Association,21013524,"1,852.50"
Borough Council of Kings Lynn and West Norfolk,E07000146,17/03/2022,LILY 5,Lily Advisor Payments,Norfolk and Waveney Mind,21013549,"1,852.50"
Borough Council of Kings Lynn and West Norfolk,E07000146,17/03/2022,Recycling Composting,Contracted Services,Serco Ltd,21013537,"43,261.67"
Borough Council of Kings Lynn and West Norfolk,E07000146,17/03/2022,Trade Refuse,Contracted Services,Serco Ltd,21013537,"9,829.61"
Borough Council of Kings Lynn and West Norfolk,E07000146,17/03/2022,Recycling Commercial,Contracted Services,Serco Ltd,21013537,"5,378.00"
Borough Council of Kings Lynn and West Norfolk,E07000146,17/03/2022,Domestic Refuse,Dayworks and Addnl Works,Serco Ltd,21013537,"16,620.81"
Borough Council of Kings Lynn and West Norfolk,E07000146,17/03/2022,Domestic Refuse,Clinical & Medical Waste,Serco Ltd,21013537,"1,373.44"
Borough Council of Kings Lynn and West Norfolk,E07000146,17/03/2022,Domestic Refuse,Litter Bins,Serco Ltd,21013537,"9,114.16"
Borough Council of Kings Lynn and West Norfolk,E07000146,17/03/2022,Recycling Composting,Contracted Services,Serco Ltd,21013538,"43,446.30"
Borough Council of Kings Lynn and West Norfolk,E07000146,17/03/2022,Trade Refuse,Contracted Services,Serco Ltd,21013538,"9,829.61"
Borough Council of Kings Lynn and West Norfolk,E07000146,17/03/2022,Recycling Commercial,Contracted Services,Serco Ltd,21013538,"5,378.00"
Borough Council of Kings Lynn and West Norfolk,E07000146,17/03/2022,Domestic Refuse,Dayworks and Addnl Works,Serco Ltd,21013538,"14,764.95"
Borough Council of Kings Lynn and West Norfolk,E07000146,17/03/2022,Domestic Refuse,Clinical & Medical Waste,Serco Ltd,21013538,"1,588.81"
Borough Council of Kings Lynn and West Norfolk,E07000146,17/03/2022,Domestic Refuse,Litter Bins,Serco Ltd,21013538,"9,114.16"
Borough Council of Kings Lynn and West Norfolk,E07000146,17/03/2022,Domestic Refuse,Litter Bins,Serco Ltd,21013539,"9,333.74"
Borough Council of Kings Lynn and West Norfolk,E07000146,17/03/2022,Domestic Refuse,Clinical & Medical Waste,Serco Ltd,21013539,"1,425.61"
Borough Council of Kings Lynn and West Norfolk,E07000146,17/03/2022,Domestic Refuse,Dayworks and Addnl Works,Serco Ltd,21013539,"11,534.24"
Borough Council of Kings Lynn and West Norfolk,E07000146,17/03/2022,Recycling Commercial,Contracted Services,Serco Ltd,21013539,"5,378.00"
Borough Council of Kings Lynn and West Norfolk,E07000146,17/03/2022,Trade Refuse,Contracted Services,Serco Ltd,21013539,"9,829.61"
Borough Council of Kings Lynn and West Norfolk,E07000146,17/03/2022,Recycling Composting,Contracted Services,Serco Ltd,21013539,"43,540.87"
Borough Council of Kings Lynn and West Norfolk,E07000146,17/03/2022,Recycling Composting,Contracted Services,Serco Ltd,21013540,"43,540.87"
Borough Council of Kings Lynn and West Norfolk,E07000146,17/03/2022,Trade Refuse,Contracted Services,Serco Ltd,21013540,"9,829.61"
Borough Council of Kings Lynn and West Norfolk,E07000146,17/03/2022,Recycling Commercial,Contracted Services,Serco Ltd,21013540,"5,378.00"
Borough Council of Kings Lynn and West Norfolk,E07000146,17/03/2022,Domestic Refuse,Dayworks and Addnl Works,Serco Ltd,21013540,"11,668.90"
Borough Council of Kings Lynn and West Norfolk,E07000146,17/03/2022,Domestic Refuse,Clinical & Medical Waste,Serco Ltd,21013540,"1,817.06"
Borough Council of Kings Lynn and West Norfolk,E07000146,17/03/2022,Domestic Refuse,Litter Bins,Serco Ltd,21013540,"9,114.16"
Borough Council of Kings Lynn and West Norfolk,E07000146,17/03/2022,Domestic Refuse,Litter Bins,Serco Ltd,21013541,"9,114.16"
Borough Council of Kings Lynn and West Norfolk,E07000146,17/03/2022,Domestic Refuse,Clinical & Medical Waste,Serco Ltd,21013541,"1,142.53"
Borough Council of Kings Lynn and West Norfolk,E07000146,17/03/2022,Domestic Refuse,Dayworks and Addnl Works,Serco Ltd,21013541,"9,298.25"
Borough Council of Kings Lynn and West Norfolk,E07000146,17/03/2022,Recycling Commercial,Contracted Services,Serco Ltd,21013541,"5,378.00"
Borough Council of Kings Lynn and West Norfolk,E07000146,17/03/2022,Trade Refuse,Contracted Services,Serco Ltd,21013541,"9,829.61"
Borough Council of Kings Lynn and West Norfolk,E07000146,17/03/2022,Recycling Composting,Contracted Services,Serco Ltd,21013541,"42,857.87"
Borough Council of Kings Lynn and West Norfolk,E07000146,17/03/2022,Recycling Composting,Contracted Services,Serco Ltd,21013502,"42,236.41"
Borough Council of Kings Lynn and West Norfolk,E07000146,17/03/2022,Trade Refuse,Contracted Services,Serco Ltd,21013502,"9,829.61"
Borough Council of Kings Lynn and West Norfolk,E07000146,17/03/2022,Recycling Commercial,Contracted Services,Serco Ltd,21013502,"5,378.00"
Borough Council of Kings Lynn and West Norfolk,E07000146,17/03/2022,Domestic Refuse,Dayworks and Addnl Works,Serco Ltd,21013502,"14,753.06"
Borough Council of Kings Lynn and West Norfolk,E07000146,17/03/2022,Domestic Refuse,Clinical & Medical Waste,Serco Ltd,21013502,"1,748.60"
Borough Council of Kings Lynn and West Norfolk,E07000146,17/03/2022,Domestic Refuse,Litter Bins,Serco Ltd,21013502,"9,114.16"
Borough Council of Kings Lynn and West Norfolk,E07000146,17/03/2022,Reopening High Streets Safely Fund,Professional Fees,Castle Acre Parish Council,21013627,426.22
Borough Council of Kings Lynn and West Norfolk,E07000146,17/03/2022,Sports Grounds Central,Materials,Collier Turf Care Ltd,21013623,845.40
Borough Council of Kings Lynn and West Norfolk,E07000146,17/03/2022,Sports Grounds North,Materials,Collier Turf Care Ltd,21013623,845.40
Borough Council of Kings Lynn and West Norfolk,E07000146,17/03/2022,Sail the Wash,Consultants Fees,Fenland District Council,21013604,"30,000.00"
Borough Council of Kings Lynn and West Norfolk,E07000146,17/03/2022,General Property,Repairs & Maintenance,Kings Lynn Conservancy Board,21013566,"4,779.00"
Borough Council of Kings Lynn and West Norfolk,E07000146,17/03/2022,NEWS Depot,Contract Cleaning,Marathon Services Ltd,21013519,"1,384.00"
Borough Council of Kings Lynn and West Norfolk,E07000146,17/03/2022,Radio Phones,Communications,Norfolk County Council,21013638,"2,500.00"
Borough Council of Kings Lynn and West Norfolk,E07000146,17/03/2022,Training Holding Account,Training,Norfolk County Council,21013551,850.00
Borough Council of Kings Lynn and West Norfolk,E07000146,17/03/2022,Training Holding Account,Training,Norfolk County Council,21013552,850.00
Borough Council of Kings Lynn and West Norfolk,E07000146,17/03/2022,Housing standards,Energy Efficiency Expense,North Norfolk District Council,21013550,"5,000.00"
Borough Council of Kings Lynn and West Norfolk,E07000146,17/03/2022,Dry Box Collection Scheme,MRF Smoothing Adjustment,North Norfolk District Council,21013517,"171,447.28"
Borough Council of Kings Lynn and West Norfolk,E07000146,17/03/2022,Parking Operations - Brgh,Repairs & Maintenance,Penty Contractors Ltd,21013446,"1,350.00"
Borough Council of Kings Lynn and West Norfolk,E07000146,17/03/2022,Heacham Beach,Repairs & Maintenance,Penty Contractors Ltd,21013449,"1,200.00"
Borough Council of Kings Lynn and West Norfolk,E07000146,17/03/2022,ICT,Computer Software Maint,Phoenix Software Ltd,21013067,"25,122.60"
Borough Council of Kings Lynn and West Norfolk,E07000146,17/03/2022,Dry Box Collection Scheme,Waste Processing Cost,Norse Environmental Services,21013522,"54,950.84"
Borough Council of Kings Lynn and West Norfolk,E07000146,17/03/2022,Food Waste,Waste Processing Cost,Norse Environmental Services,21013523,"7,196.32"
Borough Council of Kings Lynn and West Norfolk,E07000146,17/03/2022,The Walks,Materials,Tamar Nurseries Ltd,21013499,447.10
Borough Council of Kings Lynn and West Norfolk,E07000146,17/03/2022,Cafe in the Park,Confectionery - Supplies,Eden Farm Hulleys Ltd,21013397,775.61
Borough Council of Kings Lynn and West Norfolk,E07000146,17/03/2022,Supplier Holding Account,Vehicle - repairs & Maint,North Street Tyres,22007680,"1,091.88"
Borough Council of Kings Lynn and West Norfolk,E07000146,17/03/2022,Street Sweeping,Animal Removal,Peaceful Pets Ltd,22007681,425.00
Borough Council of Kings Lynn and West Norfolk,E07000146,17/03/2022,Street Sweeping,Animal Removal,Peaceful Pets Ltd,22007682,990.00
Borough Council of Kings Lynn and West Norfolk,E07000146,17/03/2022,Planning Control,Professional Fees,Carter Jonas LLP,21013628,"4,000.00"
Borough Council of Kings Lynn and West Norfolk,E07000146,17/03/2022,LILY 5,Lily Advisor Payments,West Norfolk Befriending,21013525,"1,000.00"
Borough Council of Kings Lynn and West Norfolk,E07000146,17/03/2022,Recycling Composting,Waste Processing Cost,Greenworld Sales Ltd t/a Greenworld,21013599,482.69
Borough Council of Kings Lynn and West Norfolk,E07000146,17/03/2022,Street Sweeping,Hazardous Waste Disposal,WEAAR Ltd,21013322,750.00
Borough Council of Kings Lynn and West Norfolk,E07000146,17/03/2022,Vehicle Recharge on account,Fuel,Worldline IT Services UK Re Fuelgenie,22007676,"10,662.80"
Borough Council of Kings Lynn and West Norfolk,E07000146,17/03/2022,Recycling Composting,Contracted Services,Serco Ltd,21013503,"43,126.57"
Borough Council of Kings Lynn and West Norfolk,E07000146,17/03/2022,Trade Refuse,Contracted Services,Serco Ltd,21013503,"9,829.61"
Borough Council of Kings Lynn and West Norfolk,E07000146,17/03/2022,Recycling Commercial,Contracted Services,Serco Ltd,21013503,"5,378.00"
Borough Council of Kings Lynn and West Norfolk,E07000146,17/03/2022,Domestic Refuse,Dayworks and Addnl Works,Serco Ltd,21013503,"16,125.03"
Borough Council of Kings Lynn and West Norfolk,E07000146,17/03/2022,Domestic Refuse,Clinical & Medical Waste,Serco Ltd,21013503,"1,823.07"
Borough Council of Kings Lynn and West Norfolk,E07000146,17/03/2022,Domestic Refuse,Litter Bins,Serco Ltd,21013503,"9,114.16"
Borough Council of Kings Lynn and West Norfolk,E07000146,17/03/2022,Domestic Refuse,Clinical & Medical Waste,Serco Ltd,21013644,"1,158.08"
Borough Council of Kings Lynn and West Norfolk,E07000146,17/03/2022,Domestic Refuse,Litter Bins,Serco Ltd,21013644,"9,114.16"
Borough Council of Kings Lynn and West Norfolk,E07000146,17/03/2022,Domestic Refuse,Dayworks and Addnl Works,Serco Ltd,21013644,"14,427.40"
Borough Council of Kings Lynn and West Norfolk,E07000146,17/03/2022,Recycling Commercial,Contracted Services,Serco Ltd,21013644,"5,378.00"
Borough Council of Kings Lynn and West Norfolk,E07000146,17/03/2022,Trade Refuse,Contracted Services,Serco Ltd,21013644,"9,829.61"
Borough Council of Kings Lynn and West Norfolk,E07000146,17/03/2022,Recycling Composting,Contracted Services,Serco Ltd,21013644,"43,659.45"
Borough Council of Kings Lynn and West Norfolk,E07000146,17/03/2022,Domestic Refuse,Litter Bins,Serco Ltd,21013645,"9,333.74"
Borough Council of Kings Lynn and West Norfolk,E07000146,17/03/2022,Domestic Refuse,Clinical & Medical Waste,Serco Ltd,21013645,"1,873.59"
Borough Council of Kings Lynn and West Norfolk,E07000146,17/03/2022,Domestic Refuse,Dayworks and Addnl Works,Serco Ltd,21013645,"13,329.62"
Borough Council of Kings Lynn and West Norfolk,E07000146,17/03/2022,Recycling Commercial,Contracted Services,Serco Ltd,21013645,"5,378.00"
Borough Council of Kings Lynn and West Norfolk,E07000146,17/03/2022,Trade Refuse,Contracted Services,Serco Ltd,21013645,"9,829.61"
Borough Council of Kings Lynn and West Norfolk,E07000146,17/03/2022,Recycling Composting,Contracted Services,Serco Ltd,21013645,"43,074.04"
Borough Council of Kings Lynn and West Norfolk,E07000146,17/03/2022,Sports Grounds North,Materials,Advance Grass Solutions,21013073,161.50
Borough Council of Kings Lynn and West Norfolk,E07000146,17/03/2022,Sports Grounds Central,Materials,Advance Grass Solutions,21013073,161.50
Borough Council of Kings Lynn and West Norfolk,E07000146,17/03/2022,Sports Grounds North,Materials,Advance Grass Solutions,21013073,462.50
Borough Council of Kings Lynn and West Norfolk,E07000146,17/03/2022,Sports Grounds Central,Materials,Advance Grass Solutions,21013073,462.50
Borough Council of Kings Lynn and West Norfolk,E07000146,17/03/2022,The Walks,Materials,Huws Gray Ridgeons Ltd,21013586,543.04
Borough Council of Kings Lynn and West Norfolk,E07000146,17/03/2022,Licensing,Vet Inspections,M & J Cooper,22007679,597.43
Borough Council of Kings Lynn and West Norfolk,E07000146,17/03/2022,Careline,Tools And Equipment,Careium,22007667,"28,338.75"
Borough Council of Kings Lynn and West Norfolk,E07000146,21/03/2022,Public Cleansing,Vehicle - repairs & Maint,Ford & Slater DAF Kings Lynn,21013671,439.38
Borough Council of Kings Lynn and West Norfolk,E07000146,21/03/2022,Corporate Insurance,Insurance Premium,Zurich Insurance Plc,21013675,"57,205.61"
Borough Council of Kings Lynn and West Norfolk,E07000146,21/03/2022,Corporate Insurance,Insurance Premium,Zurich Insurance Plc,21013676,"9,693.05"
Borough Council of Kings Lynn and West Norfolk,E07000146,21/03/2022,Corporate Insurance,Insurance Premium,Zurich Insurance Plc,21013677,"3,920.00"
Borough Council of Kings Lynn and West Norfolk,E07000146,21/03/2022,Corporate Insurance,Insurance Premium,Zurich Insurance Plc,21013678,954.80
Borough Council of Kings Lynn and West Norfolk,E07000146,21/03/2022,Corporate Insurance,Insurance Premium,Zurich Insurance Plc,21013679,"299,722.36"
Borough Council of Kings Lynn and West Norfolk,E07000146,21/03/2022,Corporate Insurance,Insurance Premium,Zurich Insurance Plc,21013646,"2,144.80"
Borough Council of Kings Lynn and West Norfolk,E07000146,21/03/2022,Corporate Insurance,Insurance Premium,Zurich Insurance Plc,21013647,"4,760.95"
Borough Council of Kings Lynn and West Norfolk,E07000146,21/03/2022,Coast Defence/Protection,Repairs & Maintenance,C G Godfrey Ltd,21013699,"11,644.59"
Borough Council of Kings Lynn and West Norfolk,E07000146,21/03/2022,CCTV,Rental CCTV - BT,Switchshop Ltd,21013500,419.00
Borough Council of Kings Lynn and West Norfolk,E07000146,21/03/2022,Corn Ex Refurbish Seating,Works,Audience Systems Limited,21013144,"4,007.76"
Borough Council of Kings Lynn and West Norfolk,E07000146,21/03/2022,Housing Options Programme,Temporary Accommodation,The Grange Hotel,22007699,479.17
Borough Council of Kings Lynn and West Norfolk,E07000146,21/03/2022,Cost of Collection - CTax,Professional Fees,Civica UK Ltd,21013101,"6,525.00"
Borough Council of Kings Lynn and West Norfolk,E07000146,21/03/2022,Kings Court Service Charges,Repairs & Maintenance,UPS Systems PLC,21013178,"1,350.00"
Borough Council of Kings Lynn and West Norfolk,E07000146,21/03/2022,Kings Court Service Charges,Cleaning Material & Equip,Ken Booth & Co Ltd,21013163,612.96
Borough Council of Kings Lynn and West Norfolk,E07000146,21/03/2022,Housing Options Programme,Homeless Prevention Fund,Longhurst Group,22007691,591.68
Borough Council of Kings Lynn and West Norfolk,E07000146,21/03/2022,Financial Services,Agency Staff,Hays Specialist Recruitment,21013716,"2,950.00"
Borough Council of Kings Lynn and West Norfolk,E07000146,21/03/2022,GM Central Area,Tools And Equipment,Groundsman Tools & Supplies Ltd,21013641,154.99
Borough Council of Kings Lynn and West Norfolk,E07000146,21/03/2022,GM Central Area,Materials,Groundsman Tools & Supplies Ltd,21013641,45.46
Borough Council of Kings Lynn and West Norfolk,E07000146,21/03/2022,The Walks,Materials,Groundsman Tools & Supplies Ltd,21013641,196.98
Borough Council of Kings Lynn and West Norfolk,E07000146,21/03/2022,GM Central Area,Materials,Groundsman Tools & Supplies Ltd,21013641,295.47
Borough Council of Kings Lynn and West Norfolk,E07000146,21/03/2022,Heacham Workshops,Repairs & Maintenance,East Anglia Fire Protection Ltd,21013158,"4,950.00"
Borough Council of Kings Lynn and West Norfolk,E07000146,21/03/2022,Rough Sleeper Fund,Covid 19,Excaliber Security Services Ltd,21013697,"5,107.20"
Borough Council of Kings Lynn and West Norfolk,E07000146,21/03/2022,Financial Services,Professional Fees,Bonham 1793 Limited,21013650,"3,000.00"
Borough Council of Kings Lynn and West Norfolk,E07000146,21/03/2022,Play Area Equipment (KLAC),Equipment/Materials,Playdale Playgrounds Ltd,21013256,"4,585.90"
Borough Council of Kings Lynn and West Norfolk,E07000146,21/03/2022,Play Area Equipment (KLAC),Works,Playdale Playgrounds Ltd,21013256,"5,413.00"
Borough Council of Kings Lynn and West Norfolk,E07000146,24/03/2022,Discover KL Distribution,Marketing / Tourism,Clanpress (Kings Lynn) Ltd,21013778,598.00
Borough Council of Kings Lynn and West Norfolk,E07000146,24/03/2022,Mintlyn Crematorium,Repairs & Maintenance,CGM Group (East Anglia) Ltd,21013796,492.92
Borough Council of Kings Lynn and West Norfolk,E07000146,24/03/2022,General Property,Repairs & Maintenance,CGM Group (East Anglia) Ltd,21013797,"1,586.08"
Borough Council of Kings Lynn and West Norfolk,E07000146,24/03/2022,General Property,Repairs & Maintenance,CGM Group (East Anglia) Ltd,21013799,"1,586.08"
Borough Council of Kings Lynn and West Norfolk,E07000146,24/03/2022,Personnel Services,Repairs & Maintenance,Dell Corporation Ltd,21013713,544.31
Borough Council of Kings Lynn and West Norfolk,E07000146,24/03/2022,CCTV,Repairs & Maintenance,E Akers,21013803,966.00
Borough Council of Kings Lynn and West Norfolk,E07000146,24/03/2022,CCTV,Vehicle - repairs & Maint,Ford & Slater DAF Kings Lynn,21013765,892.60
Borough Council of Kings Lynn and West Norfolk,E07000146,24/03/2022,Reopening High Streets Safely Fund,Marketing / Tourism,Glasdon UK Ltd,21013241,488.40
Borough Council of Kings Lynn and West Norfolk,E07000146,24/03/2022,Comm Infrastructure Levy,Small Projects,Hunstanton Town Council,22007715,"4,000.00"
Borough Council of Kings Lynn and West Norfolk,E07000146,24/03/2022,General Property,Repairs & Maintenance,KJN Landscapes,21013753,800.00
Borough Council of Kings Lynn and West Norfolk,E07000146,24/03/2022,Towns Fund Active and Clean Connectivity,Professional Fees,Norfolk County Council,21013745,"103,744.70"
Borough Council of Kings Lynn and West Norfolk,E07000146,24/03/2022,Parking Operations - Brgh,Repairs & Maintenance,Norfolk County Council,21013746,"1,986.57"
Borough Council of Kings Lynn and West Norfolk,E07000146,24/03/2022,Financial Services,Postages,Royal Mail Group Ltd,22007722,869.34
Borough Council of Kings Lynn and West Norfolk,E07000146,24/03/2022,Benefit Administration,Postages,Royal Mail Group Ltd,22007722,456.48
Borough Council of Kings Lynn and West Norfolk,E07000146,24/03/2022,Cost of Collection - CTax,Postages,Royal Mail Group Ltd,22007722,394.41
Borough Council of Kings Lynn and West Norfolk,E07000146,24/03/2022,Kings Lynn Bid,Postages,Royal Mail Group Ltd,22007722,1.44
Borough Council of Kings Lynn and West Norfolk,E07000146,24/03/2022,Pub & Tourism int charges,Postages,Royal Mail Group Ltd,22007722,2.70
Borough Council of Kings Lynn and West Norfolk,E07000146,24/03/2022,Financial Services,Postages,Royal Mail Group Ltd,22007722,0.90
Borough Council of Kings Lynn and West Norfolk,E07000146,24/03/2022,Cost of Collection - CTax,Postages,Royal Mail Group Ltd,22007722,0.71
Borough Council of Kings Lynn and West Norfolk,E07000146,24/03/2022,Benefit Administration,Postages,Royal Mail Group Ltd,22007722,8.10
Borough Council of Kings Lynn and West Norfolk,E07000146,24/03/2022,Internal Audit,Contracted Services,South Norfolk Council,21013732,"1,700.00"
Borough Council of Kings Lynn and West Norfolk,E07000146,24/03/2022,Rough Sleeper Initiative Y3,Miscellaneous,The Purfleet Trust,21013693,"1,420.00"
Borough Council of Kings Lynn and West Norfolk,E07000146,24/03/2022,Rough Sleeper Initiative Y3,Miscellaneous,The Purfleet Trust,21013693,60.00
Borough Council of Kings Lynn and West Norfolk,E07000146,24/03/2022,Supplier Holding Account,Vehicle - repairs & Maint,Paul Johnson Motor Services Ltd,22007718,"3,792.08"
Borough Council of Kings Lynn and West Norfolk,E07000146,24/03/2022,Air Quality,Tools And Equipment,Gradko International Ltd,21013201,"2,361.55"
Borough Council of Kings Lynn and West Norfolk,E07000146,24/03/2022,St Georges Guildhall Complex,Professional Fees,The Morton Partnership Ltd,21013352,850.00
Borough Council of Kings Lynn and West Norfolk,E07000146,24/03/2022,Training Holding Account,Training,IDEA,21013571,700.00
Borough Council of Kings Lynn and West Norfolk,E07000146,24/03/2022,Register of Electors,Stationery & Office,Civica Election Services Ltd,22007613,463.20
Borough Council of Kings Lynn and West Norfolk,E07000146,24/03/2022,Head of Legal Services,Professional Fees,North Norfolk District Council,21013743,925.00
Borough Council of Kings Lynn and West Norfolk,E07000146,24/03/2022,Town Fund - Public Realm,Contractor Works,Penty Contractors Ltd,21013830,"7,000.00"
Borough Council of Kings Lynn and West Norfolk,E07000146,24/03/2022,Parking Operations - Brgh,Repairs & Maintenance,Phs Group Plc,21013741,630.90
Borough Council of Kings Lynn and West Norfolk,E07000146,24/03/2022,Home Improvements Agency,Agency Staff,Seven Resourcing Ltd,21013735,"1,214.88"
Borough Council of Kings Lynn and West Norfolk,E07000146,24/03/2022,Network Hardware holding,Repairs & Maintenance,Focus Security (East Anglia) Ltd,21013812,"1,535.76"
Borough Council of Kings Lynn and West Norfolk,E07000146,24/03/2022,CCTV Breckland,Repairs & Maintenance,Focus Security (East Anglia) Ltd,21013813,589.00
Borough Council of Kings Lynn and West Norfolk,E07000146,24/03/2022,Network Hardware holding,Repairs & Maintenance,Focus Security (East Anglia) Ltd,21013816,554.49
Borough Council of Kings Lynn and West Norfolk,E07000146,24/03/2022,Financial Services,Agency Staff,Hays Specialist Recruitment,21013763,"1,475.00"
Borough Council of Kings Lynn and West Norfolk,E07000146,24/03/2022,Kings Court Flat Roof,Works,Proctor UK Ltd,21013805,"17,977.41"
Borough Council of Kings Lynn and West Norfolk,E07000146,24/03/2022,Community Projects CRS,Service Level Agreements,Your Local Paper Ltd,21013485,"4,000.00"
Borough Council of Kings Lynn and West Norfolk,E07000146,24/03/2022,Nursery,Materials,Agrovista UK Ltd,21013555,"4,231.44"
Borough Council of Kings Lynn and West Norfolk,E07000146,24/03/2022,Home Improvements Agency,Agency Staff,Seven Resourcing Ltd,21013509,"1,597.96"
Borough Council of Kings Lynn and West Norfolk,E07000146,24/03/2022,Home Improvements Agency,Agency Staff,Seven Resourcing Ltd,21013510,"1,104.54"
Borough Council of Kings Lynn and West Norfolk,E07000146,24/03/2022,Home Improvements Agency,Agency Staff,Seven Resourcing Ltd,21013734,"1,616.86"
Borough Council of Kings Lynn and West Norfolk,E07000146,24/03/2022,Resort Seafront,Repairs & Maintenance,Industrial Water Jetting Systems Ltd,21013382,"1,675.00"
Borough Council of Kings Lynn and West Norfolk,E07000146,24/03/2022,Reopening High Streets Safely Fund,Professional Fees,Hornbeck Ltd t/a Landmark,21013751,"8,074.00"
Borough Council of Kings Lynn and West Norfolk,E07000146,24/03/2022,Reopening High Streets Safely Fund,Professional Fees,Hornbeck Ltd t/a Landmark,21013823,"57,987.71"
Borough Council of Kings Lynn and West Norfolk,E07000146,24/03/2022,Heritage Action Zone,Professional Fees,Kings Lynn Website Design,22007703,"1,000.00"
Borough Council of Kings Lynn and West Norfolk,E07000146,24/03/2022,Heritage Action Zone,Professional Fees,Café Menu systems,22007723,"2,490.00"
Borough Council of Kings Lynn and West Norfolk,E07000146,24/03/2022,Comm Infrastructure Levy,Small Projects,Hockwold Cricket Club,22007702,"6,132.00"
Borough Council of Kings Lynn and West Norfolk,E07000146,24/03/2022,COMF Phase 3,Covid 19,Iliffe Media Publishing Ltd,21013238,"1,300.00"
Borough Council of Kings Lynn and West Norfolk,E07000146,24/03/2022,EZ Dev of Spec Units,External Fees/Consultancy,AHR Building Consultancy Ltd,21013789,"47,536.73"
Borough Council of Kings Lynn and West Norfolk,E07000146,24/03/2022,Public Realm/Town Deal,Professional Fees,Stuart Power Ltd,21013821,885.71
Borough Council of Kings Lynn and West Norfolk,E07000146,24/03/2022,Public Realm/Town Deal,Equipment/Materials,Stuart Power Ltd,21013730,857.14
Borough Council of Kings Lynn and West Norfolk,E07000146,24/03/2022,Home Improvements Agency,Advertising & Marketing,Hoffhaus Design Ltd,21012852,264.90
Borough Council of Kings Lynn and West Norfolk,E07000146,24/03/2022,Careline,Advertising & Marketing,Hoffhaus Design Ltd,21012852,264.90
Borough Council of Kings Lynn and West Norfolk,E07000146,24/03/2022,LILY 5,Advertising & Marketing,Hoffhaus Design Ltd,21012852,529.80
Borough Council of Kings Lynn and West Norfolk,E07000146,24/03/2022,CCTV,Repairs & Maintenance,Quality Essential Distribution Ltd,21013208,"14,869.46"
Borough Council of Kings Lynn and West Norfolk,E07000146,24/03/2022,West Winch Growth Area,Professional Fees,Gerald Eve LLP,21013651,"5,335.00"
Borough Council of Kings Lynn and West Norfolk,E07000146,24/03/2022,Rough Sleeper Fund,Covid 19,Excaliber Security Services Ltd,21013767,"5,107.20"
Borough Council of Kings Lynn and West Norfolk,E07000146,24/03/2022,KL Innovation Centre,Repairs & Maintenance,A C Leigh (Norwich) Ltd,21013271,"1,227.50"
Borough Council of Kings Lynn and West Norfolk,E07000146,24/03/2022,South Lynn Community Centre,Electricity,IMServ Europe Ltd,21013754,84.33
Borough Council of Kings Lynn and West Norfolk,E07000147,24/03/2022,Downham MSports Centre,Electricity,IMServ Europe Ltd,21013754,84.33
Borough Council of Kings Lynn and West Norfolk,E07000148,24/03/2022,Kings Court Service Charges,Electricity,IMServ Europe Ltd,21013754,84.33
Borough Council of Kings Lynn and West Norfolk,E07000149,24/03/2022,Oasis General Account,Electricity,IMServ Europe Ltd,21013754,84.33
Borough Council of Kings Lynn and West Norfolk,E07000150,24/03/2022,St James General Account,Electricity,IMServ Europe Ltd,21013754,84.32
Borough Council of Kings Lynn and West Norfolk,E07000151,24/03/2022,EZ Dev of Spec Units,Works,R G Carter Cambridge Ltd,21013321,"355,980.89"
Borough Council of Kings Lynn and West Norfolk,E07000152,24/03/2022,COMF Phase 3,Covid 19,Bauer Radio Ltd,21013666,"1,065.50"
Borough Council of Kings Lynn and West Norfolk,E07000153,24/03/2022,Careline,Tools And Equipment,HOIP Telecom Ltd,21013755,770.75
Borough Council of Kings Lynn and West Norfolk,E07000154,24/03/2022,Careline,Tools And Equipment,HOIP Telecom Ltd,21013756,741.50
Borough Council of Kings Lynn and West Norfolk,E07000155,24/03/2022,Careline,Tools And Equipment,HOIP Telecom Ltd,21013757,748.00
Borough Council of Kings Lynn and West Norfolk,E07000156,24/03/2022,Careline,Tools And Equipment,HOIP Telecom Ltd,21013758,822.75
Borough Council of Kings Lynn and West Norfolk,E07000157,24/03/2022,Planning Control,Professional Fees,Northstar Urban Design Ltd,21013297,"1,494.00"
Borough Council of Kings Lynn and West Norfolk,E07000158,24/03/2022,Planning Policy - Dept,Professional Fees,Northstar Urban Design Ltd,21013298,"2,208.00"
Borough Council of Kings Lynn and West Norfolk,E07000159,24/03/2022,Reopening High Streets Safely Fund,Materials,Barcham Trees Plc,21013786,710.00
Borough Council of Kings Lynn and West Norfolk,E07000160,24/03/2022,Housing Options Programme,Homeless Prevention Fund,Broadland Housing Group,22007666,"3,445.12"
Borough Council of Kings Lynn and West Norfolk,E07000163,28/03/2022,Play Area Equipment (KLAC),Equipment/Materials,Steven Seals Builder Ltd,22007772,"1,900.00"
Borough Council of Kings Lynn and West Norfolk,E07000164,28/03/2022,Play Area Equipment (KLAC),Works,Steven Seals Builder Ltd,22007772,"3,058.05"
Borough Council of Kings Lynn and West Norfolk,E07000166,28/03/2022,Resort Seafront,Rent,C H S Amusements Ltd,22007758,550.00
Borough Council of Kings Lynn and West Norfolk,E07000167,28/03/2022,Resort Seafront,Rent,C H S Amusements Ltd,22007759,725.00
Borough Council of Kings Lynn and West Norfolk,E07000168,28/03/2022,Resort Seafront,Rent,C H S Amusements Ltd,22007760,525.00
Borough Council of Kings Lynn and West Norfolk,E07000169,28/03/2022,Parking Operations - Brgh,Royal Household Support,V & J Knitwear Ltd,21013929,"2,572.50"
Borough Council of Kings Lynn and West Norfolk,E07000170,28/03/2022,Lease Cars,Leasing,Commercial Services Trading Ltd,22007741,"3,327.79"
Borough Council of Kings Lynn and West Norfolk,E07000171,28/03/2022,Lease Cars,Leasing,Commercial Services Trading Ltd,22007741,"2,747.36"
Borough Council of Kings Lynn and West Norfolk,E07000172,28/03/2022,Corn Ex Refurbish Seating,Works,Audience Systems Limited,21013835,"5,230.33"
Borough Council of Kings Lynn and West Norfolk,E07000173,28/03/2022,CCTV,Computer Equipment,AMR Electrical Services Ltd,21013876,"2,100.98"
Borough Council of Kings Lynn and West Norfolk,E07000175,28/03/2022,Network Hardware holding,Repairs & Maintenance,Focus Security (East Anglia) Ltd,21013881,"1,618.00"
Borough Council of Kings Lynn and West Norfolk,E07000176,28/03/2022,Financial Services,Agency Staff,Hays Specialist Recruitment,21013896,"2,950.00"
Borough Council of Kings Lynn and West Norfolk,E07000177,28/03/2022,Trade Refuse,Computer Equipment,Whitespace Work Software  Ltd,21013423,"9,860.00"
Borough Council of Kings Lynn and West Norfolk,E07000178,28/03/2022,Hunstanton Southend Road,Contractor Works,Lovell Partnerships Ltd,22007766,"61,723.25"
Borough Council of Kings Lynn and West Norfolk,E07000179,28/03/2022,Hunstanton Bus Station & NCC Library,Contractor Works,Lovell Partnerships Ltd,21013868,"1,080.00"
Borough Council of Kings Lynn and West Norfolk,E07000180,28/03/2022,Lynnsport 1,Contractor Works,Lovell Partnerships Ltd,21013869,"1,620.01"
Borough Council of Kings Lynn and West Norfolk,E07000181,28/03/2022,Parkway - Gaywood,Contractor Works,Lovell Partnerships Ltd,21013870,"4,507.98"
Borough Council of Kings Lynn and West Norfolk,E07000182,28/03/2022,Cost of Collection - CTax,Postages,DSI Billing Services Ltd,22007640,"1,569.44"
Borough Council of Kings Lynn and West Norfolk,E07000183,28/03/2022,Food Waste,Bins,Straight Manufacturing Ltd,21013731,"5,155.68"
Borough Council of Kings Lynn and West Norfolk,E07000184,28/03/2022,Parks & Open Spaces,Tree Work/Storm Damage,Golden Tree Surgeons Ltd,21013867,"1,480.00"
Borough Council of Kings Lynn and West Norfolk,E07000185,28/03/2022,Cashless Pk JC(SN on St),Merchant Fees,Chipside Ltd,21013845,0.11
Borough Council of Kings Lynn and West Norfolk,E07000186,28/03/2022,Cashless Pk JT(Brd on St),Merchant Fees,Chipside Ltd,21013845,0.21
Borough Council of Kings Lynn and West Norfolk,E07000187,28/03/2022,Cashless Pk JG (Bk on St),Merchant Fees,Chipside Ltd,21013845,0.60
Borough Council of Kings Lynn and West Norfolk,E07000188,28/03/2022,Cashless Pk JE(NN on St),Merchant Fees,Chipside Ltd,21013845,14.28
Borough Council of Kings Lynn and West Norfolk,E07000189,28/03/2022,Cashless Park KR (KLWN on ST),Merchant Fees,Chipside Ltd,21013845,59.42
Borough Council of Kings Lynn and West Norfolk,E07000190,28/03/2022,Cashless Pk JI(GYon St),Merchant Fees,Chipside Ltd,21013845,61.18
Borough Council of Kings Lynn and West Norfolk,E07000191,28/03/2022,Cashless Pk YT(GY off St),Merchant Fees,Chipside Ltd,21013845,144.72
Borough Council of Kings Lynn and West Norfolk,E07000192,28/03/2022,Cashless Pk JF(NN on St),Merchant Fees,Chipside Ltd,21013845,196.83
Borough Council of Kings Lynn and West Norfolk,E07000193,28/03/2022,Cashless Park KZ (KLWN off ST),Merchant Fees,Chipside Ltd,21013845,"1,065.69"
Borough Council of Kings Lynn and West Norfolk,E07000194,28/03/2022,Cashless Pk JC(SN on St),Transaction Fee,Chipside Ltd,21013846,1.00
Borough Council of Kings Lynn and West Norfolk,E07000195,28/03/2022,Cashless Pk JT(Brd on St),Transaction Fee,Chipside Ltd,21013846,2.00
Borough Council of Kings Lynn and West Norfolk,E07000196,28/03/2022,Cashless Pk JG (Bk on St),Transaction Fee,Chipside Ltd,21013846,9.00
Borough Council of Kings Lynn and West Norfolk,E07000197,28/03/2022,Cashless Pk JE(NN on St),Transaction Fee,Chipside Ltd,21013846,131.00
Borough Council of Kings Lynn and West Norfolk,E07000198,28/03/2022,Cashless Pk JI(GYon St),Transaction Fee,Chipside Ltd,21013846,203.61
Borough Council of Kings Lynn and West Norfolk,E07000199,28/03/2022,Cashless Park KR (KLWN on ST),Transaction Fee,Chipside Ltd,21013846,280.42
Borough Council of Kings Lynn and West Norfolk,E07000200,28/03/2022,Cashless Pk YT(GY off St),Transaction Fee,Chipside Ltd,21013846,403.33
Borough Council of Kings Lynn and West Norfolk,E07000201,28/03/2022,Cashless Pk JF(NN on St),Transaction Fee,Chipside Ltd,21013846,536.25
Borough Council of Kings Lynn and West Norfolk,E07000202,28/03/2022,Cashless Park KZ (KLWN off ST),Transaction Fee,Chipside Ltd,21013846,"2,837.75"
Borough Council of Kings Lynn and West Norfolk,E07000203,28/03/2022,Public Realm/Town Deal,Equipment/Materials,Stuart Power Ltd,21013508,800.00
Borough Council of Kings Lynn and West Norfolk,E07000206,28/03/2022,Town Fund - Public Realm,Professional Fees,Engaging People Company,21013400,550.00
Borough Council of Kings Lynn and West Norfolk,E07000207,28/03/2022,Salters Road,Professional Fees,Gateley Plc,21013884,"10,000.00"
Borough Council of Kings Lynn and West Norfolk,E07000208,28/03/2022,Replacement Financial Ledger,Computer Equip (Software),Embridge Consulting (UK) Ltd,22007778,"1,315.24"
Borough Council of Kings Lynn and West Norfolk,E07000209,28/03/2022,CCTV,Repairs & Maintenance,Quality Essential Distribution Ltd,21013283,"17,671.70"
Borough Council of Kings Lynn and West Norfolk,E07000210,28/03/2022,Mintlyn Crematorium,Webcasts/Tributes/Recordings,Vivedia Ltd,21013265,"2,573.00"
Borough Council of Kings Lynn and West Norfolk,E07000211,28/03/2022,Mintlyn Crematorium,Professional Fees,Vivedia Ltd,21013266,"7,500.00"
Borough Council of Kings Lynn and West Norfolk,E07000212,28/03/2022,Valentine Road Hunstanton,Repairs & Maintenance,Jensen Security & Fire Systems Ltd,21013335,645.00
Borough Council of Kings Lynn and West Norfolk,E07000213,28/03/2022,KL Arts Centre,Hirings Ticketed,Shakespeares Guildhall Trust,22007752,"2,938.33"
Borough Council of Kings Lynn and West Norfolk,E07000214,28/03/2022,KL Arts Centre,Hiring Charges Income,Shakespeares Guildhall Trust,22007752,-200.00
Borough Council of Kings Lynn and West Norfolk,E07000215,28/03/2022,KL Arts Centre,Commission On Box Office,Shakespeares Guildhall Trust,22007752,-176.30
Borough Council of Kings Lynn and West Norfolk,E07000216,28/03/2022,KL Arts Centre,Credit Card Recharge,Shakespeares Guildhall Trust,22007752,-105.36
Borough Council of Kings Lynn and West Norfolk,E07000220,28/03/2022,KL Innovation Centre,Repairs & Maintenance,Lucid Systems Ltd,21013312,429.00
Borough Council of Kings Lynn and West Norfolk,E07000225,28/03/2022,Cashless Pk YT(GY off St),Agency,Great Yarmouth Borough Council,22007745,"14,130.40"
Borough Council of Kings Lynn and West Norfolk,E07000226,28/03/2022,Burnham Market Car Park,Repairs & Maintenance,Metric Group Ltd,21013383,246.96
Borough Council of Kings Lynn and West Norfolk,E07000227,28/03/2022,On Street Pay and Display,Repairs & Maintenance,Metric Group Ltd,21013383,329.28
Borough Council of Kings Lynn and West Norfolk,E07000228,28/03/2022,Breckland Carpark operation,Repairs & Maintenance,Metric Group Ltd,21013383,411.60
Borough Council of Kings Lynn and West Norfolk,E07000229,28/03/2022,NNDC Carpark Operation,Repairs & Maintenance,Metric Group Ltd,21013383,493.92
Borough Council of Kings Lynn and West Norfolk,E07000230,28/03/2022,Parking Operations - Brgh,Repairs & Maintenance,Metric Group Ltd,21013383,"5,433.12"
Borough Council of Kings Lynn and West Norfolk,E07000231,28/03/2022,West Winch Growth Area,Professional Fees,Norfolk County Council,21013744,"31,000.00"
Borough Council of Kings Lynn and West Norfolk,E07000232,28/03/2022,Cashless Pk JF(NN on St),Agency,North Norfolk District Council,22007750,"19,605.50"
Borough Council of Kings Lynn and West Norfolk,E07000233,28/03/2022,Resort Trading Operations,Repairs & Maintenance,Penty Contractors Ltd,21013888,"1,500.00"
Borough Council of Kings Lynn and West Norfolk,E07000234,28/03/2022,Heacham Beach,Repairs & Maintenance,Penty Contractors Ltd,21013889,"2,800.00"
Borough Council of Kings Lynn and West Norfolk,E07000235,28/03/2022,Heacham Beach,Repairs & Maintenance,Penty Contractors Ltd,21013890,"1,800.00"
Borough Council of Kings Lynn and West Norfolk,E07000236,28/03/2022,Parking Operations - Brgh,Repairs & Maintenance,Penty Contractors Ltd,22007768,840.00
Borough Council of Kings Lynn and West Norfolk,E07000237,28/03/2022,Parking Operations - Brgh,Repairs & Maintenance,Penty Contractors Ltd,22007769,810.00
Borough Council of Kings Lynn and West Norfolk,E07000238,28/03/2022,Decarbonisation ReFit 2,Works,Ameresco Ltd,21013875,"245,924.65"
Borough Council of Kings Lynn and West Norfolk,E07000239,28/03/2022,Rough Sleeper Fund,Covid 19,Bunkabin Ltd,21013842,"2,208.00"
Borough Council of Kings Lynn and West Norfolk,E07000240,28/03/2022,Rough Sleeper Fund,Covid 19,Bunkabin Ltd,21013843,"1,932.00"
Borough Council of Kings Lynn and West Norfolk,E07000241,28/03/2022,Licensing,Membership & Subscription,James Button & Co Solicitors,21013334,765.00
Borough Council of Kings Lynn and West Norfolk,E07000242,28/03/2022,EZ Premises Costs,Professional Fees,EDP Environmental Ltd,21013398,748.00
Borough Council of Kings Lynn and West Norfolk,E07000243,28/03/2022,COMF Phase 3,Covid 19,Bauer Radio Ltd,21013874,"1,027.79"
Borough Council of Kings Lynn and West Norfolk,E07000244,28/03/2022,Brochure & lead genrtn,Marketing / Tourism,Reg Clarke,21013927,"1,487.70"
Borough Council of Kings Lynn and West Norfolk,E07000245,28/03/2022,GM Central Area,Covid 19,Enterprise Flex-E Rent,21013606,57.50
Borough Council of Kings Lynn and West Norfolk,E07000246,28/03/2022,Neighbourhood Teams,Covid 19,Enterprise Flex-E Rent,21013606,407.50
Borough Council of Kings Lynn and West Norfolk,E07000247,28/03/2022,Grounds Southern Area,Covid 19,Enterprise Flex-E Rent,21013606,58.50
Borough Council of Kings Lynn and West Norfolk,E07000248,28/03/2022,Balance Sheet,VAT Input - VAT Only Purchases,Marston (Holdings) Ltd,22007716,"1,834.94"
Borough Council of Kings Lynn and West Norfolk,E07000249,28/03/2022,LILY 5,Advertising & Marketing,Global Media Group Services Ltd,21013462,470.00
Borough Council of Kings Lynn and West Norfolk,E07000250,28/03/2022,Careline,Advertising & Marketing,Global Media Group Services Ltd,21013462,470.00
Borough Council of Kings Lynn and West Norfolk,E07000251,28/03/2022,Towns Fund Active and Clean Connectivity,Professional Fees,INVVU Construction Consultants Ltd,21013907,"34,720.00"
Borough Council of Kings Lynn and West Norfolk,E07000252,28/03/2022,Housing Options Programme,Homeless Prevention Fund,Ashton Roberts Ltd,22007739,"1,500.00"
Borough Council of Kings Lynn and West Norfolk,E07000253,28/03/2022,Housing Options Programme,Homeless Prevention Fund,B Ward,22007756,"1,500.00"
Borough Council of Kings Lynn and West Norfolk,E07000254,28/03/2022,Reopening High Streets Safely Fund,Marketing / Tourism,Huws Gray Ridgeons Ltd,21013937,"1,827.75"
Borough Council of Kings Lynn and West Norfolk,E07000255,28/03/2022,Postage Services K Court,Postages,Royal Mail Group Ltd,22007754,"1,015.82"
Borough Council of Kings Lynn and West Norfolk,E07000256,28/03/2022,Flitcham Workshops,Rent,Sandringham Estate,22007580,"3,729.85"
Borough Council of Kings Lynn and West Norfolk,E07000257,28/03/2022,Lynnsport General Account,Repairs & Maintenance,C G Godfrey Ltd,21013850,800.00
Borough Council of Kings Lynn and West Norfolk,E07000258,28/03/2022,Mintlyn Crematorium,Repairs & Maintenance,C G Godfrey Ltd,21013851,"1,410.00"
Borough Council of Kings Lynn and West Norfolk,E07000259,28/03/2022,Flitcham Workshops,Repairs - Services Chg,C G Godfrey Ltd,21013854,"1,425.00"
Borough Council of Kings Lynn and West Norfolk,E07000260,28/03/2022,Dry Box Collection Scheme,Waste Processing Cost,Norse Environmental Services,21013299,"38,659.65"
Borough Council of Kings Lynn and West Norfolk,E07000261,28/03/2022,Food Waste,Waste Processing Cost,Norse Environmental Services,21013300,"6,092.60"
Borough Council of Kings Lynn and West Norfolk,E07000262,28/03/2022,Rough Sleeper Initiative Y3,Miscellaneous,The Purfleet Trust,21013916,"2,340.00"
Borough Council of Kings Lynn and West Norfolk,E07000263,28/03/2022,Training Holding Account,Training,Ian Nicks,21013573,"2,385.00"
Borough Council of Kings Lynn and West Norfolk,E07000264,29/03/2022,Reopening High Streets Safely Fund,Marketing / Tourism,LAN Services Ltd T/a Commercial Washrooms,21013622,"1,967.00"
Borough Council of Kings Lynn and West Norfolk,E07000265,29/03/2022,Reopening High Streets Safely Fund,Marketing / Tourism,LAN Services Ltd T/a Commercial Washrooms,21013622,100.00
Borough Council of Kings Lynn and West Norfolk,E07000268,31/03/2022,Corporate,Bank Charges,Worldpay Ltd,22007823,"12,119.62"
Borough Council of Kings Lynn and West Norfolk,E07000269,31/03/2022,Corporate,Bank Charges,Worldpay Ltd,22007823,471.83
Borough Council of Kings Lynn and West Norfolk,E07000271,31/03/2022,ICT,Computer Software Maint,Capita Business Services Ltd,22007600,720.86
Borough Council of Kings Lynn and West Norfolk,E07000273,31/03/2022,Corporate,Bank Charges,Allpay,22007593,"1,233.72"
Borough Council of Kings Lynn and West Norfolk,E07000275,31/03/2022,Utility Holding,Electricity Bulk Billing,EDF Energy Ltd,22007601,"199,683.47"
Borough Council of Kings Lynn and West Norfolk,E07000277,31/03/2022,KL Innovation Centre,Telephones,Spitfire Network Services Ltd,22007609,912.45
Borough Council of Kings Lynn and West Norfolk,E07000279,31/03/2022,ICT,MPhone Usage & Top-up,TelefonicaO2UK Ltd,22007604,"1,232.65"
Borough Council of Kings Lynn and West Norfolk,E07000280,31/03/2022,Financial Services,Agency Staff,Hays Specialist Recruitment,21014126,"2,950.00"
Borough Council of Kings Lynn and West Norfolk,E07000281,31/03/2022,Reopening High Streets Safely Fund,Marketing / Tourism,Robert Fox,21014110,"2,070.00"
Borough Council of Kings Lynn and West Norfolk,E07000282,31/03/2022,Reopening High Streets Safely Fund,Marketing / Tourism,Robert Fox,21014110,420.00
Borough Council of Kings Lynn and West Norfolk,E07000284,31/03/2022,Reopening High Streets Safely Fund,Professional Fees,Creative Orchard,22007827,800.00
Borough Council of Kings Lynn and West Norfolk,E07000286,31/03/2022,Reopening High Streets Safely Fund,Materials,Strictly Tables and Chairs Ltd,22007828,"4,730.00"
Borough Council of Kings Lynn and West Norfolk,E07000288,31/03/2022,Reopening High Streets Safely Fund,Materials,Bestbuy-office chairs,22007829,"3,960.00"
Borough Council of Kings Lynn and West Norfolk,E07000289,31/03/2022,Play Area Equipment (KLAC),Works,Playdale Playgrounds Ltd,21014134,"2,396.00"
Borough Council of Kings Lynn and West Norfolk,E07000290,31/03/2022,Play Area Equipment (KLAC),Equipment/Materials,Playdale Playgrounds Ltd,21014134,"4,817.60"
Borough Council of Kings Lynn and West Norfolk,E07000291,31/03/2022,Corporate Insurance,Insurance Premium,Arthur J Gallagher Insurance Brokers Ltd,21014081,"4,381.92"
Borough Council of Kings Lynn and West Norfolk,E07000292,31/03/2022,Corporate Insurance,Insurance Premium,Arthur J Gallagher Insurance Brokers Ltd,21014082,"11,969.18"
Borough Council of Kings Lynn and West Norfolk,E07000293,31/03/2022,One Vu Project,Professional Fees,Anthony Collins Solicitors LLP,22007798,"12,500.00"
Borough Council of Kings Lynn and West Norfolk,E07000294,31/03/2022,Sail the Wash,Consultants Fees,Bloomsbury Publishing Plc,22007782,500.00
Borough Council of Kings Lynn and West Norfolk,E07000296,31/03/2022,Housing Options Programme,Homeless Prevention Fund,JRL Property Group Div01 Ltd,22007808,600.00
Borough Council of Kings Lynn and West Norfolk,E07000297,31/03/2022,Reopening High Streets Safely Fund,Marketing / Tourism,Mr Signs Ltd,21014118,648.00
Borough Council of Kings Lynn and West Norfolk,E07000298,31/03/2022,Kings Court Kings Lynn,Purchased For Resale,Premier Paper Group Ltd,21014057,526.00
Borough Council of Kings Lynn and West Norfolk,E07000299,31/03/2022,Kings Court Kings Lynn,Purchased For Resale,Premier Paper Group Ltd,21014057,3.98
Borough Council of Kings Lynn and West Norfolk,E07000300,31/03/2022,Public Cleansing,Cleaning Material & Equip,V & J Knitwear Ltd,21014125,633.06
Borough Council of Kings Lynn and West Norfolk,E07000301,31/03/2022,Trade Refuse,Added Years Pension,Norfolk Pension Fund,21014129,"-2,970.08"
Borough Council of Kings Lynn and West Norfolk,E07000302,31/03/2022,Domestic Refuse,Added Years Pension,Norfolk Pension Fund,21014129,510.02
Borough Council of Kings Lynn and West Norfolk,E07000303,31/03/2022,Corporate,Added Years Pension,Norfolk Pension Fund,21014129,"19,860.60"
Borough Council of Kings Lynn and West Norfolk,E07000305,31/03/2022,Apprenticeship Scheme,Apprentice Levy,Bedford Borough Council,21014087,"4,695.00"
Borough Council of Kings Lynn and West Norfolk,E07000306,31/03/2022,ICT,Computer Software Maint,Civica UK Ltd,21014005,"12,328.83"
Borough Council of Kings Lynn and West Norfolk,E07000307,31/03/2022,Reopening High Streets Safely Fund,Marketing / Tourism,MCE Heatcool Ltd,21013975,540.00
Borough Council of Kings Lynn and West Norfolk,E07000308,31/03/2022,Reopening High Streets Safely Fund,Marketing / Tourism,MCE Heatcool Ltd,21013975,"1,939.50"
Borough Council of Kings Lynn and West Norfolk,E07000309,31/03/2022,NORA Phase 4,Contractor Works,Lovell Partnerships Ltd,21013972,"416,675.63"
Borough Council of Kings Lynn and West Norfolk,E07000310,31/03/2022,Salters Road,Contractor Works,Lovell Partnerships Ltd,21013973,"125,312.66"
Borough Council of Kings Lynn and West Norfolk,E07000311,31/03/2022,Community Safety,Computer Equipment,TelefonicaO2UK Ltd,21014066,"1,672.30"
Borough Council of Kings Lynn and West Norfolk,E07000312,31/03/2022,Allotments Directly Managed,Repairs & Maintenance,Golden Tree Surgeons Ltd,21013971,550.00
Borough Council of Kings Lynn and West Norfolk,E07000313,31/03/2022,Reopening High Streets Safely Fund,Marketing / Tourism,Smart Refurbishments,21014114,"1,980.00"
Borough Council of Kings Lynn and West Norfolk,E07000314,31/03/2022,Reopening High Streets Safely Fund,Marketing / Tourism,Smart Refurbishments,21014114,510.00
Borough Council of Kings Lynn and West Norfolk,E07000331,31/03/2022,South Lynn Community Centre,Electricity,IMServ Europe Ltd,21014028,168.64
Borough Council of Kings Lynn and West Norfolk,E07000332,31/03/2022,Downham MSports Centre,Electricity,IMServ Europe Ltd,21014028,168.66
Borough Council of Kings Lynn and West Norfolk,E07000333,31/03/2022,Kings Court Service Charges,Electricity,IMServ Europe Ltd,21014028,168.66
Borough Council of Kings Lynn and West Norfolk,E07000334,31/03/2022,Oasis General Account,Electricity,IMServ Europe Ltd,21014028,168.66
Borough Council of Kings Lynn and West Norfolk,E07000335,31/03/2022,St James General Account,Electricity,IMServ Europe Ltd,21014028,168.66
Borough Council of Kings Lynn and West Norfolk,E07000336,31/03/2022,South Lynn Community Centre,Electricity,IMServ Europe Ltd,21014029,84.32
Borough Council of Kings Lynn and West Norfolk,E07000337,31/03/2022,Downham MSports Centre,Electricity,IMServ Europe Ltd,21014029,84.33
